Workbook

Sheet Getting Started
B2: ENERGY STAR Scope 3 Use of Sold Products Analysis Tool
B3: v1.0, February 26, 2021
C5: Getting Started
C8: Purpose
C9: This tool is intended for retailers that sell products. There are two primary uses of the tool: (1) Benchmarking. Allows a retailer to (a) quantify the Scope 3 Use of Sold Product emissions associated with the current sale of ENERGY STAR products and with increased sale of ENERGY STAR products, and (b) quantify the GHG emissions savings achieved through the current or increased sale of ENERGY STAR products (compared to not selling any ENERGY STAR products). (2) Scenario Analysis. Allows a retailer to (a) quantify how Scope 3 Use of Sold Product emissions change with increased sale of ENERGY STAR products, and (b) quantify how emissions savings improve with increased sale of ENERGY STAR products. The goal of the tool is to demonstrate to retailers that increased sales of ENERGY STAR products can potentially result in significant reductions in Scope 3 Use of Sold Products emissions (and therefore, total GHG inventory emissions). It is mainly intended to be used to analyze the impacts of increased ENERGY STAR sales, and not for Scope 3 reporting. If this tool is used to quantify Scope 3 Use of Sold Product emissions for GHG inventory reporting, results should be verified before reporting.
C11: Instructions for Using Tool
C12: The tool consists of 5 worksheets: - Getting Started: Explains the purpose of the tool, provides instructions for using the tool, provides background on emission scopes, explains methodology for calculating Scope 3 Use of Sold Product emissions, and provides contact info for questions. - Product Emissions Analysis: Shows the Scope 3 Use of Sold Products emissions and emissions savings by ENERGY STAR product category associated with the sale of ENERGY STAR products. For each product category, both lifetime and annual emissions and emissions savings are presented. Lifetime emissions are those that are required to be reported for the Scope 3 Use of Sold Products category. Annual emissions are shown in case retailers are interested in seeing emissions on an annual basis. Emissions savings estimates show retailers the GHG savings associated with current or increased ENERGY STAR sales. - Summary Results: Summarizes the results of the product emissions analysis across all ENERGY STAR product categories. The first "Results" section (Scope 3 Use of Sold Products) summarizes the impacts of selling more ENERGY STAR products on the Scope 3 Use of Sold Products category only. The second "Results" section (GHG Inventory) is optional. If you have estimates of your Scope 1 and 2 emissions as well as other Scope 3 categories, entering them in this section will let you see the impact of selling more ENERGY STAR Products on your GHG inventory. - Summary Results - Figures: Illustrates the change in Scope 3 Use of Sold Products emissions when selling more ENERGY STAR products. - Product Data and EFs: Presents the Scope 3 Use of Sold Products emission factors used in the analysis as well as the data used to produce these factors (i.e., Scope 1 and 2 emissions factors and product energy use data).
C13: Follow these steps to use the tool: (1) On the "Product Emissions Analysis" worksheet, enter 'Total Unit Sales,' 'Percent of Current Sales that are ENERGY STAR,' and a 'Higher % of Sales that are ENERGY STAR for Analysis' for each product category/product type that applies to your business. Note: yellow cells indicate that you should enter data. Green cells indicate that a value is calculated based on the data entered. For each product category/type that you enter data, you will see the lifetime and annual Scope 3 Use of Sold Product emissions asscociated with current ENERGY STAR sales and increased ENERGY STAR sales. You will also see lifetime and annual emissions savings achieved through the current and increased sale of ENERGY STAR products (compared to a baseline of only selling standard products). (2) Once you are done entering data, you can see a summary of results across all product categories on the "Summary Results" worksheet. The first "Results" section (Scope 3 Use of Sold Products) summarizes the impacts of selling more ENERGY STAR products on the Scope 3 Use of Sold Products category only. The second "Results" section (GHG Inventory) is optional. If you have estimates of your Scope 1 and 2 emissions as well as other Scope 3 categories, entering them in this section will let you see the impact of selling more ENERGY STAR Products on your GHG inventory. You can also see the results depicted visually with several charts on the "Summary Results - Figures" worksheet. (3) For reference, the "Product Data and EFs" worksheet presents the emissions factors and product data used in the calculations.
C14: Overview of Scope 1, 2, and 3 Emissions
C15: There are 2 types of GHG emissions, direct and indirect. - Direct GHG emissions are emissions from sources that are owned or controlled by the company, such as burning natural gas for heat, or gasoline used in vehicles. - Indirect GHG emissions are emissions that are a consequence of the activities of the company but occur at sources owned or controlled by another company (such as a utility). The emissions from the electricity purchased is the main source of indirect emissions. GHG emissions are broken down into three scopes, to avoid double counting between organizations: - Scope 1 emissions are direct emissions from operations that are owned or controlled by the reporting company. This is natural gas, gasoline from company owned vehicles, or diesel used in backup generators. Indirect GHG emissions are broken down into 2 scopes: - Scope 2 emissions from the generation of purchased or acquired electricity, steam, heating or cooling consumed by the reporting company. - Scope 3 emissions are all remaining indirect emissions from an organization’s value chain, such as emissions from purchased products and services, emissions from the use of the products the organization sells, employee commuting, business travel, and others.
D44: Source: Graphic originally developed by the GHG Protocol and adapted by EPA
C45: Methodology for Calculating Emissions - Scope 3, Category 11: Use of Sold Products
C46: The methodology for calculating the emissions from Scope 3, Category 11: Use of Sold Products was developed by the GHG Protocol:
C47: Technical Guidance for Calculating Scope 3 Emissions (version 1.0), https://ghgprotocol.org/sites/default/files/standards/Scope3_Calculation_Guidance_0.pdf
C48: The methodology calls for calculating the GHG emissions resulting from the use of a sold product over its lifetime. Sources of emissions include electricity use, fuel use, and refrigerant leakage.
C49: Assumptions Used in This Tool: - This tool analyzes emissions from products contained in the ENERGY STAR Certified Products 2020 Data Book. All product data comes from the Databook. - Using lifecycle emission factors (scope 3) to calculate category 11 emissions is preferred but not common. Using scope 1 and 2 emissions to develop category 11 emissions is acceptable and more common at this time (scope 1 and 2 factors are more readily available and easier to use). As such, this tool only uses the scope 1 emission factors for fuel use (natural gas and heating oil) and the scope 2 factor for electricity use (eGRID U.S. Average). The emissions factors for fuel use only account for the emissions associated with combusting the fuel and not those that occur from the extraction, processing, and transmission/distribution of the fuel; the emission factor for electricity only accounts for the emissions associated with generating electricity at the plant, and not those that occur from the extraction, processing, and transmission/distribution of fuels used, or those associated with the transmission/distribution losses between the plant and the end user. - The tool does not account for refrigerant leakage. It is assumed that all modern appliances that use refrigerant are designed not to leak over their useful life. - eGRID's U.S. Average emission factor is used for electricity (ideally, if known, retailers should use the emission factor for the eGRID region in which the product will be used). - Emission factors for natural gas and heating oil are from U.S. EPA GHG Emission Factors Hub (https://www.epa.gov/climateleadership/center-corporate-climate-leadership-ghg-emission-factors-hub). - Global warming potentials used are from IPCC's Fourth Assessment Report, 2007 (AR4) which align with other EPA products and the U.S. GHG Inventory.
C50: - Emissions savings presented on the "Product Emissions Analysis," Summary Results," and "Summary Results-Figures" worksheets were determined by calculating the emissions that would have occurred if you did not sell any ENERGY STAR products (and instead sold all standard products), and then subtracting from that the actual emissions associated with your product sales (i.e., those that include ENERGY STAR product sales). For all product categories except lightbulbs the lifetimes of ENERGY STAR products and their standard counterparts are the same. For lightbulbs, because halogens have a much shorter lifespan than LEDs or CFLs (0.9 years to 13.7 years and 9.1 years, respectively), lifetime emissions savings are determined by scaling up the number of halogens to match the lifetimes of LEDs and CFLs. For LEDs the scale up factor is 15.2 (13.7/0.9=15.2) and for CFLs the scale up factor is 10.1 (9.1/0.9=10.1). In other words, over the lifetime of a single LED bulb, 15.2 halogens would need to be purchased; and over the lifetime of a single CFL bulb, 10.1 halogens would need to be purchased.
C51: Questions?
C52: Contact Dan Cronin, EPA ENERGY STAR Program
C53: Cronin.Daniel@epa.gov
C54: Mobile: (202) 809-6530

Sheet Product Emissions Analysis
C2: Scope 3 Use of Sold Products Emissions Analysis
C3: For each Product Category, enter current total sales and % of current sales that are ENERGY STAR for each product type, as applicable (in yellow cells). Also enter a new, higher percentage of ENERGY STAR sales to see the Scope 3 Use of Sold Products emissions reductions achieved with increased ENERGY STAR sales (see the Summary Results worksheet for results across all product categories). For each product category, both lifetime and annual emissions are presented. Lifetime emissions are those that are required to be reported for the Scope 3 Use of Sold Products category. Annual emissions are shown in case retailers are interested in seeing emissions on an annual basis.
D4: Analysis Time Period (Optional) | F4: Enter period over which sales take place. Annual value is recommended (e.g., 2021). This is just for reference and doesn't affect any calculations.
D9: Residential Appliances
D11: Lifetime
H13: Current | N13: Increased ENERGY STAR Sales
D14: Product Type | E14: Total Unit Sales | F14: % of Current Sales that are ENERGY STAR | G14: Enter a Higher % of Sales that are ENERGY STAR for Analysis | H14: Total ENERGY STAR Product Sales | I14: Total Standard Product Sales | J14: Lifetime Product Use Emissions - ENERGY STAR (Metric Tons CO2e) | K14: Lifetime Product Use Emissions - Standard (Metric Tons CO2e) | L14: Lifetime Total Product Use Emissions (Metric Tons CO2e) | M14: Lifetime Emissions Savings from ENERGY STAR Product Sales (Metric Tons CO2e) | N14: Total ENERGY STAR Product Sales | O14: Total Standard Product Sales | P14: Lifetime Product Use Emissions - ENERGY STAR (Metric Tons CO2e) | Q14: Lifetime Product Use Emissions - Standard (Metric Tons CO2e) | R14: Lifetime Total Product Use Emissions (Metric Tons CO2e) | S14: Lifetime Emissions Savings from ENERGY STAR Product Sales (Metric Tons CO2e) | T14: Additional Lifetime Emissions Savings Achieved with Increased ENERGY STAR Sales (Metric Tons CO2e)
D15: Room Air Conditioners | H15: =IF(F15="",0,ROUND(E15*F15,0)) -> 0 | I15: =IF(F15="",0,E15-H15) -> 0 | J15: =IF(H15=0,0,H15*'Product Data and EFs'!L23/1000) -> 0 | K15: =IF(I15=0,0,I15*'Product Data and EFs'!K23/1000) -> 0 | L15: =IF(F15="",0,SUM(J15:K15)) -> 0 | M15: =IF(L15=0,0,(E15*'Product Data and EFs'!K23/1000-'Product Emissions Analysis'!L15)) -> 0 | N15: =IF(G15="",0,ROUND(E15*G15,0)) -> 0 | O15: =IF(G15="",0,E15-N15) -> 0 | P15: =IF(N15=0,0,N15*'Product Data and EFs'!L23/1000) -> 0 | Q15: =IF(O15=0,0,O15*'Product Data and EFs'!K23/1000) -> 0 | R15: =IF(G15="",0,SUM(P15:Q15)) -> 0 | S15: =IF(R15=0,0,(E15*'Product Data and EFs'!K23/1000-'Product Emissions Analysis'!R15)) -> 0 | T15: =IF(G15="",0,L15-R15) -> 0
D16: Dehumidifiers | H16: =IF(F16="",0,ROUND(E16*F16,0)) -> 0 | I16: =IF(F16="",0,E16-H16) -> 0 | J16: =IF(H16=0,0,H16*'Product Data and EFs'!L24/1000) -> 0 | K16: =IF(I16=0,0,I16*'Product Data and EFs'!K24/1000) -> 0 | L16: =IF(F16="",0,SUM(J16:K16)) -> 0 | M16: =IF(L16=0,0,(E16*'Product Data and EFs'!K24/1000-'Product Emissions Analysis'!L16)) -> 0 | N16: =IF(G16="",0,ROUND(E16*G16,0)) -> 0 | O16: =IF(G16="",0,E16-N16) -> 0 | P16: =IF(N16=0,0,N16*'Product Data and EFs'!L24/1000) -> 0 | Q16: =IF(O16=0,0,O16*'Product Data and EFs'!K24/1000) -> 0 | R16: =IF(G16="",0,SUM(P16:Q16)) -> 0 | S16: =IF(R16=0,0,(E16*'Product Data and EFs'!K24/1000-'Product Emissions Analysis'!R16)) -> 0 | T16: =IF(G16="",0,L16-R16) -> 0
D17: Air Cleaners | H17: 0 | I17: 0 | J17: =IF(H17=0,0,H17*'Product Data and EFs'!L25/1000) -> 0 | K17: =IF(I17=0,0,I17*'Product Data and EFs'!K25/1000) -> 0 | L17: 0 | M17: =IF(L17=0,0,(E17*'Product Data and EFs'!K25/1000-'Product Emissions Analysis'!L17)) -> 0 | N17: 0 | O17: 0 | P17: =IF(N17=0,0,N17*'Product Data and EFs'!L25/1000) -> 0 | Q17: =IF(O17=0,0,O17*'Product Data and EFs'!K25/1000) -> 0 | R17: 0 | S17: =IF(R17=0,0,(E17*'Product Data and EFs'!K25/1000-'Product Emissions Analysis'!R17)) -> 0 | T17: 0
D18: Ventilating Fans - Bathroom Fans | H18: 0 | I18: 0 | J18: =IF(H18=0,0,H18*'Product Data and EFs'!L26/1000) -> 0 | K18: =IF(I18=0,0,I18*'Product Data and EFs'!K26/1000) -> 0 | L18: 0 | M18: =IF(L18=0,0,(E18*'Product Data and EFs'!K26/1000-'Product Emissions Analysis'!L18)) -> 0 | N18: 0 | O18: 0 | P18: =IF(N18=0,0,N18*'Product Data and EFs'!L26/1000) -> 0 | Q18: =IF(O18=0,0,O18*'Product Data and EFs'!K26/1000) -> 0 | R18: 0 | S18: =IF(R18=0,0,(E18*'Product Data and EFs'!K26/1000-'Product Emissions Analysis'!R18)) -> 0 | T18: 0
D19: Ventilating Fans - Inline Fans | H19: 0 | I19: 0 | J19: =IF(H19=0,0,H19*'Product Data and EFs'!L27/1000) -> 0 | K19: =IF(I19=0,0,I19*'Product Data and EFs'!K27/1000) -> 0 | L19: 0 | M19: =IF(L19=0,0,(E19*'Product Data and EFs'!K27/1000-'Product Emissions Analysis'!L19)) -> 0 | N19: 0 | O19: 0 | P19: =IF(N19=0,0,N19*'Product Data and EFs'!L27/1000) -> 0 | Q19: =IF(O19=0,0,O19*'Product Data and EFs'!K27/1000) -> 0 | R19: 0 | S19: =IF(R19=0,0,(E19*'Product Data and EFs'!K27/1000-'Product Emissions Analysis'!R19)) -> 0 | T19: 0
D20: Ventilating Fans - Range Hoods | H20: 0 | I20: 0 | J20: =IF(H20=0,0,H20*'Product Data and EFs'!L28/1000) -> 0 | K20: =IF(I20=0,0,I20*'Product Data and EFs'!K28/1000) -> 0 | L20: 0 | M20: =IF(L20=0,0,(E20*'Product Data and EFs'!K28/1000-'Product Emissions Analysis'!L20)) -> 0 | N20: 0 | O20: 0 | P20: =IF(N20=0,0,N20*'Product Data and EFs'!L28/1000) -> 0 | Q20: =IF(O20=0,0,O20*'Product Data and EFs'!K28/1000) -> 0 | R20: 0 | S20: =IF(R20=0,0,(E20*'Product Data and EFs'!K28/1000-'Product Emissions Analysis'!R20)) -> 0 | T20: 0
D21: Standard Ceiling Fan | H21: 0 | I21: 0 | J21: =IF(H21=0,0,H21*'Product Data and EFs'!L29/1000) -> 0 | K21: =IF(I21=0,0,I21*'Product Data and EFs'!K29/1000) -> 0 | L21: 0 | M21: =IF(L21=0,0,(E21*'Product Data and EFs'!K29/1000-'Product Emissions Analysis'!L21)) -> 0 | N21: 0 | O21: 0 | P21: =IF(N21=0,0,N21*'Product Data and EFs'!L29/1000) -> 0 | Q21: =IF(O21=0,0,O21*'Product Data and EFs'!K29/1000) -> 0 | R21: 0 | S21: =IF(R21=0,0,(E21*'Product Data and EFs'!K29/1000-'Product Emissions Analysis'!R21)) -> 0 | T21: 0
D22: Hugger Ceiling Fan | H22: 0 | I22: 0 | J22: =IF(H22=0,0,H22*'Product Data and EFs'!L30/1000) -> 0 | K22: =IF(I22=0,0,I22*'Product Data and EFs'!K30/1000) -> 0 | L22: 0 | M22: =IF(L22=0,0,(E22*'Product Data and EFs'!K30/1000-'Product Emissions Analysis'!L22)) -> 0 | N22: 0 | O22: 0 | P22: =IF(N22=0,0,N22*'Product Data and EFs'!L30/1000) -> 0 | Q22: =IF(O22=0,0,O22*'Product Data and EFs'!K30/1000) -> 0 | R22: 0 | S22: =IF(R22=0,0,(E22*'Product Data and EFs'!K30/1000-'Product Emissions Analysis'!R22)) -> 0 | T22: 0
D23: Standard Ceiling Fan with Light Kit | H23: 0 | I23: 0 | J23: =IF(H23=0,0,H23*'Product Data and EFs'!L31/1000) -> 0 | K23: =IF(I23=0,0,I23*'Product Data and EFs'!K31/1000) -> 0 | L23: 0 | M23: =IF(L23=0,0,(E23*'Product Data and EFs'!K31/1000-'Product Emissions Analysis'!L23)) -> 0 | N23: 0 | O23: 0 | P23: =IF(N23=0,0,N23*'Product Data and EFs'!L31/1000) -> 0 | Q23: =IF(O23=0,0,O23*'Product Data and EFs'!K31/1000) -> 0 | R23: 0 | S23: =IF(R23=0,0,(E23*'Product Data and EFs'!K31/1000-'Product Emissions Analysis'!R23)) -> 0 | T23: 0
D24: Hugger Ceiling Fan with Light Kit | H24: 0 | I24: 0 | J24: =IF(H24=0,0,H24*'Product Data and EFs'!L32/1000) -> 0 | K24: =IF(I24=0,0,I24*'Product Data and EFs'!K32/1000) -> 0 | L24: 0 | M24: =IF(L24=0,0,(E24*'Product Data and EFs'!K32/1000-'Product Emissions Analysis'!L24)) -> 0 | N24: 0 | O24: 0 | P24: =IF(N24=0,0,N24*'Product Data and EFs'!L32/1000) -> 0 | Q24: =IF(O24=0,0,O24*'Product Data and EFs'!K32/1000) -> 0 | R24: 0 | S24: =IF(R24=0,0,(E24*'Product Data and EFs'!K32/1000-'Product Emissions Analysis'!R24)) -> 0 | T24: 0
D25: Dishwashers - Standard | H25: 0 | I25: 0 | J25: =IF(H25=0,0,H25*'Product Data and EFs'!L33/1000) -> 0 | K25: =IF(I25=0,0,I25*'Product Data and EFs'!K33/1000) -> 0 | L25: 0 | M25: =IF(L25=0,0,(E25*'Product Data and EFs'!K33/1000-'Product Emissions Analysis'!L25)) -> 0 | N25: 0 | O25: 0 | P25: =IF(N25=0,0,N25*'Product Data and EFs'!L33/1000) -> 0 | Q25: =IF(O25=0,0,O25*'Product Data and EFs'!K33/1000) -> 0 | R25: 0 | S25: =IF(R25=0,0,(E25*'Product Data and EFs'!K33/1000-'Product Emissions Analysis'!R25)) -> 0 | T25: 0
D26: Dishwashers - Compact | H26: 0 | I26: 0 | J26: =IF(H26=0,0,H26*'Product Data and EFs'!L34/1000) -> 0 | K26: =IF(I26=0,0,I26*'Product Data and EFs'!K34/1000) -> 0 | L26: 0 | M26: =IF(L26=0,0,(E26*'Product Data and EFs'!K34/1000-'Product Emissions Analysis'!L26)) -> 0 | N26: 0 | O26: 0 | P26: =IF(N26=0,0,N26*'Product Data and EFs'!L34/1000) -> 0 | Q26: =IF(O26=0,0,O26*'Product Data and EFs'!K34/1000) -> 0 | R26: 0 | S26: =IF(R26=0,0,(E26*'Product Data and EFs'!K34/1000-'Product Emissions Analysis'!R26)) -> 0 | T26: 0
D27: Refrigerators - Top Freezer | H27: 0 | I27: 0 | J27: =IF(H27=0,0,H27*'Product Data and EFs'!L35/1000) -> 0 | K27: =IF(I27=0,0,I27*'Product Data and EFs'!K35/1000) -> 0 | L27: 0 | M27: =IF(L27=0,0,(E27*'Product Data and EFs'!K35/1000-'Product Emissions Analysis'!L27)) -> 0 | N27: 0 | O27: 0 | P27: =IF(N27=0,0,N27*'Product Data and EFs'!L35/1000) -> 0 | Q27: =IF(O27=0,0,O27*'Product Data and EFs'!K35/1000) -> 0 | R27: 0 | S27: =IF(R27=0,0,(E27*'Product Data and EFs'!K35/1000-'Product Emissions Analysis'!R27)) -> 0 | T27: 0
D28: Refrigerators - Bottom Freezer | H28: 0 | I28: 0 | J28: =IF(H28=0,0,H28*'Product Data and EFs'!L36/1000) -> 0 | K28: =IF(I28=0,0,I28*'Product Data and EFs'!K36/1000) -> 0 | L28: 0 | M28: =IF(L28=0,0,(E28*'Product Data and EFs'!K36/1000-'Product Emissions Analysis'!L28)) -> 0 | N28: 0 | O28: 0 | P28: =IF(N28=0,0,N28*'Product Data and EFs'!L36/1000) -> 0 | Q28: =IF(O28=0,0,O28*'Product Data and EFs'!K36/1000) -> 0 | R28: 0 | S28: =IF(R28=0,0,(E28*'Product Data and EFs'!K36/1000-'Product Emissions Analysis'!R28)) -> 0 | T28: 0
D29: Refrigerators - Side by Side | H29: 0 | I29: 0 | J29: =IF(H29=0,0,H29*'Product Data and EFs'!L37/1000) -> 0 | K29: =IF(I29=0,0,I29*'Product Data and EFs'!K37/1000) -> 0 | L29: 0 | M29: =IF(L29=0,0,(E29*'Product Data and EFs'!K37/1000-'Product Emissions Analysis'!L29)) -> 0 | N29: 0 | O29: 0 | P29: =IF(N29=0,0,N29*'Product Data and EFs'!L37/1000) -> 0 | Q29: =IF(O29=0,0,O29*'Product Data and EFs'!K37/1000) -> 0 | R29: 0 | S29: =IF(R29=0,0,(E29*'Product Data and EFs'!K37/1000-'Product Emissions Analysis'!R29)) -> 0 | T29: 0
D30: Freezers - Chest Freezer | H30: 0 | I30: 0 | J30: =IF(H30=0,0,H30*'Product Data and EFs'!L38/1000) -> 0 | K30: =IF(I30=0,0,I30*'Product Data and EFs'!K38/1000) -> 0 | L30: 0 | M30: =IF(L30=0,0,(E30*'Product Data and EFs'!K38/1000-'Product Emissions Analysis'!L30)) -> 0 | N30: 0 | O30: 0 | P30: =IF(N30=0,0,N30*'Product Data and EFs'!L38/1000) -> 0 | Q30: =IF(O30=0,0,O30*'Product Data and EFs'!K38/1000) -> 0 | R30: 0 | S30: =IF(R30=0,0,(E30*'Product Data and EFs'!K38/1000-'Product Emissions Analysis'!R30)) -> 0 | T30: 0
D31: Freezers - Upright Freezer | H31: 0 | I31: 0 | J31: =IF(H31=0,0,H31*'Product Data and EFs'!L39/1000) -> 0 | K31: =IF(I31=0,0,I31*'Product Data and EFs'!K39/1000) -> 0 | L31: 0 | M31: =IF(L31=0,0,(E31*'Product Data and EFs'!K39/1000-'Product Emissions Analysis'!L31)) -> 0 | N31: 0 | O31: 0 | P31: =IF(N31=0,0,N31*'Product Data and EFs'!L39/1000) -> 0 | Q31: =IF(O31=0,0,O31*'Product Data and EFs'!K39/1000) -> 0 | R31: 0 | S31: =IF(R31=0,0,(E31*'Product Data and EFs'!K39/1000-'Product Emissions Analysis'!R31)) -> 0 | T31: 0
D32: Clothes Washers - Top Loading | H32: 0 | I32: 0 | J32: =IF(H32=0,0,H32*'Product Data and EFs'!L40/1000) -> 0 | K32: =IF(I32=0,0,I32*'Product Data and EFs'!K40/1000) -> 0 | L32: 0 | M32: =IF(L32=0,0,(E32*'Product Data and EFs'!K40/1000-'Product Emissions Analysis'!L32)) -> 0 | N32: 0 | O32: 0 | P32: =IF(N32=0,0,N32*'Product Data and EFs'!L40/1000) -> 0 | Q32: =IF(O32=0,0,O32*'Product Data and EFs'!K40/1000) -> 0 | R32: 0 | S32: =IF(R32=0,0,(E32*'Product Data and EFs'!K40/1000-'Product Emissions Analysis'!R32)) -> 0 | T32: 0
D33: Clothes Washers - Front Loading | H33: 0 | I33: 0 | J33: =IF(H33=0,0,H33*'Product Data and EFs'!L41/1000) -> 0 | K33: =IF(I33=0,0,I33*'Product Data and EFs'!K41/1000) -> 0 | L33: 0 | M33: =IF(L33=0,0,(E33*'Product Data and EFs'!K41/1000-'Product Emissions Analysis'!L33)) -> 0 | N33: 0 | O33: 0 | P33: =IF(N33=0,0,N33*'Product Data and EFs'!L41/1000) -> 0 | Q33: =IF(O33=0,0,O33*'Product Data and EFs'!K41/1000) -> 0 | R33: 0 | S33: =IF(R33=0,0,(E33*'Product Data and EFs'!K41/1000-'Product Emissions Analysis'!R33)) -> 0 | T33: 0
D34: Clothes Dryers - Standard Electric Dryer (Vented/Ventless) | H34: 0 | I34: 0 | J34: =IF(H34=0,0,H34*'Product Data and EFs'!L42/1000) -> 0 | K34: =IF(I34=0,0,I34*'Product Data and EFs'!K42/1000) -> 0 | L34: 0 | M34: =IF(L34=0,0,(E34*'Product Data and EFs'!K42/1000-'Product Emissions Analysis'!L34)) -> 0 | N34: 0 | O34: 0 | P34: =IF(N34=0,0,N34*'Product Data and EFs'!L42/1000) -> 0 | Q34: =IF(O34=0,0,O34*'Product Data and EFs'!K42/1000) -> 0 | R34: 0 | S34: =IF(R34=0,0,(E34*'Product Data and EFs'!K42/1000-'Product Emissions Analysis'!R34)) -> 0 | T34: 0
D35: Clothes Dryers - Gas Dryers | H35: 0 | I35: 0 | J35: =IF(H35=0,0,H35*'Product Data and EFs'!L43/1000) -> 0 | K35: =IF(I35=0,0,I35*'Product Data and EFs'!K43/1000) -> 0 | L35: 0 | M35: =IF(L35=0,0,(E35*'Product Data and EFs'!K43/1000-'Product Emissions Analysis'!L35)) -> 0 | N35: 0 | O35: 0 | P35: =IF(N35=0,0,N35*'Product Data and EFs'!L43/1000) -> 0 | Q35: =IF(O35=0,0,O35*'Product Data and EFs'!K43/1000) -> 0 | R35: 0 | S35: =IF(R35=0,0,(E35*'Product Data and EFs'!K43/1000-'Product Emissions Analysis'!R35)) -> 0 | T35: 0
D36: Water Heaters - Gas Storage Water Heater | H36: 0 | I36: 0 | J36: =IF(H36=0,0,H36*'Product Data and EFs'!L44/1000) -> 0 | K36: =IF(I36=0,0,I36*'Product Data and EFs'!K44/1000) -> 0 | L36: 0 | M36: =IF(L36=0,0,(E36*'Product Data and EFs'!K44/1000-'Product Emissions Analysis'!L36)) -> 0 | N36: 0 | O36: 0 | P36: =IF(N36=0,0,N36*'Product Data and EFs'!L44/1000) -> 0 | Q36: =IF(O36=0,0,O36*'Product Data and EFs'!K44/1000) -> 0 | R36: 0 | S36: =IF(R36=0,0,(E36*'Product Data and EFs'!K44/1000-'Product Emissions Analysis'!R36)) -> 0 | T36: 0
D37: Water Heaters - Electric (Heat Pump) Water Heater | H37: 0 | I37: 0 | J37: =IF(H37=0,0,H37*'Product Data and EFs'!L45/1000) -> 0 | K37: =IF(I37=0,0,I37*'Product Data and EFs'!K45/1000) -> 0 | L37: 0 | M37: =IF(L37=0,0,(E37*'Product Data and EFs'!K45/1000-'Product Emissions Analysis'!L37)) -> 0 | N37: 0 | O37: 0 | P37: =IF(N37=0,0,N37*'Product Data and EFs'!L45/1000) -> 0 | Q37: =IF(O37=0,0,O37*'Product Data and EFs'!K45/1000) -> 0 | R37: 0 | S37: =IF(R37=0,0,(E37*'Product Data and EFs'!K45/1000-'Product Emissions Analysis'!R37)) -> 0 | T37: 0
D38: Water Heaters - Tankless Gas Water Heater | H38: 0 | I38: 0 | J38: =IF(H38=0,0,H38*'Product Data and EFs'!L46/1000) -> 0 | K38: =IF(I38=0,0,I38*'Product Data and EFs'!K46/1000) -> 0 | L38: 0 | M38: =IF(L38=0,0,(E38*'Product Data and EFs'!K46/1000-'Product Emissions Analysis'!L38)) -> 0 | N38: 0 | O38: 0 | P38: =IF(N38=0,0,N38*'Product Data and EFs'!L46/1000) -> 0 | Q38: =IF(O38=0,0,O38*'Product Data and EFs'!K46/1000) -> 0 | R38: 0 | S38: =IF(R38=0,0,(E38*'Product Data and EFs'!K46/1000-'Product Emissions Analysis'!R38)) -> 0 | T38: 0
D39: TOTAL | E39: =SUM(E15:E38) -> 0 | F39: NA | G39: NA | H39: =SUM(H15:H38) -> 0 | I39: 0 | J39: 0 | K39: 0 | L39: 0 | M39: 0 | N39: 0 | O39: 0 | P39: 0 | Q39: 0 | R39: 0 | S39: 0 | T39: 0
D41: Annual
H43: Current | N43: Increased ENERGY STAR Sales
D44: Product Type | E44: Total Unit Sales | F44: % of Current Sales that are ENERGY STAR | G44: Higher % of Sales that are ENERGY STAR for Analysis | H44: Total ENERGY STAR Product Sales | I44: Total Standard Product Sales | J44: Annual Product Use Emissions - ENERGY STAR (Metric Tons CO2e) | K44: Annual Product Use Emissions - Standard (Metric Tons CO2e) | L44: Annual Total Product Use Emissions (Metric Tons CO2e) | M44: Annual Emissions Savings from ENERGY STAR Product Sales (Metric Tons CO2e) | N44: Total ENERGY STAR Product Sales | O44: Total Standard Product Sales | P44: Annual Product Use Emissions - ENERGY STAR (Metric Tons CO2e) | Q44: Annual Product Use Emissions - Standard (Metric Tons CO2e) | R44: Annual Total Product Use Emissions (Metric Tons CO2e) | S44: Annual Emissions Savings from ENERGY STAR Product Sales (Metric Tons CO2e) | T44: Additional Annual Emissions Savings Achieved with Increased ENERGY STAR Sales (Metric Tons CO2e)
D45: Room Air Conditioners | E45: =IF(E15="","",E15) ->  | F45: =IF(F15="","",F15) ->  | G45: =IF(G15="","",G15) ->  | H45: =IF(F45="",0,ROUND(E45*F45,0)) -> 0 | I45: =IF(F45="",0,E45-H45) -> 0 | J45: =IF(H45=0,0,H45*'Product Data and EFs'!L23/1000/'Product Data and EFs'!F23) -> 0 | K45: =IF(I45=0,0,I45*'Product Data and EFs'!K23/1000/'Product Data and EFs'!F23) -> 0 | L45: =IF(F45="",0,SUM(J45:K45)) -> 0 | M45: =IF(L45=0,0,(E45*'Product Data and EFs'!K23/1000/'Product Data and EFs'!F23-'Product Emissions Analysis'!L45)) -> 0 | N45: =IF(G45="",0,ROUND(E45*G45,0)) -> 0 | O45: =IF(G45="",0,E45-N45) -> 0 | P45: =IF(N45=0,0,N45*'Product Data and EFs'!L23/1000/'Product Data and EFs'!F23) -> 0 | Q45: =IF(O45=0,0,O45*'Product Data and EFs'!K23/1000/'Product Data and EFs'!F23) -> 0 | R45: =IF(G45="",0,SUM(P45:Q45)) -> 0 | S45: =IF(R45=0,0,(E45*'Product Data and EFs'!K23/1000/'Product Data and EFs'!F23-'Product Emissions Analysis'!R45)) -> 0 | T45: =IF(G45="",0,L45-R45) -> 0
D46: Dehumidifiers | E46: =IF(E16="","",E16) ->  | H46: =IF(F46="",0,ROUND(E46*F46,0)) -> 0 | I46: =IF(F46="",0,E46-H46) -> 0 | J46: =IF(H46=0,0,H46*'Product Data and EFs'!L24/1000/'Product Data and EFs'!F24) -> 0 | K46: =IF(I46=0,0,I46*'Product Data and EFs'!K24/1000/'Product Data and EFs'!F24) -> 0 | L46: =IF(F46="",0,SUM(J46:K46)) -> 0 | M46: =IF(L46=0,0,(E46*'Product Data and EFs'!K24/1000/'Product Data and EFs'!F24-'Product Emissions Analysis'!L46)) -> 0 | N46: =IF(G46="",0,ROUND(E46*G46,0)) -> 0 | O46: =IF(G46="",0,E46-N46) -> 0 | P46: =IF(N46=0,0,N46*'Product Data and EFs'!L24/1000/'Product Data and EFs'!F24) -> 0 | Q46: =IF(O46=0,0,O46*'Product Data and EFs'!K24/1000/'Product Data and EFs'!F24) -> 0 | R46: =IF(G46="",0,SUM(P46:Q46)) -> 0 | S46: =IF(R46=0,0,(E46*'Product Data and EFs'!K24/1000/'Product Data and EFs'!F24-'Product Emissions Analysis'!R46)) -> 0 | T46: =IF(G46="",0,L46-R46) -> 0
D47: Air Cleaners | E47: =IF(E17="","",E17) ->  | H47: 0 | I47: 0 | J47: =IF(H47=0,0,H47*'Product Data and EFs'!L25/1000/'Product Data and EFs'!F25) -> 0 | K47: =IF(I47=0,0,I47*'Product Data and EFs'!K25/1000/'Product Data and EFs'!F25) -> 0 | L47: 0 | M47: =IF(L47=0,0,(E47*'Product Data and EFs'!K25/1000/'Product Data and EFs'!F25-'Product Emissions Analysis'!L47)) -> 0 | N47: 0 | O47: 0 | P47: =IF(N47=0,0,N47*'Product Data and EFs'!L25/1000/'Product Data and EFs'!F25) -> 0 | Q47: =IF(O47=0,0,O47*'Product Data and EFs'!K25/1000/'Product Data and EFs'!F25) -> 0 | R47: 0 | S47: =IF(R47=0,0,(E47*'Product Data and EFs'!K25/1000/'Product Data and EFs'!F25-'Product Emissions Analysis'!R47)) -> 0 | T47: 0
D48: Ventilating Fans - Bathroom Fans | E48: =IF(E18="","",E18) ->  | H48: 0 | I48: 0 | J48: =IF(H48=0,0,H48*'Product Data and EFs'!L26/1000/'Product Data and EFs'!F26) -> 0 | K48: =IF(I48=0,0,I48*'Product Data and EFs'!K26/1000/'Product Data and EFs'!F26) -> 0 | L48: 0 | M48: =IF(L48=0,0,(E48*'Product Data and EFs'!K26/1000/'Product Data and EFs'!F26-'Product Emissions Analysis'!L48)) -> 0 | N48: 0 | O48: 0 | P48: =IF(N48=0,0,N48*'Product Data and EFs'!L26/1000/'Product Data and EFs'!F26) -> 0 | Q48: =IF(O48=0,0,O48*'Product Data and EFs'!K26/1000/'Product Data and EFs'!F26) -> 0 | R48: 0 | S48: =IF(R48=0,0,(E48*'Product Data and EFs'!K26/1000/'Product Data and EFs'!F26-'Product Emissions Analysis'!R48)) -> 0 | T48: 0
D49: Ventilating Fans - Inline Fans | E49: =IF(E19="","",E19) ->  | H49: 0 | I49: 0 | J49: =IF(H49=0,0,H49*'Product Data and EFs'!L27/1000/'Product Data and EFs'!F27) -> 0 | K49: =IF(I49=0,0,I49*'Product Data and EFs'!K27/1000/'Product Data and EFs'!F27) -> 0 | L49: 0 | M49: =IF(L49=0,0,(E49*'Product Data and EFs'!K27/1000/'Product Data and EFs'!F27-'Product Emissions Analysis'!L49)) -> 0 | N49: 0 | O49: 0 | P49: =IF(N49=0,0,N49*'Product Data and EFs'!L27/1000/'Product Data and EFs'!F27) -> 0 | Q49: =IF(O49=0,0,O49*'Product Data and EFs'!K27/1000/'Product Data and EFs'!F27) -> 0 | R49: 0 | S49: =IF(R49=0,0,(E49*'Product Data and EFs'!K27/1000/'Product Data and EFs'!F27-'Product Emissions Analysis'!R49)) -> 0 | T49: 0
D50: Ventilating Fans - Range Hoods | E50: =IF(E20="","",E20) ->  | H50: 0 | I50: 0 | J50: =IF(H50=0,0,H50*'Product Data and EFs'!L28/1000/'Product Data and EFs'!F28) -> 0 | K50: =IF(I50=0,0,I50*'Product Data and EFs'!K28/1000/'Product Data and EFs'!F28) -> 0 | L50: 0 | M50: =IF(L50=0,0,(E50*'Product Data and EFs'!K28/1000/'Product Data and EFs'!F28-'Product Emissions Analysis'!L50)) -> 0 | N50: 0 | O50: 0 | P50: =IF(N50=0,0,N50*'Product Data and EFs'!L28/1000/'Product Data and EFs'!F28) -> 0 | Q50: =IF(O50=0,0,O50*'Product Data and EFs'!K28/1000/'Product Data and EFs'!F28) -> 0 | R50: 0 | S50: =IF(R50=0,0,(E50*'Product Data and EFs'!K28/1000/'Product Data and EFs'!F28-'Product Emissions Analysis'!R50)) -> 0 | T50: 0
D51: Standard Ceiling Fan | E51: =IF(E21="","",E21) ->  | H51: 0 | I51: 0 | J51: =IF(H51=0,0,H51*'Product Data and EFs'!L29/1000/'Product Data and EFs'!F29) -> 0 | K51: =IF(I51=0,0,I51*'Product Data and EFs'!K29/1000/'Product Data and EFs'!F29) -> 0 | L51: 0 | M51: =IF(L51=0,0,(E51*'Product Data and EFs'!K29/1000/'Product Data and EFs'!F29-'Product Emissions Analysis'!L51)) -> 0 | N51: 0 | O51: 0 | P51: =IF(N51=0,0,N51*'Product Data and EFs'!L29/1000/'Product Data and EFs'!F29) -> 0 | Q51: =IF(O51=0,0,O51*'Product Data and EFs'!K29/1000/'Product Data and EFs'!F29) -> 0 | R51: 0 | S51: =IF(R51=0,0,(E51*'Product Data and EFs'!K29/1000/'Product Data and EFs'!F29-'Product Emissions Analysis'!R51)) -> 0 | T51: 0
D52: Hugger Ceiling Fan | E52: =IF(E22="","",E22) ->  | H52: 0 | I52: 0 | J52: =IF(H52=0,0,H52*'Product Data and EFs'!L30/1000/'Product Data and EFs'!F30) -> 0 | K52: =IF(I52=0,0,I52*'Product Data and EFs'!K30/1000/'Product Data and EFs'!F30) -> 0 | L52: 0 | M52: =IF(L52=0,0,(E52*'Product Data and EFs'!K30/1000/'Product Data and EFs'!F30-'Product Emissions Analysis'!L52)) -> 0 | N52: 0 | O52: 0 | P52: =IF(N52=0,0,N52*'Product Data and EFs'!L30/1000/'Product Data and EFs'!F30) -> 0 | Q52: =IF(O52=0,0,O52*'Product Data and EFs'!K30/1000/'Product Data and EFs'!F30) -> 0 | R52: 0 | S52: =IF(R52=0,0,(E52*'Product Data and EFs'!K30/1000/'Product Data and EFs'!F30-'Product Emissions Analysis'!R52)) -> 0 | T52: 0
D53: Standard Ceiling Fan with Light Kit | E53: =IF(E23="","",E23) ->  | H53: 0 | I53: 0 | J53: =IF(H53=0,0,H53*'Product Data and EFs'!L31/1000/'Product Data and EFs'!F31) -> 0 | K53: =IF(I53=0,0,I53*'Product Data and EFs'!K31/1000/'Product Data and EFs'!F31) -> 0 | L53: 0 | M53: =IF(L53=0,0,(E53*'Product Data and EFs'!K31/1000/'Product Data and EFs'!F31-'Product Emissions Analysis'!L53)) -> 0 | N53: 0 | O53: 0 | P53: =IF(N53=0,0,N53*'Product Data and EFs'!L31/1000/'Product Data and EFs'!F31) -> 0 | Q53: =IF(O53=0,0,O53*'Product Data and EFs'!K31/1000/'Product Data and EFs'!F31) -> 0 | R53: 0 | S53: =IF(R53=0,0,(E53*'Product Data and EFs'!K31/1000/'Product Data and EFs'!F31-'Product Emissions Analysis'!R53)) -> 0 | T53: 0
D54: Hugger Ceiling Fan with Light Kit | E54: =IF(E24="","",E24) ->  | H54: 0 | I54: 0 | J54: =IF(H54=0,0,H54*'Product Data and EFs'!L32/1000/'Product Data and EFs'!F32) -> 0 | K54: =IF(I54=0,0,I54*'Product Data and EFs'!K32/1000/'Product Data and EFs'!F32) -> 0 | L54: 0 | M54: =IF(L54=0,0,(E54*'Product Data and EFs'!K32/1000/'Product Data and EFs'!F32-'Product Emissions Analysis'!L54)) -> 0 | N54: 0 | O54: 0 | P54: =IF(N54=0,0,N54*'Product Data and EFs'!L32/1000/'Product Data and EFs'!F32) -> 0 | Q54: =IF(O54=0,0,O54*'Product Data and EFs'!K32/1000/'Product Data and EFs'!F32) -> 0 | R54: 0 | S54: =IF(R54=0,0,(E54*'Product Data and EFs'!K32/1000/'Product Data and EFs'!F32-'Product Emissions Analysis'!R54)) -> 0 | T54: 0
D55: Dishwashers - Standard | E55: =IF(E25="","",E25) ->  | H55: 0 | I55: 0 | J55: =IF(H55=0,0,H55*'Product Data and EFs'!L33/1000/'Product Data and EFs'!F33) -> 0 | K55: =IF(I55=0,0,I55*'Product Data and EFs'!K33/1000/'Product Data and EFs'!F33) -> 0 | L55: 0 | M55: =IF(L55=0,0,(E55*'Product Data and EFs'!K33/1000/'Product Data and EFs'!F33-'Product Emissions Analysis'!L55)) -> 0 | N55: 0 | O55: 0 | P55: =IF(N55=0,0,N55*'Product Data and EFs'!L33/1000/'Product Data and EFs'!F33) -> 0 | Q55: =IF(O55=0,0,O55*'Product Data and EFs'!K33/1000/'Product Data and EFs'!F33) -> 0 | R55: 0 | S55: =IF(R55=0,0,(E55*'Product Data and EFs'!K33/1000/'Product Data and EFs'!F33-'Product Emissions Analysis'!R55)) -> 0 | T55: 0
D56: Dishwashers - Compact | E56: =IF(E26="","",E26) ->  | H56: 0 | I56: 0 | J56: =IF(H56=0,0,H56*'Product Data and EFs'!L34/1000/'Product Data and EFs'!F34) -> 0 | K56: =IF(I56=0,0,I56*'Product Data and EFs'!K34/1000/'Product Data and EFs'!F34) -> 0 | L56: 0 | M56: =IF(L56=0,0,(E56*'Product Data and EFs'!K34/1000/'Product Data and EFs'!F34-'Product Emissions Analysis'!L56)) -> 0 | N56: 0 | O56: 0 | P56: =IF(N56=0,0,N56*'Product Data and EFs'!L34/1000/'Product Data and EFs'!F34) -> 0 | Q56: =IF(O56=0,0,O56*'Product Data and EFs'!K34/1000/'Product Data and EFs'!F34) -> 0 | R56: 0 | S56: =IF(R56=0,0,(E56*'Product Data and EFs'!K34/1000/'Product Data and EFs'!F34-'Product Emissions Analysis'!R56)) -> 0 | T56: 0
D57: Refrigerators - Top Freezer | E57: =IF(E27="","",E27) ->  | H57: 0 | I57: 0 | J57: =IF(H57=0,0,H57*'Product Data and EFs'!L35/1000/'Product Data and EFs'!F35) -> 0 | K57: =IF(I57=0,0,I57*'Product Data and EFs'!K35/1000/'Product Data and EFs'!F35) -> 0 | L57: 0 | M57: =IF(L57=0,0,(E57*'Product Data and EFs'!K35/1000/'Product Data and EFs'!F35-'Product Emissions Analysis'!L57)) -> 0 | N57: 0 | O57: 0 | P57: =IF(N57=0,0,N57*'Product Data and EFs'!L35/1000/'Product Data and EFs'!F35) -> 0 | Q57: =IF(O57=0,0,O57*'Product Data and EFs'!K35/1000/'Product Data and EFs'!F35) -> 0 | R57: 0 | S57: =IF(R57=0,0,(E57*'Product Data and EFs'!K35/1000/'Product Data and EFs'!F35-'Product Emissions Analysis'!R57)) -> 0 | T57: 0
D58: Refrigerators - Bottom Freezer | E58: =IF(E28="","",E28) ->  | H58: 0 | I58: 0 | J58: =IF(H58=0,0,H58*'Product Data and EFs'!L36/1000/'Product Data and EFs'!F36) -> 0 | K58: =IF(I58=0,0,I58*'Product Data and EFs'!K36/1000/'Product Data and EFs'!F36) -> 0 | L58: 0 | M58: =IF(L58=0,0,(E58*'Product Data and EFs'!K36/1000/'Product Data and EFs'!F36-'Product Emissions Analysis'!L58)) -> 0 | N58: 0 | O58: 0 | P58: =IF(N58=0,0,N58*'Product Data and EFs'!L36/1000/'Product Data and EFs'!F36) -> 0 | Q58: =IF(O58=0,0,O58*'Product Data and EFs'!K36/1000/'Product Data and EFs'!F36) -> 0 | R58: 0 | S58: =IF(R58=0,0,(E58*'Product Data and EFs'!K36/1000/'Product Data and EFs'!F36-'Product Emissions Analysis'!R58)) -> 0 | T58: 0
D59: Refrigerators - Side by Side | E59: =IF(E29="","",E29) ->  | H59: 0 | I59: 0 | J59: =IF(H59=0,0,H59*'Product Data and EFs'!L37/1000/'Product Data and EFs'!F37) -> 0 | K59: =IF(I59=0,0,I59*'Product Data and EFs'!K37/1000/'Product Data and EFs'!F37) -> 0 | L59: 0 | M59: =IF(L59=0,0,(E59*'Product Data and EFs'!K37/1000/'Product Data and EFs'!F37-'Product Emissions Analysis'!L59)) -> 0 | N59: 0 | O59: 0 | P59: =IF(N59=0,0,N59*'Product Data and EFs'!L37/1000/'Product Data and EFs'!F37) -> 0 | Q59: =IF(O59=0,0,O59*'Product Data and EFs'!K37/1000/'Product Data and EFs'!F37) -> 0 | R59: 0 | S59: =IF(R59=0,0,(E59*'Product Data and EFs'!K37/1000/'Product Data and EFs'!F37-'Product Emissions Analysis'!R59)) -> 0 | T59: 0
D60: Freezers - Chest Freezer | E60: =IF(E30="","",E30) ->  | H60: 0 | I60: 0 | J60: =IF(H60=0,0,H60*'Product Data and EFs'!L38/1000/'Product Data and EFs'!F38) -> 0 | K60: =IF(I60=0,0,I60*'Product Data and EFs'!K38/1000/'Product Data and EFs'!F38) -> 0 | L60: 0 | M60: =IF(L60=0,0,(E60*'Product Data and EFs'!K38/1000/'Product Data and EFs'!F38-'Product Emissions Analysis'!L60)) -> 0 | N60: 0 | O60: 0 | P60: =IF(N60=0,0,N60*'Product Data and EFs'!L38/1000/'Product Data and EFs'!F38) -> 0 | Q60: =IF(O60=0,0,O60*'Product Data and EFs'!K38/1000/'Product Data and EFs'!F38) -> 0 | R60: 0 | S60: =IF(R60=0,0,(E60*'Product Data and EFs'!K38/1000/'Product Data and EFs'!F38-'Product Emissions Analysis'!R60)) -> 0 | T60: 0
D61: Freezers - Upright Freezer | E61: =IF(E31="","",E31) ->  | H61: 0 | I61: 0 | J61: =IF(H61=0,0,H61*'Product Data and EFs'!L39/1000/'Product Data and EFs'!F39) -> 0 | K61: =IF(I61=0,0,I61*'Product Data and EFs'!K39/1000/'Product Data and EFs'!F39) -> 0 | L61: 0 | M61: =IF(L61=0,0,(E61*'Product Data and EFs'!K39/1000/'Product Data and EFs'!F39-'Product Emissions Analysis'!L61)) -> 0 | N61: 0 | O61: 0 | P61: =IF(N61=0,0,N61*'Product Data and EFs'!L39/1000/'Product Data and EFs'!F39) -> 0 | Q61: =IF(O61=0,0,O61*'Product Data and EFs'!K39/1000/'Product Data and EFs'!F39) -> 0 | R61: 0 | S61: =IF(R61=0,0,(E61*'Product Data and EFs'!K39/1000/'Product Data and EFs'!F39-'Product Emissions Analysis'!R61)) -> 0 | T61: 0
D62: Clothes Washers - Top Loading | E62: =IF(E32="","",E32) ->  | H62: 0 | I62: 0 | J62: =IF(H62=0,0,H62*'Product Data and EFs'!L40/1000/'Product Data and EFs'!F40) -> 0 | K62: =IF(I62=0,0,I62*'Product Data and EFs'!K40/1000/'Product Data and EFs'!F40) -> 0 | L62: 0 | M62: =IF(L62=0,0,(E62*'Product Data and EFs'!K40/1000/'Product Data and EFs'!F40-'Product Emissions Analysis'!L62)) -> 0 | N62: 0 | O62: 0 | P62: =IF(N62=0,0,N62*'Product Data and EFs'!L40/1000/'Product Data and EFs'!F40) -> 0 | Q62: =IF(O62=0,0,O62*'Product Data and EFs'!K40/1000/'Product Data and EFs'!F40) -> 0 | R62: 0 | S62: =IF(R62=0,0,(E62*'Product Data and EFs'!K40/1000/'Product Data and EFs'!F40-'Product Emissions Analysis'!R62)) -> 0 | T62: 0
D63: Clothes Washers - Front Loading | E63: =IF(E33="","",E33) ->  | H63: 0 | I63: 0 | J63: =IF(H63=0,0,H63*'Product Data and EFs'!L41/1000/'Product Data and EFs'!F41) -> 0 | K63: =IF(I63=0,0,I63*'Product Data and EFs'!K41/1000/'Product Data and EFs'!F41) -> 0 | L63: 0 | M63: =IF(L63=0,0,(E63*'Product Data and EFs'!K41/1000/'Product Data and EFs'!F41-'Product Emissions Analysis'!L63)) -> 0 | N63: 0 | O63: 0 | P63: =IF(N63=0,0,N63*'Product Data and EFs'!L41/1000/'Product Data and EFs'!F41) -> 0 | Q63: =IF(O63=0,0,O63*'Product Data and EFs'!K41/1000/'Product Data and EFs'!F41) -> 0 | R63: 0 | S63: =IF(R63=0,0,(E63*'Product Data and EFs'!K41/1000/'Product Data and EFs'!F41-'Product Emissions Analysis'!R63)) -> 0 | T63: 0
D64: Clothes Dryers - Standard Electric Dryer (Vented Ventless) | E64: =IF(E34="","",E34) ->  | H64: 0 | I64: 0 | J64: =IF(H64=0,0,H64*'Product Data and EFs'!L42/1000/'Product Data and EFs'!F42) -> 0 | K64: =IF(I64=0,0,I64*'Product Data and EFs'!K42/1000/'Product Data and EFs'!F42) -> 0 | L64: 0 | M64: =IF(L64=0,0,(E64*'Product Data and EFs'!K42/1000/'Product Data and EFs'!F42-'Product Emissions Analysis'!L64)) -> 0 | N64: 0 | O64: 0 | P64: =IF(N64=0,0,N64*'Product Data and EFs'!L42/1000/'Product Data and EFs'!F42) -> 0 | Q64: =IF(O64=0,0,O64*'Product Data and EFs'!K42/1000/'Product Data and EFs'!F42) -> 0 | R64: 0 | S64: =IF(R64=0,0,(E64*'Product Data and EFs'!K42/1000/'Product Data and EFs'!F42-'Product Emissions Analysis'!R64)) -> 0 | T64: 0
D65: Clothes Dryers - Gas Dryers | E65: =IF(E35="","",E35) ->  | H65: 0 | I65: 0 | J65: =IF(H65=0,0,H65*'Product Data and EFs'!L43/1000/'Product Data and EFs'!F43) -> 0 | K65: =IF(I65=0,0,I65*'Product Data and EFs'!K43/1000/'Product Data and EFs'!F43) -> 0 | L65: 0 | M65: =IF(L65=0,0,(E65*'Product Data and EFs'!K43/1000/'Product Data and EFs'!F43-'Product Emissions Analysis'!L65)) -> 0 | N65: 0 | O65: 0 | P65: =IF(N65=0,0,N65*'Product Data and EFs'!L43/1000/'Product Data and EFs'!F43) -> 0 | Q65: =IF(O65=0,0,O65*'Product Data and EFs'!K43/1000/'Product Data and EFs'!F43) -> 0 | R65: 0 | S65: =IF(R65=0,0,(E65*'Product Data and EFs'!K43/1000/'Product Data and EFs'!F43-'Product Emissions Analysis'!R65)) -> 0 | T65: 0
D66: Water Heaters - Gas Storage Water Heater | E66: =IF(E36="","",E36) ->  | H66: 0 | I66: 0 | J66: =IF(H66=0,0,H66*'Product Data and EFs'!L44/1000/'Product Data and EFs'!F44) -> 0 | K66: =IF(I66=0,0,I66*'Product Data and EFs'!K44/1000/'Product Data and EFs'!F44) -> 0 | L66: 0 | M66: =IF(L66=0,0,(E66*'Product Data and EFs'!K44/1000/'Product Data and EFs'!F44-'Product Emissions Analysis'!L66)) -> 0 | N66: 0 | O66: 0 | P66: =IF(N66=0,0,N66*'Product Data and EFs'!L44/1000/'Product Data and EFs'!F44) -> 0 | Q66: =IF(O66=0,0,O66*'Product Data and EFs'!K44/1000/'Product Data and EFs'!F44) -> 0 | R66: 0 | S66: =IF(R66=0,0,(E66*'Product Data and EFs'!K44/1000/'Product Data and EFs'!F44-'Product Emissions Analysis'!R66)) -> 0 | T66: 0
D67: Water Heaters - Electric (Heat Pump) Water Heater | E67: =IF(E37="","",E37) ->  | H67: 0 | I67: 0 | J67: =IF(H67=0,0,H67*'Product Data and EFs'!L45/1000/'Product Data and EFs'!F45) -> 0 | K67: =IF(I67=0,0,I67*'Product Data and EFs'!K45/1000/'Product Data and EFs'!F45) -> 0 | L67: 0 | M67: =IF(L67=0,0,(E67*'Product Data and EFs'!K45/1000/'Product Data and EFs'!F45-'Product Emissions Analysis'!L67)) -> 0 | N67: 0 | O67: 0 | P67: =IF(N67=0,0,N67*'Product Data and EFs'!L45/1000/'Product Data and EFs'!F45) -> 0 | Q67: =IF(O67=0,0,O67*'Product Data and EFs'!K45/1000/'Product Data and EFs'!F45) -> 0 | R67: 0 | S67: =IF(R67=0,0,(E67*'Product Data and EFs'!K45/1000/'Product Data and EFs'!F45-'Product Emissions Analysis'!R67)) -> 0 | T67: 0
D68: Water Heaters - Tankless Gas Water Heater | E68: =IF(E38="","",E38) ->  | H68: 0 | I68: 0 | J68: =IF(H68=0,0,H68*'Product Data and EFs'!L46/1000/'Product Data and EFs'!F46) -> 0 | K68: =IF(I68=0,0,I68*'Product Data and EFs'!K46/1000/'Product Data and EFs'!F46) -> 0 | L68: 0 | M68: =IF(L68=0,0,(E68*'Product Data and EFs'!K46/1000/'Product Data and EFs'!F46-'Product Emissions Analysis'!L68)) -> 0 | N68: 0 | O68: 0 | P68: =IF(N68=0,0,N68*'Product Data and EFs'!L46/1000/'Product Data and EFs'!F46) -> 0 | Q68: =IF(O68=0,0,O68*'Product Data and EFs'!K46/1000/'Product Data and EFs'!F46) -> 0 | R68: 0 | S68: =IF(R68=0,0,(E68*'Product Data and EFs'!K46/1000/'Product Data and EFs'!F46-'Product Emissions Analysis'!R68)) -> 0 | T68: 0
D69: TOTAL | H69: =SUM(H45:H68) -> 0 | I69: 0 | J69: 0 | K69: 0 | L69: 0 | M69: 0 | N69: 0 | O69: 0 | P69: 0 | Q69: 0 | R69: 0 | S69: 0 | T69: 0
D73: Residential Lighting
D75: NOTE: LIGHTBULBS ARE A UNIQUE PRODUCT TYPE WITH RESPECT TO SCOPE 3 USE OF SOLD PRODUCT REPORTING. RESULTS SEEN WILL DIFFER FROM OTHER PRODUCT TYPES IN THIS TOOL. - Because LEDs and CFLs have longer lifetimes than halogens (13.7 years, 9.1 years, 0.9 years, respectively), lifetime total product use emissions increase with increased sale of LEDs or CFLs. Retailers must report in their scope 3 inventory actual lifetime emissions associated with the products they sell in the reporting year. However, retailers can consider also reporting annual emissions associated with the lighbulbs they sell (i.e., the emissions that result from sold lightbulbs in the reporting year). Annual emissions will decrease with increased sale of LEDs of CFLs. Retailers can additionally report the lifetime and annual emissions savings associated with their LED/CFL sales compared to only selling halogens to demonstrate commitment to decreasing emissions. Lifetime and annual emissions savings will increase with increased sale of LEDs or CFLs. - Lifetime emissions savings from LED/CFL sales shown represent emissions that would occur if a retailer only sold halogens and no LEDs or CFLs. Because halogens have a much shorter lifespan than LEDs or CFLs (0.9 years to 13.7 years and 9.1 years, respectively), lifetime emissions savings are determined by scaling up the number of halogens to match the lifetimes of LEDs and CFLs. For LEDs the scale up factor is 15.2 (13.7/0.9=15.2) and for CFLs the scale up factor is 10.1 (9.1/0.9=10.1). In other words, over the lifetime of a single LED bulb, 15.2 halogens would need to be purchased; and over the lifetime of a single CFL bulb, 10.1 halogens would need to be purchased. Annual emissions savings do not require a scale-up factor.
D78: Lightbulbs
D80: Lifetime | J80: Current | O80: Increased ENERGY STAR Sales
D81: Product Type | E81: Total Unit Sales | F81: % of Current Sales that are LED | G81: % of Current Sales that are CFL | H81: Enter a Higher % of LED Sales for Analysis | I81: Enter New % of CFL Sales for Analysis | J81: Total LED Sales | K81: Total CFL Sales | L81: Total Halogen Sales | M81: Lifetime Total Product Use Emissions (Metric Tons CO2e) | N81: Lifetime Emissions Savings from LED/CFL Product Sales (Metric Tons CO2e) | O81: Total LED Sales | P81: Total CFL Sales | Q81: Total Halogen Sales | R81: Lifetime Total Product Use Emissions (Metric Tons CO2e) | S81: Lifetime Emissions Savings from LED/CFL Product Sales (Metric Tons CO2e) | T81: Additional Lifetime Emissions Savings Achieved with Increased LED/CFL Sales (Metric Tons CO2e)
D82: Lightbulbs | J82: =IF(F82="",0,ROUND(E82*F82,0)) -> 0 | K82: =IF(G82="",0,ROUND(E82*G82,0)) -> 0 | L82: =IF(F82="",0,E82-J82-K82) -> 0 | M82: =IF(J82=0,0,J82*'Product Data and EFs'!H53/1000+'Product Emissions Analysis'!K82*'Product Data and EFs'!H54/1000+'Product Emissions Analysis'!L82*'Product Data and EFs'!H52/1000) -> 0 | N82: =IF(M82=0,0,J82*15.2*'Product Data and EFs'!H52/1000+'Product Emissions Analysis'!K82*10.1*'Product Data and EFs'!H52/1000+'Product Emissions Analysis'!L82*'Product Data and EFs'!H52/1000-'Product Emissions Analysis'!M82) -> 0 | O82: =IF(H82="",0,ROUND(E82*H82,0)) -> 0 | P82: =IF(I82="",0,ROUND(E82*I82,0)) -> 0 | Q82: =IF(H82="",0,E82-O82-P82) -> 0 | R82: =IF(O82=0,0,O82*'Product Data and EFs'!H53/1000+'Product Emissions Analysis'!P82*'Product Data and EFs'!H54/1000+'Product Emissions Analysis'!Q82*'Product Data and EFs'!H52/1000) -> 0 | S82: =IF(R82=0,0,O82*15.2*'Product Data and EFs'!H52/1000+'Product Emissions Analysis'!P82*10.1*'Product Data and EFs'!H52/1000+'Product Emissions Analysis'!Q82*'Product Data and EFs'!H52/1000-'Product Emissions Analysis'!R82) -> 0 | T82: =IF(H82="",0,S82-N82) -> 0
D85: Annual | J85: Current | O85: Increased ENERGY STAR Sales
D86: Product Type | E86: Total Unit Sales | F86: % of Current Sales that are LED | G86: % of Current Sales that are CFL | H86: Enter a Higher % of LED Sales for Analysis | I86: Enter New % of CFL Sales for Analysis | J86: Total LED Sales | K86: Total CFL Sales | L86: Total Halogen Sales | M86: Annual Total Product Use Emissions (Metric Tons CO2e) | N86: Annual Emissions Savings from LED/CFL Product Sales (Metric Tons CO2e) | O86: Total LED Sales | P86: Total CFL Sales | Q86: Total Halogen Sales | R86: Annual Total Product Use Emissions (Metric Tons CO2e) | S86: Annual Emissions Savings from LED/CFL Product Sales (Metric Tons CO2e) | T86: Additional Annual Emissions Savings Achieved with Increased LED/CFL Sales (Metric Tons CO2e)
D87: Lightbulbs | E87: =IF(E82="","",E82) ->  | F87: =IF(F82="","",F82) ->  | G87: =IF(G82="","",G82) ->  | H87: =IF(H82="","",H82) ->  | I87: =IF(I82="","",I82) ->  | J87: =IF(F87="",0,ROUND(E87*F87,0)) -> 0 | K87: =IF(G87="",0,ROUND(E87*G87,0)) -> 0 | L87: =IF(F87="",0,E87-J87-K87) -> 0 | M87: =IF(J87=0,0,J87*'Product Data and EFs'!H53/1000/'Product Data and EFs'!F53+'Product Emissions Analysis'!K87*'Product Data and EFs'!H54/1000/'Product Data and EFs'!F54+'Product Emissions Analysis'!L87*'Product Data and EFs'!H52/1000/'Product Data and EFs'!F52) -> 0 | N87: =IF(M87=0,0,E87*'Product Data and EFs'!H52/1000-'Product Emissions Analysis'!M87) -> 0 | O87: =IF(H87="",0,ROUND(E87*H87,0)) -> 0 | P87: =IF(I87="",0,ROUND(E87*I87,0)) -> 0 | Q87: =IF(H87="",0,E87-O87-P87) -> 0 | R87: =IF(O87=0,0,O87*'Product Data and EFs'!H53/1000/'Product Data and EFs'!F53+'Product Emissions Analysis'!P87*'Product Data and EFs'!H54/1000/'Product Data and EFs'!F54+'Product Emissions Analysis'!Q87*'Product Data and EFs'!H52/1000/'Product Data and EFs'!F52) -> 0 | S87: =IF(R87=0,0,E87*'Product Data and EFs'!H52/1000-'Product Emissions Analysis'!R87) -> 0 | T87: =IF(H87="",0,S87-N87) -> 0
D89: Decorative Light Strings
D91: Lifetime | H91: Current | N91: Increased ENERGY STAR Sales
D92: Product Type | E92: Total Unit Sales | F92: % of Current Sales that are ENERGY STAR | G92: Enter a Higher % of Sales that are ENERGY STAR for Analysis | H92: Total ENERGY STAR Product Sales | I92: Total Standard Product Sales | J92: Lifetime Product Use Emissions - ENERGY STAR (Metric Tons CO2e) | K92: Lifetime Product Use Emissions - Standard (Metric Tons CO2e) | L92: Lifetime Total Product Use Emissions (Metric Tons CO2e) | M92: Lifetime Emissions Savings from ENERGY STAR Product Sales (Metric Tons CO2e) | N92: Total ENERGY STAR Product Sales | O92: Total Standard Product Sales | P92: Lifetime Product Use Emissions - ENERGY STAR (Metric Tons CO2e) | Q92: Lifetime Product Use Emissions - Standard (Metric Tons CO2e) | R92: Lifetime Total Product Use Emissions (Metric Tons CO2e) | S92: Lifetime Emissions Savings from ENERGY STAR Product Sales (Metric Tons CO2e) | T92: Additional Lifetime Emissions Savings Achieved with Increased ENERGY STAR Sales (Metric Tons CO2e)
D93: Decorative Light Strings | H93: =IF(F93="",0,ROUND(E93*F93,0)) -> 0 | I93: =IF(F93="",0,E93-H93) -> 0 | J93: =IF(H93=0,0,H93*'Product Data and EFs'!J58/1000) -> 0 | K93: =IF(I93=0,0,I93*'Product Data and EFs'!I58/1000) -> 0 | L93: =IF(F93="",0,SUM(J93:K93)) -> 0 | M93: =IF(L93=0,0,(E93*'Product Data and EFs'!I58/1000-'Product Emissions Analysis'!L93)) -> 0 | N93: =IF(G93="",0,ROUND(E93*G93,0)) -> 0 | O93: =IF(G93="",0,E93-N93) -> 0 | P93: =IF(N93=0,0,N93*'Product Data and EFs'!J58/1000) -> 0 | Q93: =IF(O93=0,0,O93*'Product Data and EFs'!I58/1000) -> 0 | R93: =IF(G93="",0,SUM(P93:Q93)) -> 0 | S93: =IF(R93=0,0,(E93*'Product Data and EFs'!I58/1000-'Product Emissions Analysis'!R93)) -> 0 | T93: =IF(G93="",0,L93-R93) -> 0
D96: Annual | H96: Current | N96: Increased ENERGY STAR Sales
D97: Product Type | E97: Total Unit Sales | F97: % of Current Sales that are ENERGY STAR | G97: Enter a Higher % of Sales that are ENERGY STAR for Analysis | H97: Total ENERGY STAR Product Sales | I97: Total Standard Product Sales | J97: Annual Product Use Emissions - ENERGY STAR (Metric Tons CO2e) | K97: Annual Product Use Emissions - Standard (Metric Tons CO2e) | L97: Annual Total Product Use Emissions (Metric Tons CO2e) | M97: Annual Emissions Savings from ENERGY STAR Product Sales (Metric Tons CO2e) | N97: Total ENERGY STAR Product Sales | O97: Total Standard Product Sales | P97: Annual Product Use Emissions - ENERGY STAR (Metric Tons CO2e) | Q97: Annual Product Use Emissions - Standard (Metric Tons CO2e) | R97: Annual Total Product Use Emissions (Metric Tons CO2e) | S97: Annual Emissions Savings from ENERGY STAR Product Sales (Metric Tons CO2e) | T97: Additional Annual Emissions Savings Achieved with Increased ENERGY STAR Sales (Metric Tons CO2e)
D98: Decorative Light Strings | E98: =IF(E93="","",E93) ->  | F98: =IF(F93="","",F93) ->  | G98: =IF(G93="","",G93) ->  | H98: =IF(F98="",0,ROUND(E98*F98,0)) -> 0 | I98: =IF(F98="",0,E98-H98) -> 0 | J98: =IF(H98=0,0,H98*'Product Data and EFs'!J58/1000/'Product Data and EFs'!F58) -> 0 | K98: =IF(I98=0,0,I98*'Product Data and EFs'!I58/1000/'Product Data and EFs'!F58) -> 0 | L98: =IF(F98="",0,SUM(J98:K98)) -> 0 | M98: =IF(L98=0,0,(E98*'Product Data and EFs'!I58/1000/'Product Data and EFs'!F58-'Product Emissions Analysis'!L98)) -> 0 | N98: =IF(G98="",0,ROUND(E98*G98,0)) -> 0 | O98: =IF(G98="",0,E98-N98) -> 0 | P98: =IF(N98=0,0,N98*'Product Data and EFs'!J58/1000/'Product Data and EFs'!F58) -> 0 | Q98: =IF(O98=0,0,O98*'Product Data and EFs'!I58/1000/'Product Data and EFs'!F58) -> 0 | R98: =IF(G98="",0,SUM(P98:Q98)) -> 0 | S98: =IF(R98=0,0,(E98*'Product Data and EFs'!I58/1000/'Product Data and EFs'!F58-'Product Emissions Analysis'!R98)) -> 0 | T98: =IF(G98="",0,L98-R98) -> 0
D102: Consumer Electronics
D104: Lifetime
H106: Current | N106: Increased ENERGY STAR Sales
D107: Product Type | E107: Total Unit Sales | F107: % of Current Sales that are ENERGY STAR | G107: Enter a Higher % of Sales that are ENERGY STAR for Analysis | H107: Total ENERGY STAR Product Sales | I107: Total Standard Product Sales | J107: Lifetime Product Use Emissions - ENERGY STAR (Metric Tons CO2e) | K107: Lifetime Product Use Emissions - Standard (Metric Tons CO2e) | L107: Lifetime Total Product Use Emissions (Metric Tons CO2e) | M107: Lifetime Emissions Savings from ENERGY STAR Product Sales (Metric Tons CO2e) | N107: Total ENERGY STAR Product Sales | O107: Total Standard Product Sales | P107: Lifetime Product Use Emissions - ENERGY STAR (Metric Tons CO2e) | Q107: Lifetime Product Use Emissions - Standard (Metric Tons CO2e) | R107: Lifetime Total Product Use Emissions (Metric Tons CO2e) | S107: Lifetime Emissions Savings from ENERGY STAR Product Sales (Metric Tons CO2e) | T107: Additional Lifetime Emissions Savings Achieved with Increased ENERGY STAR Sales (Metric Tons CO2e)
D108: TV - LCD TVs 20" and under | H108: =IF(F108="",0,ROUND(E108*F108,0)) -> 0 | I108: =IF(F108="",0,E108-H108) -> 0 | J108: =IF(H108=0,0,H108*'Product Data and EFs'!L65/1000) -> 0 | K108: =IF(I108=0,0,I108*'Product Data and EFs'!K65/1000) -> 0 | L108: =IF(F108="",0,SUM(J108:K108)) -> 0 | M108: =IF(L108=0,0,(E108*'Product Data and EFs'!K65/1000-'Product Emissions Analysis'!L108)) -> 0 | N108: =IF(G108="",0,ROUND(E108*G108,0)) -> 0 | O108: =IF(G108="",0,E108-N108) -> 0 | P108: =IF(N108=0,0,N108*'Product Data and EFs'!L65/1000) -> 0 | Q108: =IF(O108=0,0,O108*'Product Data and EFs'!K65/1000) -> 0 | R108: =IF(G108="",0,SUM(P108:Q108)) -> 0 | S108: =IF(R108=0,0,(E108*'Product Data and EFs'!K65/1000-'Product Emissions Analysis'!R108)) -> 0 | T108: =IF(G108="",0,L108-R108) -> 0
D109: TV - LCD TVs 21"-23" | H109: =IF(F109="",0,ROUND(E109*F109,0)) -> 0 | I109: =IF(F109="",0,E109-H109) -> 0 | J109: =IF(H109=0,0,H109*'Product Data and EFs'!L66/1000) -> 0 | K109: =IF(I109=0,0,I109*'Product Data and EFs'!K66/1000) -> 0 | L109: =IF(F109="",0,SUM(J109:K109)) -> 0 | M109: =IF(L109=0,0,(E109*'Product Data and EFs'!K66/1000-'Product Emissions Analysis'!L109)) -> 0 | N109: =IF(G109="",0,ROUND(E109*G109,0)) -> 0 | O109: =IF(G109="",0,E109-N109) -> 0 | P109: =IF(N109=0,0,N109*'Product Data and EFs'!L66/1000) -> 0 | Q109: =IF(O109=0,0,O109*'Product Data and EFs'!K66/1000) -> 0 | R109: =IF(G109="",0,SUM(P109:Q109)) -> 0 | S109: =IF(R109=0,0,(E109*'Product Data and EFs'!K66/1000-'Product Emissions Analysis'!R109)) -> 0 | T109: =IF(G109="",0,L109-R109) -> 0
D110: TV - LCD TVs 24"-29" | H110: 0 | I110: 0 | J110: =IF(H110=0,0,H110*'Product Data and EFs'!L67/1000) -> 0 | K110: =IF(I110=0,0,I110*'Product Data and EFs'!K67/1000) -> 0 | L110: 0 | M110: =IF(L110=0,0,(E110*'Product Data and EFs'!K67/1000-'Product Emissions Analysis'!L110)) -> 0 | N110: 0 | O110: 0 | P110: =IF(N110=0,0,N110*'Product Data and EFs'!L67/1000) -> 0 | Q110: =IF(O110=0,0,O110*'Product Data and EFs'!K67/1000) -> 0 | R110: 0 | S110: =IF(R110=0,0,(E110*'Product Data and EFs'!K67/1000-'Product Emissions Analysis'!R110)) -> 0 | T110: 0
D111: TV - LCD TVs 30"-34" | H111: 0 | I111: 0 | J111: =IF(H111=0,0,H111*'Product Data and EFs'!L68/1000) -> 0 | K111: =IF(I111=0,0,I111*'Product Data and EFs'!K68/1000) -> 0 | L111: 0 | M111: =IF(L111=0,0,(E111*'Product Data and EFs'!K68/1000-'Product Emissions Analysis'!L111)) -> 0 | N111: 0 | O111: 0 | P111: =IF(N111=0,0,N111*'Product Data and EFs'!L68/1000) -> 0 | Q111: =IF(O111=0,0,O111*'Product Data and EFs'!K68/1000) -> 0 | R111: 0 | S111: =IF(R111=0,0,(E111*'Product Data and EFs'!K68/1000-'Product Emissions Analysis'!R111)) -> 0 | T111: 0
D112: TV - LCD TVs 35"-39" | H112: 0 | I112: 0 | J112: =IF(H112=0,0,H112*'Product Data and EFs'!L69/1000) -> 0 | K112: =IF(I112=0,0,I112*'Product Data and EFs'!K69/1000) -> 0 | L112: 0 | M112: =IF(L112=0,0,(E112*'Product Data and EFs'!K69/1000-'Product Emissions Analysis'!L112)) -> 0 | N112: 0 | O112: 0 | P112: =IF(N112=0,0,N112*'Product Data and EFs'!L69/1000) -> 0 | Q112: =IF(O112=0,0,O112*'Product Data and EFs'!K69/1000) -> 0 | R112: 0 | S112: =IF(R112=0,0,(E112*'Product Data and EFs'!K69/1000-'Product Emissions Analysis'!R112)) -> 0 | T112: 0
D113: TV - LCD TVs 40"-44" | H113: 0 | I113: 0 | J113: =IF(H113=0,0,H113*'Product Data and EFs'!L70/1000) -> 0 | K113: =IF(I113=0,0,I113*'Product Data and EFs'!K70/1000) -> 0 | L113: 0 | M113: =IF(L113=0,0,(E113*'Product Data and EFs'!K70/1000-'Product Emissions Analysis'!L113)) -> 0 | N113: 0 | O113: 0 | P113: =IF(N113=0,0,N113*'Product Data and EFs'!L70/1000) -> 0 | Q113: =IF(O113=0,0,O113*'Product Data and EFs'!K70/1000) -> 0 | R113: 0 | S113: =IF(R113=0,0,(E113*'Product Data and EFs'!K70/1000-'Product Emissions Analysis'!R113)) -> 0 | T113: 0
D114: TV - LCD TVs 45"-49" | H114: 0 | I114: 0 | J114: =IF(H114=0,0,H114*'Product Data and EFs'!L71/1000) -> 0 | K114: =IF(I114=0,0,I114*'Product Data and EFs'!K71/1000) -> 0 | L114: 0 | M114: =IF(L114=0,0,(E114*'Product Data and EFs'!K71/1000-'Product Emissions Analysis'!L114)) -> 0 | N114: 0 | O114: 0 | P114: =IF(N114=0,0,N114*'Product Data and EFs'!L71/1000) -> 0 | Q114: =IF(O114=0,0,O114*'Product Data and EFs'!K71/1000) -> 0 | R114: 0 | S114: =IF(R114=0,0,(E114*'Product Data and EFs'!K71/1000-'Product Emissions Analysis'!R114)) -> 0 | T114: 0
D115: TV - LCD TVs 50"-54" | H115: 0 | I115: 0 | J115: =IF(H115=0,0,H115*'Product Data and EFs'!L72/1000) -> 0 | K115: =IF(I115=0,0,I115*'Product Data and EFs'!K72/1000) -> 0 | L115: 0 | M115: =IF(L115=0,0,(E115*'Product Data and EFs'!K72/1000-'Product Emissions Analysis'!L115)) -> 0 | N115: 0 | O115: 0 | P115: =IF(N115=0,0,N115*'Product Data and EFs'!L72/1000) -> 0 | Q115: =IF(O115=0,0,O115*'Product Data and EFs'!K72/1000) -> 0 | R115: 0 | S115: =IF(R115=0,0,(E115*'Product Data and EFs'!K72/1000-'Product Emissions Analysis'!R115)) -> 0 | T115: 0
D116: TV - LCD TVs 55"-59" | H116: 0 | I116: 0 | J116: =IF(H116=0,0,H116*'Product Data and EFs'!L73/1000) -> 0 | K116: =IF(I116=0,0,I116*'Product Data and EFs'!K73/1000) -> 0 | L116: 0 | M116: =IF(L116=0,0,(E116*'Product Data and EFs'!K73/1000-'Product Emissions Analysis'!L116)) -> 0 | N116: 0 | O116: 0 | P116: =IF(N116=0,0,N116*'Product Data and EFs'!L73/1000) -> 0 | Q116: =IF(O116=0,0,O116*'Product Data and EFs'!K73/1000) -> 0 | R116: 0 | S116: =IF(R116=0,0,(E116*'Product Data and EFs'!K73/1000-'Product Emissions Analysis'!R116)) -> 0 | T116: 0
D117: TV - LCD TVs 60"-64" | H117: 0 | I117: 0 | J117: =IF(H117=0,0,H117*'Product Data and EFs'!L74/1000) -> 0 | K117: =IF(I117=0,0,I117*'Product Data and EFs'!K74/1000) -> 0 | L117: 0 | M117: =IF(L117=0,0,(E117*'Product Data and EFs'!K74/1000-'Product Emissions Analysis'!L117)) -> 0 | N117: 0 | O117: 0 | P117: =IF(N117=0,0,N117*'Product Data and EFs'!L74/1000) -> 0 | Q117: =IF(O117=0,0,O117*'Product Data and EFs'!K74/1000) -> 0 | R117: 0 | S117: =IF(R117=0,0,(E117*'Product Data and EFs'!K74/1000-'Product Emissions Analysis'!R117)) -> 0 | T117: 0
D118: TV - LCD TVs 65" or greater | H118: 0 | I118: 0 | J118: =IF(H118=0,0,H118*'Product Data and EFs'!L75/1000) -> 0 | K118: =IF(I118=0,0,I118*'Product Data and EFs'!K75/1000) -> 0 | L118: 0 | M118: =IF(L118=0,0,(E118*'Product Data and EFs'!K75/1000-'Product Emissions Analysis'!L118)) -> 0 | N118: 0 | O118: 0 | P118: =IF(N118=0,0,N118*'Product Data and EFs'!L75/1000) -> 0 | Q118: =IF(O118=0,0,O118*'Product Data and EFs'!K75/1000) -> 0 | R118: 0 | S118: =IF(R118=0,0,(E118*'Product Data and EFs'!K75/1000-'Product Emissions Analysis'!R118)) -> 0 | T118: 0
D119: TV - Plasma TVs under 60" | H119: 0 | I119: 0 | J119: =IF(H119=0,0,H119*'Product Data and EFs'!L76/1000) -> 0 | K119: =IF(I119=0,0,I119*'Product Data and EFs'!K76/1000) -> 0 | L119: 0 | M119: =IF(L119=0,0,(E119*'Product Data and EFs'!K76/1000-'Product Emissions Analysis'!L119)) -> 0 | N119: 0 | O119: 0 | P119: =IF(N119=0,0,N119*'Product Data and EFs'!L76/1000) -> 0 | Q119: =IF(O119=0,0,O119*'Product Data and EFs'!K76/1000) -> 0 | R119: 0 | S119: =IF(R119=0,0,(E119*'Product Data and EFs'!K76/1000-'Product Emissions Analysis'!R119)) -> 0 | T119: 0
D120: TV - Plasma TVs 60" and up | H120: 0 | I120: 0 | J120: =IF(H120=0,0,H120*'Product Data and EFs'!L77/1000) -> 0 | K120: =IF(I120=0,0,I120*'Product Data and EFs'!K77/1000) -> 0 | L120: 0 | M120: =IF(L120=0,0,(E120*'Product Data and EFs'!K77/1000-'Product Emissions Analysis'!L120)) -> 0 | N120: 0 | O120: 0 | P120: =IF(N120=0,0,N120*'Product Data and EFs'!L77/1000) -> 0 | Q120: =IF(O120=0,0,O120*'Product Data and EFs'!K77/1000) -> 0 | R120: 0 | S120: =IF(R120=0,0,(E120*'Product Data and EFs'!K77/1000-'Product Emissions Analysis'!R120)) -> 0 | T120: 0
D121: TV - OLED TVs | H121: 0 | I121: 0 | J121: =IF(H121=0,0,H121*'Product Data and EFs'!L78/1000) -> 0 | K121: =IF(I121=0,0,I121*'Product Data and EFs'!K78/1000) -> 0 | L121: 0 | M121: =IF(L121=0,0,(E121*'Product Data and EFs'!K78/1000-'Product Emissions Analysis'!L121)) -> 0 | N121: 0 | O121: 0 | P121: =IF(N121=0,0,N121*'Product Data and EFs'!L78/1000) -> 0 | Q121: =IF(O121=0,0,O121*'Product Data and EFs'!K78/1000) -> 0 | R121: 0 | S121: =IF(R121=0,0,(E121*'Product Data and EFs'!K78/1000-'Product Emissions Analysis'!R121)) -> 0 | T121: 0
D122: DVD Players | H122: 0 | I122: 0 | J122: =IF(H122=0,0,H122*'Product Data and EFs'!L79/1000) -> 0 | K122: =IF(I122=0,0,I122*'Product Data and EFs'!K79/1000) -> 0 | L122: 0 | M122: =IF(L122=0,0,(E122*'Product Data and EFs'!K79/1000-'Product Emissions Analysis'!L122)) -> 0 | N122: 0 | O122: 0 | P122: =IF(N122=0,0,N122*'Product Data and EFs'!L79/1000) -> 0 | Q122: =IF(O122=0,0,O122*'Product Data and EFs'!K79/1000) -> 0 | R122: 0 | S122: =IF(R122=0,0,(E122*'Product Data and EFs'!K79/1000-'Product Emissions Analysis'!R122)) -> 0 | T122: 0
D123: Blu Ray | H123: 0 | I123: 0 | J123: =IF(H123=0,0,H123*'Product Data and EFs'!L80/1000) -> 0 | K123: =IF(I123=0,0,I123*'Product Data and EFs'!K80/1000) -> 0 | L123: 0 | M123: =IF(L123=0,0,(E123*'Product Data and EFs'!K80/1000-'Product Emissions Analysis'!L123)) -> 0 | N123: 0 | O123: 0 | P123: =IF(N123=0,0,N123*'Product Data and EFs'!L80/1000) -> 0 | Q123: =IF(O123=0,0,O123*'Product Data and EFs'!K80/1000) -> 0 | R123: 0 | S123: =IF(R123=0,0,(E123*'Product Data and EFs'!K80/1000-'Product Emissions Analysis'!R123)) -> 0 | T123: 0
D124: Audio Equipment - Receivers | H124: 0 | I124: 0 | J124: =IF(H124=0,0,H124*'Product Data and EFs'!L81/1000) -> 0 | K124: =IF(I124=0,0,I124*'Product Data and EFs'!K81/1000) -> 0 | L124: 0 | M124: =IF(L124=0,0,(E124*'Product Data and EFs'!K81/1000-'Product Emissions Analysis'!L124)) -> 0 | N124: 0 | O124: 0 | P124: =IF(N124=0,0,N124*'Product Data and EFs'!L81/1000) -> 0 | Q124: =IF(O124=0,0,O124*'Product Data and EFs'!K81/1000) -> 0 | R124: 0 | S124: =IF(R124=0,0,(E124*'Product Data and EFs'!K81/1000-'Product Emissions Analysis'!R124)) -> 0 | T124: 0
D125: Audio Equipment - Home Theater In-a-Box | H125: 0 | I125: 0 | J125: =IF(H125=0,0,H125*'Product Data and EFs'!L82/1000) -> 0 | K125: =IF(I125=0,0,I125*'Product Data and EFs'!K82/1000) -> 0 | L125: 0 | M125: =IF(L125=0,0,(E125*'Product Data and EFs'!K82/1000-'Product Emissions Analysis'!L125)) -> 0 | N125: 0 | O125: 0 | P125: =IF(N125=0,0,N125*'Product Data and EFs'!L82/1000) -> 0 | Q125: =IF(O125=0,0,O125*'Product Data and EFs'!K82/1000) -> 0 | R125: 0 | S125: =IF(R125=0,0,(E125*'Product Data and EFs'!K82/1000-'Product Emissions Analysis'!R125)) -> 0 | T125: 0
D126: Audio Equipment - Compact Systems | H126: 0 | I126: 0 | J126: =IF(H126=0,0,H126*'Product Data and EFs'!L83/1000) -> 0 | K126: =IF(I126=0,0,I126*'Product Data and EFs'!K83/1000) -> 0 | L126: 0 | M126: =IF(L126=0,0,(E126*'Product Data and EFs'!K83/1000-'Product Emissions Analysis'!L126)) -> 0 | N126: 0 | O126: 0 | P126: =IF(N126=0,0,N126*'Product Data and EFs'!L83/1000) -> 0 | Q126: =IF(O126=0,0,O126*'Product Data and EFs'!K83/1000) -> 0 | R126: 0 | S126: =IF(R126=0,0,(E126*'Product Data and EFs'!K83/1000-'Product Emissions Analysis'!R126)) -> 0 | T126: 0
D127: Audio Equipment - Soundbars | H127: 0 | I127: 0 | J127: =IF(H127=0,0,H127*'Product Data and EFs'!L84/1000) -> 0 | K127: =IF(I127=0,0,I127*'Product Data and EFs'!K84/1000) -> 0 | L127: 0 | M127: =IF(L127=0,0,(E127*'Product Data and EFs'!K84/1000-'Product Emissions Analysis'!L127)) -> 0 | N127: 0 | O127: 0 | P127: =IF(N127=0,0,N127*'Product Data and EFs'!L84/1000) -> 0 | Q127: =IF(O127=0,0,O127*'Product Data and EFs'!K84/1000) -> 0 | R127: 0 | S127: =IF(R127=0,0,(E127*'Product Data and EFs'!K84/1000-'Product Emissions Analysis'!R127)) -> 0 | T127: 0
D128: Audio Equipment - Other Powered Speakers | H128: 0 | I128: 0 | J128: =IF(H128=0,0,H128*'Product Data and EFs'!L85/1000) -> 0 | K128: =IF(I128=0,0,I128*'Product Data and EFs'!K85/1000) -> 0 | L128: 0 | M128: =IF(L128=0,0,(E128*'Product Data and EFs'!K85/1000-'Product Emissions Analysis'!L128)) -> 0 | N128: 0 | O128: 0 | P128: =IF(N128=0,0,N128*'Product Data and EFs'!L85/1000) -> 0 | Q128: =IF(O128=0,0,O128*'Product Data and EFs'!K85/1000) -> 0 | R128: 0 | S128: =IF(R128=0,0,(E128*'Product Data and EFs'!K85/1000-'Product Emissions Analysis'!R128)) -> 0 | T128: 0
D129: Audio Equipment - Home Radios | H129: 0 | I129: 0 | J129: =IF(H129=0,0,H129*'Product Data and EFs'!L86/1000) -> 0 | K129: =IF(I129=0,0,I129*'Product Data and EFs'!K86/1000) -> 0 | L129: 0 | M129: =IF(L129=0,0,(E129*'Product Data and EFs'!K86/1000-'Product Emissions Analysis'!L129)) -> 0 | N129: 0 | O129: 0 | P129: =IF(N129=0,0,N129*'Product Data and EFs'!L86/1000) -> 0 | Q129: =IF(O129=0,0,O129*'Product Data and EFs'!K86/1000) -> 0 | R129: 0 | S129: =IF(R129=0,0,(E129*'Product Data and EFs'!K86/1000-'Product Emissions Analysis'!R129)) -> 0 | T129: 0
D130: Audio Equipment - Portable Media/MP3 Player Speakers and Docks | H130: 0 | I130: 0 | J130: =IF(H130=0,0,H130*'Product Data and EFs'!L87/1000) -> 0 | K130: =IF(I130=0,0,I130*'Product Data and EFs'!K87/1000) -> 0 | L130: 0 | M130: =IF(L130=0,0,(E130*'Product Data and EFs'!K87/1000-'Product Emissions Analysis'!L130)) -> 0 | N130: 0 | O130: 0 | P130: =IF(N130=0,0,N130*'Product Data and EFs'!L87/1000) -> 0 | Q130: =IF(O130=0,0,O130*'Product Data and EFs'!K87/1000) -> 0 | R130: 0 | S130: =IF(R130=0,0,(E130*'Product Data and EFs'!K87/1000-'Product Emissions Analysis'!R130)) -> 0 | T130: 0
D131: Residential Telephony | H131: 0 | I131: 0 | J131: =IF(H131=0,0,H131*'Product Data and EFs'!L88/1000) -> 0 | K131: =IF(I131=0,0,I131*'Product Data and EFs'!K88/1000) -> 0 | L131: 0 | M131: =IF(L131=0,0,(E131*'Product Data and EFs'!K88/1000-'Product Emissions Analysis'!L131)) -> 0 | N131: 0 | O131: 0 | P131: =IF(N131=0,0,N131*'Product Data and EFs'!L88/1000) -> 0 | Q131: =IF(O131=0,0,O131*'Product Data and EFs'!K88/1000) -> 0 | R131: 0 | S131: =IF(R131=0,0,(E131*'Product Data and EFs'!K88/1000-'Product Emissions Analysis'!R131)) -> 0 | T131: 0
D132: Commercial Telephony (VOIP) | H132: 0 | I132: 0 | J132: =IF(H132=0,0,H132*'Product Data and EFs'!L89/1000) -> 0 | K132: =IF(I132=0,0,I132*'Product Data and EFs'!K89/1000) -> 0 | L132: 0 | M132: =IF(L132=0,0,(E132*'Product Data and EFs'!K89/1000-'Product Emissions Analysis'!L132)) -> 0 | N132: 0 | O132: 0 | P132: =IF(N132=0,0,N132*'Product Data and EFs'!L89/1000) -> 0 | Q132: =IF(O132=0,0,O132*'Product Data and EFs'!K89/1000) -> 0 | R132: 0 | S132: =IF(R132=0,0,(E132*'Product Data and EFs'!K89/1000-'Product Emissions Analysis'!R132)) -> 0 | T132: 0
D133: Set Top Box - Cable | H133: 0 | I133: 0 | J133: =IF(H133=0,0,H133*'Product Data and EFs'!L90/1000) -> 0 | K133: =IF(I133=0,0,I133*'Product Data and EFs'!K90/1000) -> 0 | L133: 0 | M133: =IF(L133=0,0,(E133*'Product Data and EFs'!K90/1000-'Product Emissions Analysis'!L133)) -> 0 | N133: 0 | O133: 0 | P133: =IF(N133=0,0,N133*'Product Data and EFs'!L90/1000) -> 0 | Q133: =IF(O133=0,0,O133*'Product Data and EFs'!K90/1000) -> 0 | R133: 0 | S133: =IF(R133=0,0,(E133*'Product Data and EFs'!K90/1000-'Product Emissions Analysis'!R133)) -> 0 | T133: 0
D134: Set Top Box - Cable Digital Transport Adapter | H134: 0 | I134: 0 | J134: =IF(H134=0,0,H134*'Product Data and EFs'!L91/1000) -> 0 | K134: =IF(I134=0,0,I134*'Product Data and EFs'!K91/1000) -> 0 | L134: 0 | M134: =IF(L134=0,0,(E134*'Product Data and EFs'!K91/1000-'Product Emissions Analysis'!L134)) -> 0 | N134: 0 | O134: 0 | P134: =IF(N134=0,0,N134*'Product Data and EFs'!L91/1000) -> 0 | Q134: =IF(O134=0,0,O134*'Product Data and EFs'!K91/1000) -> 0 | R134: 0 | S134: =IF(R134=0,0,(E134*'Product Data and EFs'!K91/1000-'Product Emissions Analysis'!R134)) -> 0 | T134: 0
D135: Set Top Box - Satellite | H135: 0 | I135: 0 | J135: =IF(H135=0,0,H135*'Product Data and EFs'!L92/1000) -> 0 | K135: =IF(I135=0,0,I135*'Product Data and EFs'!K92/1000) -> 0 | L135: 0 | M135: =IF(L135=0,0,(E135*'Product Data and EFs'!K92/1000-'Product Emissions Analysis'!L135)) -> 0 | N135: 0 | O135: 0 | P135: =IF(N135=0,0,N135*'Product Data and EFs'!L92/1000) -> 0 | Q135: =IF(O135=0,0,O135*'Product Data and EFs'!K92/1000) -> 0 | R135: 0 | S135: =IF(R135=0,0,(E135*'Product Data and EFs'!K92/1000-'Product Emissions Analysis'!R135)) -> 0 | T135: 0
D136: Set Top Box - Multichannel Video Programming Distributor (MVPD) Internet Protocol (IP) | J136: =IF(H136=0,0,H136*'Product Data and EFs'!L93/1000) -> 0 | K136: =IF(I136=0,0,I136*'Product Data and EFs'!K93/1000) -> 0 | L136: 0 | M136: =IF(L136=0,0,(E136*'Product Data and EFs'!K93/1000-'Product Emissions Analysis'!L136)) -> 0 | N136: 0 | O136: 0 | P136: =IF(N136=0,0,N136*'Product Data and EFs'!L93/1000) -> 0 | Q136: =IF(O136=0,0,O136*'Product Data and EFs'!K93/1000) -> 0 | R136: 0 | S136: =IF(R136=0,0,(E136*'Product Data and EFs'!K93/1000-'Product Emissions Analysis'!R136)) -> 0 | T136: 0
D137: Set Top Box - Over-the-Top (OTT) Internet Protocol (IP) | H137: 0 | I137: 0 | J137: =IF(H137=0,0,H137*'Product Data and EFs'!L94/1000) -> 0 | K137: =IF(I137=0,0,I137*'Product Data and EFs'!K94/1000) -> 0 | L137: 0 | M137: =IF(L137=0,0,(E137*'Product Data and EFs'!K94/1000-'Product Emissions Analysis'!L137)) -> 0 | N137: 0 | O137: 0 | P137: =IF(N137=0,0,N137*'Product Data and EFs'!L94/1000) -> 0 | Q137: =IF(O137=0,0,O137*'Product Data and EFs'!K94/1000) -> 0 | R137: 0 | S137: =IF(R137=0,0,(E137*'Product Data and EFs'!K94/1000-'Product Emissions Analysis'!R137)) -> 0 | T137: 0
D138: Set Top Box - Thin-client | H138: 0 | I138: 0 | J138: =IF(H138=0,0,H138*'Product Data and EFs'!L95/1000) -> 0 | K138: =IF(I138=0,0,I138*'Product Data and EFs'!K95/1000) -> 0 | L138: 0 | M138: =IF(L138=0,0,(E138*'Product Data and EFs'!K95/1000-'Product Emissions Analysis'!L138)) -> 0 | N138: 0 | O138: 0 | P138: =IF(N138=0,0,N138*'Product Data and EFs'!L95/1000) -> 0 | Q138: =IF(O138=0,0,O138*'Product Data and EFs'!K95/1000) -> 0 | R138: 0 | S138: =IF(R138=0,0,(E138*'Product Data and EFs'!K95/1000-'Product Emissions Analysis'!R138)) -> 0 | T138: 0
D139: Computer Servers | H139: 0 | I139: 0 | J139: =IF(H139=0,0,H139*'Product Data and EFs'!L96/1000) -> 0 | K139: =IF(I139=0,0,I139*'Product Data and EFs'!K96/1000) -> 0 | L139: 0 | M139: =IF(L139=0,0,(E139*'Product Data and EFs'!K96/1000-'Product Emissions Analysis'!L139)) -> 0 | N139: 0 | O139: 0 | P139: =IF(N139=0,0,N139*'Product Data and EFs'!L96/1000) -> 0 | Q139: =IF(O139=0,0,O139*'Product Data and EFs'!K96/1000) -> 0 | R139: 0 | S139: =IF(R139=0,0,(E139*'Product Data and EFs'!K96/1000-'Product Emissions Analysis'!R139)) -> 0 | T139: 0
D140: TOTAL | E140: =SUM(E108:E139) -> 0 | F140: NA | G140: NA | H140: =SUM(H108:H139) -> 0 | I140: 0 | J140: 0 | K140: 0 | L140: 0 | M140: 0 | N140: 0 | O140: 0 | P140: 0 | Q140: 0 | R140: 0 | S140: 0 | T140: 0
D142: Annual
H144: Current | N144: Increased ENERGY STAR Sales
D145: Product Type | E145: Total Unit Sales | F145: % of Current Sales that are ENERGY STAR | G145: Higher % of Sales that are ENERGY STAR for Analysis | H145: Total ENERGY STAR Product Sales | I145: Total Standard Product Sales | J145: Annual Product Use Emissions - ENERGY STAR (Metric Tons CO2e) | K145: Annual Product Use Emissions - Standard (Metric Tons CO2e) | L145: Annual Total Product Use Emissions (Metric Tons CO2e) | M145: Annual Emissions Savings from ENERGY STAR Product Sales (Metric Tons CO2e) | N145: Total ENERGY STAR Product Sales | O145: Total Standard Product Sales | P145: Annual Product Use Emissions - ENERGY STAR (Metric Tons CO2e) | Q145: Annual Product Use Emissions - Standard (Metric Tons CO2e) | R145: Annual Total Product Use Emissions (Metric Tons CO2e) | S145: Annual Emissions Savings from ENERGY STAR Product Sales (Metric Tons CO2e) | T145: Additional Annual Emissions Savings Achieved with Increased ENERGY STAR Sales (Metric Tons CO2e)
D146: TV - LCD TVs 20" and under | E146: =IF(E108="","",E108) ->  | F146: =IF(F108="","",F108) ->  | G146: =IF(G108="","",G108) ->  | H146: =IF(F146="",0,ROUND(E146*F146,0)) -> 0 | I146: =IF(F146="",0,E146-H146) -> 0 | J146: =IF(H146=0,0,H146*'Product Data and EFs'!L65/1000/'Product Data and EFs'!F65) -> 0 | K146: =IF(I146=0,0,I146*'Product Data and EFs'!K65/1000/'Product Data and EFs'!F65) -> 0 | L146: =IF(F146="",0,SUM(J146:K146)) -> 0 | M146: =IF(L146=0,0,(E146*'Product Data and EFs'!K65/1000/'Product Data and EFs'!F65-'Product Emissions Analysis'!L146)) -> 0 | N146: =IF(G146="",0,ROUND(E146*G146,0)) -> 0 | O146: =IF(G146="",0,E146-N146) -> 0 | P146: =IF(N146=0,0,N146*'Product Data and EFs'!L65/1000/'Product Data and EFs'!F65) -> 0 | Q146: =IF(O146=0,0,O146*'Product Data and EFs'!K65/1000/'Product Data and EFs'!F65) -> 0 | R146: =IF(G146="",0,SUM(P146:Q146)) -> 0 | S146: =IF(R146=0,0,(E146*'Product Data and EFs'!K65/1000/'Product Data and EFs'!F65-'Product Emissions Analysis'!R146)) -> 0 | T146: =IF(G146="",0,L146-R146) -> 0
D147: TV - LCD TVs 21"-23" | E147: =IF(E109="","",E109) ->  | H147: =IF(F147="",0,ROUND(E147*F147,0)) -> 0 | I147: =IF(F147="",0,E147-H147) -> 0 | J147: =IF(H147=0,0,H147*'Product Data and EFs'!L66/1000/'Product Data and EFs'!F66) -> 0 | K147: =IF(I147=0,0,I147*'Product Data and EFs'!K66/1000/'Product Data and EFs'!F66) -> 0 | L147: =IF(F147="",0,SUM(J147:K147)) -> 0 | M147: =IF(L147=0,0,(E147*'Product Data and EFs'!K66/1000/'Product Data and EFs'!F66-'Product Emissions Analysis'!L147)) -> 0 | N147: =IF(G147="",0,ROUND(E147*G147,0)) -> 0 | O147: =IF(G147="",0,E147-N147) -> 0 | P147: =IF(N147=0,0,N147*'Product Data and EFs'!L66/1000/'Product Data and EFs'!F66) -> 0 | Q147: =IF(O147=0,0,O147*'Product Data and EFs'!K66/1000/'Product Data and EFs'!F66) -> 0 | R147: =IF(G147="",0,SUM(P147:Q147)) -> 0 | S147: =IF(R147=0,0,(E147*'Product Data and EFs'!K66/1000/'Product Data and EFs'!F66-'Product Emissions Analysis'!R147)) -> 0 | T147: =IF(G147="",0,L147-R147) -> 0
D148: TV - LCD TVs 24"-29" | E148: =IF(E110="","",E110) ->  | H148: 0 | I148: 0 | J148: =IF(H148=0,0,H148*'Product Data and EFs'!L67/1000/'Product Data and EFs'!F67) -> 0 | K148: =IF(I148=0,0,I148*'Product Data and EFs'!K67/1000/'Product Data and EFs'!F67) -> 0 | L148: 0 | M148: =IF(L148=0,0,(E148*'Product Data and EFs'!K67/1000/'Product Data and EFs'!F67-'Product Emissions Analysis'!L148)) -> 0 | N148: 0 | O148: 0 | P148: =IF(N148=0,0,N148*'Product Data and EFs'!L67/1000/'Product Data and EFs'!F67) -> 0 | Q148: =IF(O148=0,0,O148*'Product Data and EFs'!K67/1000/'Product Data and EFs'!F67) -> 0 | R148: 0 | S148: =IF(R148=0,0,(E148*'Product Data and EFs'!K67/1000/'Product Data and EFs'!F67-'Product Emissions Analysis'!R148)) -> 0 | T148: 0
D149: TV - LCD TVs 30"-34" | E149: =IF(E111="","",E111) ->  | H149: 0 | I149: 0 | J149: =IF(H149=0,0,H149*'Product Data and EFs'!L68/1000/'Product Data and EFs'!F68) -> 0 | K149: =IF(I149=0,0,I149*'Product Data and EFs'!K68/1000/'Product Data and EFs'!F68) -> 0 | L149: 0 | M149: =IF(L149=0,0,(E149*'Product Data and EFs'!K68/1000/'Product Data and EFs'!F68-'Product Emissions Analysis'!L149)) -> 0 | N149: 0 | O149: 0 | P149: =IF(N149=0,0,N149*'Product Data and EFs'!L68/1000/'Product Data and EFs'!F68) -> 0 | Q149: =IF(O149=0,0,O149*'Product Data and EFs'!K68/1000/'Product Data and EFs'!F68) -> 0 | R149: 0 | S149: =IF(R149=0,0,(E149*'Product Data and EFs'!K68/1000/'Product Data and EFs'!F68-'Product Emissions Analysis'!R149)) -> 0 | T149: 0
D150: TV - LCD TVs 35"-39" | E150: =IF(E112="","",E112) ->  | H150: 0 | I150: 0 | J150: =IF(H150=0,0,H150*'Product Data and EFs'!L69/1000/'Product Data and EFs'!F69) -> 0 | K150: =IF(I150=0,0,I150*'Product Data and EFs'!K69/1000/'Product Data and EFs'!F69) -> 0 | L150: 0 | M150: =IF(L150=0,0,(E150*'Product Data and EFs'!K69/1000/'Product Data and EFs'!F69-'Product Emissions Analysis'!L150)) -> 0 | N150: 0 | O150: 0 | P150: =IF(N150=0,0,N150*'Product Data and EFs'!L69/1000/'Product Data and EFs'!F69) -> 0 | Q150: =IF(O150=0,0,O150*'Product Data and EFs'!K69/1000/'Product Data and EFs'!F69) -> 0 | R150: 0 | S150: =IF(R150=0,0,(E150*'Product Data and EFs'!K69/1000/'Product Data and EFs'!F69-'Product Emissions Analysis'!R150)) -> 0 | T150: 0
D151: TV - LCD TVs 40"-44" | E151: =IF(E113="","",E113) ->  | H151: 0 | I151: 0 | J151: =IF(H151=0,0,H151*'Product Data and EFs'!L70/1000/'Product Data and EFs'!F70) -> 0 | K151: =IF(I151=0,0,I151*'Product Data and EFs'!K70/1000/'Product Data and EFs'!F70) -> 0 | L151: 0 | M151: =IF(L151=0,0,(E151*'Product Data and EFs'!K70/1000/'Product Data and EFs'!F70-'Product Emissions Analysis'!L151)) -> 0 | N151: 0 | O151: 0 | P151: =IF(N151=0,0,N151*'Product Data and EFs'!L70/1000/'Product Data and EFs'!F70) -> 0 | Q151: =IF(O151=0,0,O151*'Product Data and EFs'!K70/1000/'Product Data and EFs'!F70) -> 0 | R151: 0 | S151: =IF(R151=0,0,(E151*'Product Data and EFs'!K70/1000/'Product Data and EFs'!F70-'Product Emissions Analysis'!R151)) -> 0 | T151: 0
D152: TV - LCD TVs 45"-49" | E152: =IF(E114="","",E114) ->  | H152: 0 | I152: 0 | J152: =IF(H152=0,0,H152*'Product Data and EFs'!L71/1000/'Product Data and EFs'!F71) -> 0 | K152: =IF(I152=0,0,I152*'Product Data and EFs'!K71/1000/'Product Data and EFs'!F71) -> 0 | L152: 0 | M152: =IF(L152=0,0,(E152*'Product Data and EFs'!K71/1000/'Product Data and EFs'!F71-'Product Emissions Analysis'!L152)) -> 0 | N152: 0 | O152: 0 | P152: =IF(N152=0,0,N152*'Product Data and EFs'!L71/1000/'Product Data and EFs'!F71) -> 0 | Q152: =IF(O152=0,0,O152*'Product Data and EFs'!K71/1000/'Product Data and EFs'!F71) -> 0 | R152: 0 | S152: =IF(R152=0,0,(E152*'Product Data and EFs'!K71/1000/'Product Data and EFs'!F71-'Product Emissions Analysis'!R152)) -> 0 | T152: 0
D153: TV - LCD TVs 50"-54" | E153: =IF(E115="","",E115) ->  | H153: 0 | I153: 0 | J153: =IF(H153=0,0,H153*'Product Data and EFs'!L72/1000/'Product Data and EFs'!F72) -> 0 | K153: =IF(I153=0,0,I153*'Product Data and EFs'!K72/1000/'Product Data and EFs'!F72) -> 0 | L153: 0 | M153: =IF(L153=0,0,(E153*'Product Data and EFs'!K72/1000/'Product Data and EFs'!F72-'Product Emissions Analysis'!L153)) -> 0 | N153: 0 | O153: 0 | P153: =IF(N153=0,0,N153*'Product Data and EFs'!L72/1000/'Product Data and EFs'!F72) -> 0 | Q153: =IF(O153=0,0,O153*'Product Data and EFs'!K72/1000/'Product Data and EFs'!F72) -> 0 | R153: 0 | S153: =IF(R153=0,0,(E153*'Product Data and EFs'!K72/1000/'Product Data and EFs'!F72-'Product Emissions Analysis'!R153)) -> 0 | T153: 0
D154: TV - LCD TVs 55"-59" | E154: =IF(E116="","",E116) ->  | H154: 0 | I154: 0 | J154: =IF(H154=0,0,H154*'Product Data and EFs'!L73/1000/'Product Data and EFs'!F73) -> 0 | K154: =IF(I154=0,0,I154*'Product Data and EFs'!K73/1000/'Product Data and EFs'!F73) -> 0 | L154: 0 | M154: =IF(L154=0,0,(E154*'Product Data and EFs'!K73/1000/'Product Data and EFs'!F73-'Product Emissions Analysis'!L154)) -> 0 | N154: 0 | O154: 0 | P154: =IF(N154=0,0,N154*'Product Data and EFs'!L73/1000/'Product Data and EFs'!F73) -> 0 | Q154: =IF(O154=0,0,O154*'Product Data and EFs'!K73/1000/'Product Data and EFs'!F73) -> 0 | R154: 0 | S154: =IF(R154=0,0,(E154*'Product Data and EFs'!K73/1000/'Product Data and EFs'!F73-'Product Emissions Analysis'!R154)) -> 0 | T154: 0
D155: TV - LCD TVs 60"-64" | E155: =IF(E117="","",E117) ->  | H155: 0 | I155: 0 | J155: =IF(H155=0,0,H155*'Product Data and EFs'!L74/1000/'Product Data and EFs'!F74) -> 0 | K155: =IF(I155=0,0,I155*'Product Data and EFs'!K74/1000/'Product Data and EFs'!F74) -> 0 | L155: 0 | M155: =IF(L155=0,0,(E155*'Product Data and EFs'!K74/1000/'Product Data and EFs'!F74-'Product Emissions Analysis'!L155)) -> 0 | N155: 0 | O155: 0 | P155: =IF(N155=0,0,N155*'Product Data and EFs'!L74/1000/'Product Data and EFs'!F74) -> 0 | Q155: =IF(O155=0,0,O155*'Product Data and EFs'!K74/1000/'Product Data and EFs'!F74) -> 0 | R155: 0 | S155: =IF(R155=0,0,(E155*'Product Data and EFs'!K74/1000/'Product Data and EFs'!F74-'Product Emissions Analysis'!R155)) -> 0 | T155: 0
D156: TV - LCD TVs 65" or greater | E156: =IF(E118="","",E118) ->  | H156: 0 | I156: 0 | J156: =IF(H156=0,0,H156*'Product Data and EFs'!L75/1000/'Product Data and EFs'!F75) -> 0 | K156: =IF(I156=0,0,I156*'Product Data and EFs'!K75/1000/'Product Data and EFs'!F75) -> 0 | L156: 0 | M156: =IF(L156=0,0,(E156*'Product Data and EFs'!K75/1000/'Product Data and EFs'!F75-'Product Emissions Analysis'!L156)) -> 0 | N156: 0 | O156: 0 | P156: =IF(N156=0,0,N156*'Product Data and EFs'!L75/1000/'Product Data and EFs'!F75) -> 0 | Q156: =IF(O156=0,0,O156*'Product Data and EFs'!K75/1000/'Product Data and EFs'!F75) -> 0 | R156: 0 | S156: =IF(R156=0,0,(E156*'Product Data and EFs'!K75/1000/'Product Data and EFs'!F75-'Product Emissions Analysis'!R156)) -> 0 | T156: 0
D157: TV - Plasma TVs under 60" | E157: =IF(E119="","",E119) ->  | H157: 0 | I157: 0 | J157: =IF(H157=0,0,H157*'Product Data and EFs'!L76/1000/'Product Data and EFs'!F76) -> 0 | K157: =IF(I157=0,0,I157*'Product Data and EFs'!K76/1000/'Product Data and EFs'!F76) -> 0 | L157: 0 | M157: =IF(L157=0,0,(E157*'Product Data and EFs'!K76/1000/'Product Data and EFs'!F76-'Product Emissions Analysis'!L157)) -> 0 | N157: 0 | O157: 0 | P157: =IF(N157=0,0,N157*'Product Data and EFs'!L76/1000/'Product Data and EFs'!F76) -> 0 | Q157: =IF(O157=0,0,O157*'Product Data and EFs'!K76/1000/'Product Data and EFs'!F76) -> 0 | R157: 0 | S157: =IF(R157=0,0,(E157*'Product Data and EFs'!K76/1000/'Product Data and EFs'!F76-'Product Emissions Analysis'!R157)) -> 0 | T157: 0
D158: TV - Plasma TVs 60" and up | E158: =IF(E120="","",E120) ->  | H158: 0 | I158: 0 | J158: =IF(H158=0,0,H158*'Product Data and EFs'!L77/1000/'Product Data and EFs'!F77) -> 0 | K158: =IF(I158=0,0,I158*'Product Data and EFs'!K77/1000/'Product Data and EFs'!F77) -> 0 | L158: 0 | M158: =IF(L158=0,0,(E158*'Product Data and EFs'!K77/1000/'Product Data and EFs'!F77-'Product Emissions Analysis'!L158)) -> 0 | N158: 0 | O158: 0 | P158: =IF(N158=0,0,N158*'Product Data and EFs'!L77/1000/'Product Data and EFs'!F77) -> 0 | Q158: =IF(O158=0,0,O158*'Product Data and EFs'!K77/1000/'Product Data and EFs'!F77) -> 0 | R158: 0 | S158: =IF(R158=0,0,(E158*'Product Data and EFs'!K77/1000/'Product Data and EFs'!F77-'Product Emissions Analysis'!R158)) -> 0 | T158: 0
D159: TV - OLED TVs | E159: =IF(E121="","",E121) ->  | H159: 0 | I159: 0 | J159: =IF(H159=0,0,H159*'Product Data and EFs'!L78/1000/'Product Data and EFs'!F78) -> 0 | K159: =IF(I159=0,0,I159*'Product Data and EFs'!K78/1000/'Product Data and EFs'!F78) -> 0 | L159: 0 | M159: =IF(L159=0,0,(E159*'Product Data and EFs'!K78/1000/'Product Data and EFs'!F78-'Product Emissions Analysis'!L159)) -> 0 | N159: 0 | O159: 0 | P159: =IF(N159=0,0,N159*'Product Data and EFs'!L78/1000/'Product Data and EFs'!F78) -> 0 | Q159: =IF(O159=0,0,O159*'Product Data and EFs'!K78/1000/'Product Data and EFs'!F78) -> 0 | R159: 0 | S159: =IF(R159=0,0,(E159*'Product Data and EFs'!K78/1000/'Product Data and EFs'!F78-'Product Emissions Analysis'!R159)) -> 0 | T159: 0
D160: DVD Players | E160: =IF(E122="","",E122) ->  | H160: 0 | I160: 0 | J160: =IF(H160=0,0,H160*'Product Data and EFs'!L79/1000/'Product Data and EFs'!F79) -> 0 | K160: =IF(I160=0,0,I160*'Product Data and EFs'!K79/1000/'Product Data and EFs'!F79) -> 0 | L160: 0 | M160: =IF(L160=0,0,(E160*'Product Data and EFs'!K79/1000/'Product Data and EFs'!F79-'Product Emissions Analysis'!L160)) -> 0 | N160: 0 | O160: 0 | P160: =IF(N160=0,0,N160*'Product Data and EFs'!L79/1000/'Product Data and EFs'!F79) -> 0 | Q160: =IF(O160=0,0,O160*'Product Data and EFs'!K79/1000/'Product Data and EFs'!F79) -> 0 | R160: 0 | S160: =IF(R160=0,0,(E160*'Product Data and EFs'!K79/1000/'Product Data and EFs'!F79-'Product Emissions Analysis'!R160)) -> 0 | T160: 0
D161: Blu Ray | E161: =IF(E123="","",E123) ->  | H161: 0 | I161: 0 | J161: =IF(H161=0,0,H161*'Product Data and EFs'!L80/1000/'Product Data and EFs'!F80) -> 0 | K161: =IF(I161=0,0,I161*'Product Data and EFs'!K80/1000/'Product Data and EFs'!F80) -> 0 | L161: 0 | M161: =IF(L161=0,0,(E161*'Product Data and EFs'!K80/1000/'Product Data and EFs'!F80-'Product Emissions Analysis'!L161)) -> 0 | N161: 0 | O161: 0 | P161: =IF(N161=0,0,N161*'Product Data and EFs'!L80/1000/'Product Data and EFs'!F80) -> 0 | Q161: =IF(O161=0,0,O161*'Product Data and EFs'!K80/1000/'Product Data and EFs'!F80) -> 0 | R161: 0 | S161: =IF(R161=0,0,(E161*'Product Data and EFs'!K80/1000/'Product Data and EFs'!F80-'Product Emissions Analysis'!R161)) -> 0 | T161: 0
D162: Audio Equipment - Receivers | E162: =IF(E124="","",E124) ->  | H162: 0 | I162: 0 | J162: =IF(H162=0,0,H162*'Product Data and EFs'!L81/1000/'Product Data and EFs'!F81) -> 0 | K162: =IF(I162=0,0,I162*'Product Data and EFs'!K81/1000/'Product Data and EFs'!F81) -> 0 | L162: 0 | M162: =IF(L162=0,0,(E162*'Product Data and EFs'!K81/1000/'Product Data and EFs'!F81-'Product Emissions Analysis'!L162)) -> 0 | N162: 0 | O162: 0 | P162: =IF(N162=0,0,N162*'Product Data and EFs'!L81/1000/'Product Data and EFs'!F81) -> 0 | Q162: =IF(O162=0,0,O162*'Product Data and EFs'!K81/1000/'Product Data and EFs'!F81) -> 0 | R162: 0 | S162: =IF(R162=0,0,(E162*'Product Data and EFs'!K81/1000/'Product Data and EFs'!F81-'Product Emissions Analysis'!R162)) -> 0 | T162: 0
D163: Audio Equipment - Home Theater In-a-Box | E163: =IF(E125="","",E125) ->  | H163: 0 | I163: 0 | J163: =IF(H163=0,0,H163*'Product Data and EFs'!L82/1000/'Product Data and EFs'!F82) -> 0 | K163: =IF(I163=0,0,I163*'Product Data and EFs'!K82/1000/'Product Data and EFs'!F82) -> 0 | L163: 0 | M163: =IF(L163=0,0,(E163*'Product Data and EFs'!K82/1000/'Product Data and EFs'!F82-'Product Emissions Analysis'!L163)) -> 0 | N163: 0 | O163: 0 | P163: =IF(N163=0,0,N163*'Product Data and EFs'!L82/1000/'Product Data and EFs'!F82) -> 0 | Q163: =IF(O163=0,0,O163*'Product Data and EFs'!K82/1000/'Product Data and EFs'!F82) -> 0 | R163: 0 | S163: =IF(R163=0,0,(E163*'Product Data and EFs'!K82/1000/'Product Data and EFs'!F82-'Product Emissions Analysis'!R163)) -> 0 | T163: 0
D164: Audio Equipment - Compact Systems | E164: =IF(E126="","",E126) ->  | H164: 0 | I164: 0 | J164: =IF(H164=0,0,H164*'Product Data and EFs'!L83/1000/'Product Data and EFs'!F83) -> 0 | K164: =IF(I164=0,0,I164*'Product Data and EFs'!K83/1000/'Product Data and EFs'!F83) -> 0 | L164: 0 | M164: =IF(L164=0,0,(E164*'Product Data and EFs'!K83/1000/'Product Data and EFs'!F83-'Product Emissions Analysis'!L164)) -> 0 | N164: 0 | O164: 0 | P164: =IF(N164=0,0,N164*'Product Data and EFs'!L83/1000/'Product Data and EFs'!F83) -> 0 | Q164: =IF(O164=0,0,O164*'Product Data and EFs'!K83/1000/'Product Data and EFs'!F83) -> 0 | R164: 0 | S164: =IF(R164=0,0,(E164*'Product Data and EFs'!K83/1000/'Product Data and EFs'!F83-'Product Emissions Analysis'!R164)) -> 0 | T164: 0
D165: Audio Equipment - Soundbars | E165: =IF(E127="","",E127) ->  | H165: 0 | I165: 0 | J165: =IF(H165=0,0,H165*'Product Data and EFs'!L84/1000/'Product Data and EFs'!F84) -> 0 | K165: =IF(I165=0,0,I165*'Product Data and EFs'!K84/1000/'Product Data and EFs'!F84) -> 0 | L165: 0 | M165: =IF(L165=0,0,(E165*'Product Data and EFs'!K84/1000/'Product Data and EFs'!F84-'Product Emissions Analysis'!L165)) -> 0 | N165: 0 | O165: 0 | P165: =IF(N165=0,0,N165*'Product Data and EFs'!L84/1000/'Product Data and EFs'!F84) -> 0 | Q165: =IF(O165=0,0,O165*'Product Data and EFs'!K84/1000/'Product Data and EFs'!F84) -> 0 | R165: 0 | S165: =IF(R165=0,0,(E165*'Product Data and EFs'!K84/1000/'Product Data and EFs'!F84-'Product Emissions Analysis'!R165)) -> 0 | T165: 0
D166: Audio Equipment - Other Powered Speakers | E166: =IF(E128="","",E128) ->  | H166: 0 | I166: 0 | J166: =IF(H166=0,0,H166*'Product Data and EFs'!L85/1000/'Product Data and EFs'!F85) -> 0 | K166: =IF(I166=0,0,I166*'Product Data and EFs'!K85/1000/'Product Data and EFs'!F85) -> 0 | L166: 0 | M166: =IF(L166=0,0,(E166*'Product Data and EFs'!K85/1000/'Product Data and EFs'!F85-'Product Emissions Analysis'!L166)) -> 0 | N166: 0 | O166: 0 | P166: =IF(N166=0,0,N166*'Product Data and EFs'!L85/1000/'Product Data and EFs'!F85) -> 0 | Q166: =IF(O166=0,0,O166*'Product Data and EFs'!K85/1000/'Product Data and EFs'!F85) -> 0 | R166: 0 | S166: =IF(R166=0,0,(E166*'Product Data and EFs'!K85/1000/'Product Data and EFs'!F85-'Product Emissions Analysis'!R166)) -> 0 | T166: 0
D167: Audio Equipment - Home Radios | E167: =IF(E129="","",E129) ->  | H167: 0 | I167: 0 | J167: =IF(H167=0,0,H167*'Product Data and EFs'!L86/1000/'Product Data and EFs'!F86) -> 0 | K167: =IF(I167=0,0,I167*'Product Data and EFs'!K86/1000/'Product Data and EFs'!F86) -> 0 | L167: 0 | M167: =IF(L167=0,0,(E167*'Product Data and EFs'!K86/1000/'Product Data and EFs'!F86-'Product Emissions Analysis'!L167)) -> 0 | N167: 0 | O167: 0 | P167: =IF(N167=0,0,N167*'Product Data and EFs'!L86/1000/'Product Data and EFs'!F86) -> 0 | Q167: =IF(O167=0,0,O167*'Product Data and EFs'!K86/1000/'Product Data and EFs'!F86) -> 0 | R167: 0 | S167: =IF(R167=0,0,(E167*'Product Data and EFs'!K86/1000/'Product Data and EFs'!F86-'Product Emissions Analysis'!R167)) -> 0 | T167: 0
D168: Audio Equipment - Portable Media/MP3 Player Speakers and Docks | E168: =IF(E130="","",E130) ->  | H168: 0 | I168: 0 | J168: =IF(H168=0,0,H168*'Product Data and EFs'!L87/1000/'Product Data and EFs'!F87) -> 0 | K168: =IF(I168=0,0,I168*'Product Data and EFs'!K87/1000/'Product Data and EFs'!F87) -> 0 | L168: 0 | M168: =IF(L168=0,0,(E168*'Product Data and EFs'!K87/1000/'Product Data and EFs'!F87-'Product Emissions Analysis'!L168)) -> 0 | N168: 0 | O168: 0 | P168: =IF(N168=0,0,N168*'Product Data and EFs'!L87/1000/'Product Data and EFs'!F87) -> 0 | Q168: =IF(O168=0,0,O168*'Product Data and EFs'!K87/1000/'Product Data and EFs'!F87) -> 0 | R168: 0 | S168: =IF(R168=0,0,(E168*'Product Data and EFs'!K87/1000/'Product Data and EFs'!F87-'Product Emissions Analysis'!R168)) -> 0 | T168: 0
D169: Residential Telephony | E169: =IF(E131="","",E131) ->  | H169: 0 | I169: 0 | J169: =IF(H169=0,0,H169*'Product Data and EFs'!L88/1000/'Product Data and EFs'!F88) -> 0 | K169: =IF(I169=0,0,I169*'Product Data and EFs'!K88/1000/'Product Data and EFs'!F88) -> 0 | L169: 0 | M169: =IF(L169=0,0,(E169*'Product Data and EFs'!K88/1000/'Product Data and EFs'!F88-'Product Emissions Analysis'!L169)) -> 0 | N169: 0 | O169: 0 | P169: =IF(N169=0,0,N169*'Product Data and EFs'!L88/1000/'Product Data and EFs'!F88) -> 0 | Q169: =IF(O169=0,0,O169*'Product Data and EFs'!K88/1000/'Product Data and EFs'!F88) -> 0 | R169: 0 | S169: =IF(R169=0,0,(E169*'Product Data and EFs'!K88/1000/'Product Data and EFs'!F88-'Product Emissions Analysis'!R169)) -> 0 | T169: 0
D170: Commercial Telephony (VOIP) | E170: =IF(E132="","",E132) ->  | H170: 0 | I170: 0 | J170: =IF(H170=0,0,H170*'Product Data and EFs'!L89/1000/'Product Data and EFs'!F89) -> 0 | K170: =IF(I170=0,0,I170*'Product Data and EFs'!K89/1000/'Product Data and EFs'!F89) -> 0 | L170: 0 | M170: =IF(L170=0,0,(E170*'Product Data and EFs'!K89/1000/'Product Data and EFs'!F89-'Product Emissions Analysis'!L170)) -> 0 | N170: 0 | O170: 0 | P170: =IF(N170=0,0,N170*'Product Data and EFs'!L89/1000/'Product Data and EFs'!F89) -> 0 | Q170: =IF(O170=0,0,O170*'Product Data and EFs'!K89/1000/'Product Data and EFs'!F89) -> 0 | R170: 0 | S170: =IF(R170=0,0,(E170*'Product Data and EFs'!K89/1000/'Product Data and EFs'!F89-'Product Emissions Analysis'!R170)) -> 0 | T170: 0
D171: Set Top Box - Cable | E171: =IF(E133="","",E133) ->  | H171: 0 | I171: 0 | J171: =IF(H171=0,0,H171*'Product Data and EFs'!L90/1000/'Product Data and EFs'!F90) -> 0 | K171: =IF(I171=0,0,I171*'Product Data and EFs'!K90/1000/'Product Data and EFs'!F90) -> 0 | L171: 0 | M171: =IF(L171=0,0,(E171*'Product Data and EFs'!K90/1000/'Product Data and EFs'!F90-'Product Emissions Analysis'!L171)) -> 0 | N171: 0 | O171: 0 | P171: =IF(N171=0,0,N171*'Product Data and EFs'!L90/1000/'Product Data and EFs'!F90) -> 0 | Q171: =IF(O171=0,0,O171*'Product Data and EFs'!K90/1000/'Product Data and EFs'!F90) -> 0 | R171: 0 | S171: =IF(R171=0,0,(E171*'Product Data and EFs'!K90/1000/'Product Data and EFs'!F90-'Product Emissions Analysis'!R171)) -> 0 | T171: 0
D172: Set Top Box - Cable Digital Transport Adapter | E172: =IF(E134="","",E134) ->  | H172: 0 | I172: 0 | J172: =IF(H172=0,0,H172*'Product Data and EFs'!L91/1000/'Product Data and EFs'!F91) -> 0 | K172: =IF(I172=0,0,I172*'Product Data and EFs'!K91/1000/'Product Data and EFs'!F91) -> 0 | L172: 0 | M172: =IF(L172=0,0,(E172*'Product Data and EFs'!K91/1000/'Product Data and EFs'!F91-'Product Emissions Analysis'!L172)) -> 0 | N172: 0 | O172: 0 | P172: =IF(N172=0,0,N172*'Product Data and EFs'!L91/1000/'Product Data and EFs'!F91) -> 0 | Q172: =IF(O172=0,0,O172*'Product Data and EFs'!K91/1000/'Product Data and EFs'!F91) -> 0 | R172: 0 | S172: =IF(R172=0,0,(E172*'Product Data and EFs'!K91/1000/'Product Data and EFs'!F91-'Product Emissions Analysis'!R172)) -> 0 | T172: 0
D173: Set Top Box - Satellite | E173: =IF(E135="","",E135) ->  | H173: 0 | I173: 0 | J173: =IF(H173=0,0,H173*'Product Data and EFs'!L92/1000/'Product Data and EFs'!F92) -> 0 | K173: =IF(I173=0,0,I173*'Product Data and EFs'!K92/1000/'Product Data and EFs'!F92) -> 0 | L173: 0 | M173: =IF(L173=0,0,(E173*'Product Data and EFs'!K92/1000/'Product Data and EFs'!F92-'Product Emissions Analysis'!L173)) -> 0 | N173: 0 | O173: 0 | P173: =IF(N173=0,0,N173*'Product Data and EFs'!L92/1000/'Product Data and EFs'!F92) -> 0 | Q173: =IF(O173=0,0,O173*'Product Data and EFs'!K92/1000/'Product Data and EFs'!F92) -> 0 | R173: 0 | S173: =IF(R173=0,0,(E173*'Product Data and EFs'!K92/1000/'Product Data and EFs'!F92-'Product Emissions Analysis'!R173)) -> 0 | T173: 0
D174: Set Top Box - Multichannel Video Programming Distributor (MVPD) Internet Protocol (IP) | E174: =IF(E136="","",E136) ->  | H174: 0 | I174: 0 | J174: =IF(H174=0,0,H174*'Product Data and EFs'!L93/1000/'Product Data and EFs'!F93) -> 0 | K174: =IF(I174=0,0,I174*'Product Data and EFs'!K93/1000/'Product Data and EFs'!F93) -> 0 | L174: 0 | M174: =IF(L174=0,0,(E174*'Product Data and EFs'!K93/1000/'Product Data and EFs'!F93-'Product Emissions Analysis'!L174)) -> 0 | N174: 0 | O174: 0 | P174: =IF(N174=0,0,N174*'Product Data and EFs'!L93/1000/'Product Data and EFs'!F93) -> 0 | Q174: =IF(O174=0,0,O174*'Product Data and EFs'!K93/1000/'Product Data and EFs'!F93) -> 0 | R174: 0 | S174: =IF(R174=0,0,(E174*'Product Data and EFs'!K93/1000/'Product Data and EFs'!F93-'Product Emissions Analysis'!R174)) -> 0 | T174: 0
D175: Set Top Box - Over-the-Top (OTT) Internet Protocol (IP) | E175: =IF(E137="","",E137) ->  | H175: 0 | I175: 0 | J175: =IF(H175=0,0,H175*'Product Data and EFs'!L94/1000/'Product Data and EFs'!F94) -> 0 | K175: =IF(I175=0,0,I175*'Product Data and EFs'!K94/1000/'Product Data and EFs'!F94) -> 0 | L175: 0 | M175: =IF(L175=0,0,(E175*'Product Data and EFs'!K94/1000/'Product Data and EFs'!F94-'Product Emissions Analysis'!L175)) -> 0 | N175: 0 | O175: 0 | P175: =IF(N175=0,0,N175*'Product Data and EFs'!L94/1000/'Product Data and EFs'!F94) -> 0 | Q175: =IF(O175=0,0,O175*'Product Data and EFs'!K94/1000/'Product Data and EFs'!F94) -> 0 | R175: 0 | S175: =IF(R175=0,0,(E175*'Product Data and EFs'!K94/1000/'Product Data and EFs'!F94-'Product Emissions Analysis'!R175)) -> 0 | T175: 0
D176: Set Top Box - Thin-client | E176: =IF(E138="","",E138) ->  | H176: 0 | I176: 0 | J176: =IF(H176=0,0,H176*'Product Data and EFs'!L95/1000/'Product Data and EFs'!F95) -> 0 | K176: =IF(I176=0,0,I176*'Product Data and EFs'!K95/1000/'Product Data and EFs'!F95) -> 0 | L176: 0 | M176: =IF(L176=0,0,(E176*'Product Data and EFs'!K95/1000/'Product Data and EFs'!F95-'Product Emissions Analysis'!L176)) -> 0 | N176: 0 | O176: 0 | P176: =IF(N176=0,0,N176*'Product Data and EFs'!L95/1000/'Product Data and EFs'!F95) -> 0 | Q176: =IF(O176=0,0,O176*'Product Data and EFs'!K95/1000/'Product Data and EFs'!F95) -> 0 | R176: 0 | S176: =IF(R176=0,0,(E176*'Product Data and EFs'!K95/1000/'Product Data and EFs'!F95-'Product Emissions Analysis'!R176)) -> 0 | T176: 0
D177: Computer Servers | E177: =IF(E139="","",E139) ->  | H177: 0 | I177: 0 | J177: =IF(H177=0,0,H177*'Product Data and EFs'!L96/1000/'Product Data and EFs'!F96) -> 0 | K177: =IF(I177=0,0,I177*'Product Data and EFs'!K96/1000/'Product Data and EFs'!F96) -> 0 | L177: 0 | M177: =IF(L177=0,0,(E177*'Product Data and EFs'!K96/1000/'Product Data and EFs'!F96-'Product Emissions Analysis'!L177)) -> 0 | N177: 0 | O177: 0 | P177: =IF(N177=0,0,N177*'Product Data and EFs'!L96/1000/'Product Data and EFs'!F96) -> 0 | Q177: =IF(O177=0,0,O177*'Product Data and EFs'!K96/1000/'Product Data and EFs'!F96) -> 0 | R177: 0 | S177: =IF(R177=0,0,(E177*'Product Data and EFs'!K96/1000/'Product Data and EFs'!F96-'Product Emissions Analysis'!R177)) -> 0 | T177: 0
D178: TOTAL | H178: =SUM(H146:H177) -> 0 | I178: 0 | J178: 0 | K178: 0 | L178: 0 | M178: 0 | N178: 0 | O178: 0 | P178: 0 | Q178: 0 | R178: 0 | S178: 0 | T178: 0
D182: Office Equipment
D184: Lifetime
H186: Current | N186: Increased ENERGY STAR Sales
D187: Product Type | E187: Total Unit Sales | F187: % of Current Sales that are ENERGY STAR | G187: Enter a Higher % of Sales that are ENERGY STAR for Analysis | H187: Total ENERGY STAR Product Sales | I187: Total Standard Product Sales | J187: Lifetime Product Use Emissions - ENERGY STAR (Metric Tons CO2e) | K187: Lifetime Product Use Emissions - Standard (Metric Tons CO2e) | L187: Lifetime Total Product Use Emissions (Metric Tons CO2e) | M187: Lifetime Emissions Savings from ENERGY STAR Product Sales (Metric Tons CO2e) | N187: Total ENERGY STAR Product Sales | O187: Total Standard Product Sales | P187: Lifetime Product Use Emissions - ENERGY STAR (Metric Tons CO2e) | Q187: Lifetime Product Use Emissions - Standard (Metric Tons CO2e) | R187: Lifetime Total Product Use Emissions (Metric Tons CO2e) | S187: Lifetime Emissions Savings from ENERGY STAR Product Sales (Metric Tons CO2e) | T187: Additional Lifetime Emissions Savings Achieved with Increased ENERGY STAR Sales (Metric Tons CO2e)
D188: Workstation | H188: =IF(F188="",0,ROUND(E188*F188,0)) -> 0 | I188: =IF(F188="",0,E188-H188) -> 0 | J188: =IF(H188=0,0,H188*'Product Data and EFs'!L103/1000) -> 0 | K188: =IF(I188=0,0,I188*'Product Data and EFs'!K103/1000) -> 0 | L188: =IF(F188="",0,SUM(J188:K188)) -> 0 | M188: =IF(L188=0,0,(E188*'Product Data and EFs'!K103/1000-'Product Emissions Analysis'!L188)) -> 0 | N188: =IF(G188="",0,ROUND(E188*G188,0)) -> 0 | O188: =IF(G188="",0,E188-N188) -> 0 | P188: =IF(N188=0,0,N188*'Product Data and EFs'!L103/1000) -> 0 | Q188: =IF(O188=0,0,O188*'Product Data and EFs'!K103/1000) -> 0 | R188: =IF(G188="",0,SUM(P188:Q188)) -> 0 | S188: =IF(R188=0,0,(E188*'Product Data and EFs'!K103/1000-'Product Emissions Analysis'!R188)) -> 0 | T188: =IF(G188="",0,L188-R188) -> 0
D189: Printer (Mono, Laser) | H189: =IF(F189="",0,ROUND(E189*F189,0)) -> 0 | I189: =IF(F189="",0,E189-H189) -> 0 | J189: =IF(H189=0,0,H189*'Product Data and EFs'!L104/1000) -> 0 | K189: =IF(I189=0,0,I189*'Product Data and EFs'!K104/1000) -> 0 | L189: =IF(F189="",0,SUM(J189:K189)) -> 0 | M189: =IF(L189=0,0,(E189*'Product Data and EFs'!K104/1000-'Product Emissions Analysis'!L189)) -> 0 | N189: =IF(G189="",0,ROUND(E189*G189,0)) -> 0 | O189: =IF(G189="",0,E189-N189) -> 0 | P189: =IF(N189=0,0,N189*'Product Data and EFs'!L104/1000) -> 0 | Q189: =IF(O189=0,0,O189*'Product Data and EFs'!K104/1000) -> 0 | R189: =IF(G189="",0,SUM(P189:Q189)) -> 0 | S189: =IF(R189=0,0,(E189*'Product Data and EFs'!K104/1000-'Product Emissions Analysis'!R189)) -> 0 | T189: =IF(G189="",0,L189-R189) -> 0
D190: Multifunction Device (Mono, Laser) | H190: 0 | I190: 0 | J190: =IF(H190=0,0,H190*'Product Data and EFs'!L105/1000) -> 0 | K190: =IF(I190=0,0,I190*'Product Data and EFs'!K105/1000) -> 0 | L190: 0 | M190: =IF(L190=0,0,(E190*'Product Data and EFs'!K105/1000-'Product Emissions Analysis'!L190)) -> 0 | N190: 0 | O190: 0 | P190: =IF(N190=0,0,N190*'Product Data and EFs'!L105/1000) -> 0 | Q190: =IF(O190=0,0,O190*'Product Data and EFs'!K105/1000) -> 0 | R190: 0 | S190: =IF(R190=0,0,(E190*'Product Data and EFs'!K105/1000-'Product Emissions Analysis'!R190)) -> 0 | T190: 0
D191: Printer (Color, Laser) | H191: 0 | I191: 0 | J191: =IF(H191=0,0,H191*'Product Data and EFs'!L106/1000) -> 0 | K191: =IF(I191=0,0,I191*'Product Data and EFs'!K106/1000) -> 0 | L191: 0 | M191: =IF(L191=0,0,(E191*'Product Data and EFs'!K106/1000-'Product Emissions Analysis'!L191)) -> 0 | N191: 0 | O191: 0 | P191: =IF(N191=0,0,N191*'Product Data and EFs'!L106/1000) -> 0 | Q191: =IF(O191=0,0,O191*'Product Data and EFs'!K106/1000) -> 0 | R191: 0 | S191: =IF(R191=0,0,(E191*'Product Data and EFs'!K106/1000-'Product Emissions Analysis'!R191)) -> 0 | T191: 0
D192: Multifunction Device (Color, Laser) | H192: 0 | I192: 0 | J192: =IF(H192=0,0,H192*'Product Data and EFs'!L107/1000) -> 0 | K192: =IF(I192=0,0,I192*'Product Data and EFs'!K107/1000) -> 0 | L192: 0 | M192: =IF(L192=0,0,(E192*'Product Data and EFs'!K107/1000-'Product Emissions Analysis'!L192)) -> 0 | N192: 0 | O192: 0 | P192: =IF(N192=0,0,N192*'Product Data and EFs'!L107/1000) -> 0 | Q192: =IF(O192=0,0,O192*'Product Data and EFs'!K107/1000) -> 0 | R192: 0 | S192: =IF(R192=0,0,(E192*'Product Data and EFs'!K107/1000-'Product Emissions Analysis'!R192)) -> 0 | T192: 0
D193: Multifunction Device (Inkjet) | H193: 0 | I193: 0 | J193: =IF(H193=0,0,H193*'Product Data and EFs'!L108/1000) -> 0 | K193: =IF(I193=0,0,I193*'Product Data and EFs'!K108/1000) -> 0 | L193: 0 | M193: =IF(L193=0,0,(E193*'Product Data and EFs'!K108/1000-'Product Emissions Analysis'!L193)) -> 0 | N193: 0 | O193: 0 | P193: =IF(N193=0,0,N193*'Product Data and EFs'!L108/1000) -> 0 | Q193: =IF(O193=0,0,O193*'Product Data and EFs'!K108/1000) -> 0 | R193: 0 | S193: =IF(R193=0,0,(E193*'Product Data and EFs'!K108/1000-'Product Emissions Analysis'!R193)) -> 0 | T193: 0
D194: Scanner (Inkjet) | H194: 0 | I194: 0 | J194: =IF(H194=0,0,H194*'Product Data and EFs'!L109/1000) -> 0 | K194: =IF(I194=0,0,I194*'Product Data and EFs'!K109/1000) -> 0 | L194: 0 | M194: =IF(L194=0,0,(E194*'Product Data and EFs'!K109/1000-'Product Emissions Analysis'!L194)) -> 0 | N194: 0 | O194: 0 | P194: =IF(N194=0,0,N194*'Product Data and EFs'!L109/1000) -> 0 | Q194: =IF(O194=0,0,O194*'Product Data and EFs'!K109/1000) -> 0 | R194: 0 | S194: =IF(R194=0,0,(E194*'Product Data and EFs'!K109/1000-'Product Emissions Analysis'!R194)) -> 0 | T194: 0
D195: Printer (Inkjet) | H195: 0 | I195: 0 | J195: =IF(H195=0,0,H195*'Product Data and EFs'!L110/1000) -> 0 | K195: =IF(I195=0,0,I195*'Product Data and EFs'!K110/1000) -> 0 | L195: 0 | M195: =IF(L195=0,0,(E195*'Product Data and EFs'!K110/1000-'Product Emissions Analysis'!L195)) -> 0 | N195: 0 | O195: 0 | P195: =IF(N195=0,0,N195*'Product Data and EFs'!L110/1000) -> 0 | Q195: =IF(O195=0,0,O195*'Product Data and EFs'!K110/1000) -> 0 | R195: 0 | S195: =IF(R195=0,0,(E195*'Product Data and EFs'!K110/1000-'Product Emissions Analysis'!R195)) -> 0 | T195: 0
D196: Professional Displays | H196: 0 | I196: 0 | J196: =IF(H196=0,0,H196*'Product Data and EFs'!L111/1000) -> 0 | K196: =IF(I196=0,0,I196*'Product Data and EFs'!K111/1000) -> 0 | L196: 0 | M196: =IF(L196=0,0,(E196*'Product Data and EFs'!K111/1000-'Product Emissions Analysis'!L196)) -> 0 | N196: 0 | O196: 0 | P196: =IF(N196=0,0,N196*'Product Data and EFs'!L111/1000) -> 0 | Q196: =IF(O196=0,0,O196*'Product Data and EFs'!K111/1000) -> 0 | R196: 0 | S196: =IF(R196=0,0,(E196*'Product Data and EFs'!K111/1000-'Product Emissions Analysis'!R196)) -> 0 | T196: 0
D197: Servers | H197: 0 | I197: 0 | J197: =IF(H197=0,0,H197*'Product Data and EFs'!L112/1000) -> 0 | K197: =IF(I197=0,0,I197*'Product Data and EFs'!K112/1000) -> 0 | L197: 0 | M197: =IF(L197=0,0,(E197*'Product Data and EFs'!K112/1000-'Product Emissions Analysis'!L197)) -> 0 | N197: 0 | O197: 0 | P197: =IF(N197=0,0,N197*'Product Data and EFs'!L112/1000) -> 0 | Q197: =IF(O197=0,0,O197*'Product Data and EFs'!K112/1000) -> 0 | R197: 0 | S197: =IF(R197=0,0,(E197*'Product Data and EFs'!K112/1000-'Product Emissions Analysis'!R197)) -> 0 | T197: 0
D198: Small Network Equipment | H198: 0 | I198: 0 | J198: =IF(H198=0,0,H198*'Product Data and EFs'!L113/1000) -> 0 | K198: =IF(I198=0,0,I198*'Product Data and EFs'!K113/1000) -> 0 | L198: 0 | M198: =IF(L198=0,0,(E198*'Product Data and EFs'!K113/1000-'Product Emissions Analysis'!L198)) -> 0 | N198: 0 | O198: 0 | P198: =IF(N198=0,0,N198*'Product Data and EFs'!L113/1000) -> 0 | Q198: =IF(O198=0,0,O198*'Product Data and EFs'!K113/1000) -> 0 | R198: 0 | S198: =IF(R198=0,0,(E198*'Product Data and EFs'!K113/1000-'Product Emissions Analysis'!R198)) -> 0 | T198: 0
D199: Residential UPS | H199: 0 | I199: 0 | J199: =IF(H199=0,0,H199*'Product Data and EFs'!L114/1000) -> 0 | K199: =IF(I199=0,0,I199*'Product Data and EFs'!K114/1000) -> 0 | L199: 0 | M199: =IF(L199=0,0,(E199*'Product Data and EFs'!K114/1000-'Product Emissions Analysis'!L199)) -> 0 | N199: 0 | O199: 0 | P199: =IF(N199=0,0,N199*'Product Data and EFs'!L114/1000) -> 0 | Q199: =IF(O199=0,0,O199*'Product Data and EFs'!K114/1000) -> 0 | R199: 0 | S199: =IF(R199=0,0,(E199*'Product Data and EFs'!K114/1000-'Product Emissions Analysis'!R199)) -> 0 | T199: 0
D200: Small Commercial UPS | H200: 0 | I200: 0 | J200: =IF(H200=0,0,H200*'Product Data and EFs'!L115/1000) -> 0 | K200: =IF(I200=0,0,I200*'Product Data and EFs'!K115/1000) -> 0 | L200: 0 | M200: =IF(L200=0,0,(E200*'Product Data and EFs'!K115/1000-'Product Emissions Analysis'!L200)) -> 0 | N200: 0 | O200: 0 | P200: =IF(N200=0,0,N200*'Product Data and EFs'!L115/1000) -> 0 | Q200: =IF(O200=0,0,O200*'Product Data and EFs'!K115/1000) -> 0 | R200: 0 | S200: =IF(R200=0,0,(E200*'Product Data and EFs'!K115/1000-'Product Emissions Analysis'!R200)) -> 0 | T200: 0
D201: Larger Commercial UPS | H201: 0 | I201: 0 | J201: =IF(H201=0,0,H201*'Product Data and EFs'!L116/1000) -> 0 | K201: =IF(I201=0,0,I201*'Product Data and EFs'!K116/1000) -> 0 | L201: 0 | M201: =IF(L201=0,0,(E201*'Product Data and EFs'!K116/1000-'Product Emissions Analysis'!L201)) -> 0 | N201: 0 | O201: 0 | P201: =IF(N201=0,0,N201*'Product Data and EFs'!L116/1000) -> 0 | Q201: =IF(O201=0,0,O201*'Product Data and EFs'!K116/1000) -> 0 | R201: 0 | S201: =IF(R201=0,0,(E201*'Product Data and EFs'!K116/1000-'Product Emissions Analysis'!R201)) -> 0 | T201: 0
D202: TOTAL | E202: =SUM(E188:E201) -> 0 | F202: NA | G202: NA | H202: =SUM(H188:H201) -> 0 | I202: 0 | J202: 0 | K202: 0 | L202: 0 | M202: 0 | N202: 0 | O202: 0 | P202: 0 | Q202: 0 | R202: 0 | S202: 0 | T202: 0
D204: Annual
H206: Current | N206: Increased ENERGY STAR Sales
D207: Product Type | E207: Total Unit Sales | F207: % of Current Sales that are ENERGY STAR | G207: Higher % of Sales that are ENERGY STAR for Analysis | H207: Total ENERGY STAR Product Sales | I207: Total Standard Product Sales | J207: Annual Product Use Emissions - ENERGY STAR (Metric Tons CO2e) | K207: Annual Product Use Emissions - Standard (Metric Tons CO2e) | L207: Annual Total Product Use Emissions (Metric Tons CO2e) | M207: Annual Emissions Savings from ENERGY STAR Product Sales (Metric Tons CO2e) | N207: Total ENERGY STAR Product Sales | O207: Total Standard Product Sales | P207: Annual Product Use Emissions - ENERGY STAR (Metric Tons CO2e) | Q207: Annual Product Use Emissions - Standard (Metric Tons CO2e) | R207: Annual Total Product Use Emissions (Metric Tons CO2e) | S207: Annual Emissions Savings from ENERGY STAR Product Sales (Metric Tons CO2e) | T207: Additional Annual Emissions Savings Achieved with Increased ENERGY STAR Sales (Metric Tons CO2e)
D208: Workstation | E208: =IF(E188="","",E188) ->  | F208: =IF(F188="","",F188) ->  | G208: =IF(G188="","",G188) ->  | H208: =IF(F208="",0,ROUND(E208*F208,0)) -> 0 | I208: =IF(F208="",0,E208-H208) -> 0 | J208: =IF(H208=0,0,H208*'Product Data and EFs'!L103/1000/'Product Data and EFs'!F103) -> 0 | K208: =IF(I208=0,0,I208*'Product Data and EFs'!K103/1000/'Product Data and EFs'!F103) -> 0 | L208: =IF(F208="",0,SUM(J208:K208)) -> 0 | M208: =IF(L208=0,0,(E208*'Product Data and EFs'!K103/1000/'Product Data and EFs'!F103-'Product Emissions Analysis'!L208)) -> 0 | N208: =IF(G208="",0,ROUND(E208*G208,0)) -> 0 | O208: =IF(G208="",0,E208-N208) -> 0 | P208: =IF(N208=0,0,N208*'Product Data and EFs'!L103/1000/'Product Data and EFs'!F103) -> 0 | Q208: =IF(O208=0,0,O208*'Product Data and EFs'!K103/1000/'Product Data and EFs'!F103) -> 0 | R208: =IF(G208="",0,SUM(P208:Q208)) -> 0 | S208: =IF(R208=0,0,(E208*'Product Data and EFs'!K103/1000/'Product Data and EFs'!F103-'Product Emissions Analysis'!R208)) -> 0 | T208: =IF(G208="",0,L208-R208) -> 0
D209: Printer (Mono, Laser) | E209: =IF(E189="","",E189) ->  | H209: =IF(F209="",0,ROUND(E209*F209,0)) -> 0 | I209: =IF(F209="",0,E209-H209) -> 0 | J209: =IF(H209=0,0,H209*'Product Data and EFs'!L104/1000/'Product Data and EFs'!F104) -> 0 | K209: =IF(I209=0,0,I209*'Product Data and EFs'!K104/1000/'Product Data and EFs'!F104) -> 0 | L209: =IF(F209="",0,SUM(J209:K209)) -> 0 | M209: =IF(L209=0,0,(E209*'Product Data and EFs'!K104/1000/'Product Data and EFs'!F104-'Product Emissions Analysis'!L209)) -> 0 | N209: =IF(G209="",0,ROUND(E209*G209,0)) -> 0 | O209: =IF(G209="",0,E209-N209) -> 0 | P209: =IF(N209=0,0,N209*'Product Data and EFs'!L104/1000/'Product Data and EFs'!F104) -> 0 | Q209: =IF(O209=0,0,O209*'Product Data and EFs'!K104/1000/'Product Data and EFs'!F104) -> 0 | R209: =IF(G209="",0,SUM(P209:Q209)) -> 0 | S209: =IF(R209=0,0,(E209*'Product Data and EFs'!K104/1000/'Product Data and EFs'!F104-'Product Emissions Analysis'!R209)) -> 0 | T209: =IF(G209="",0,L209-R209) -> 0
D210: Multifunction Device (Mono, Laser) | E210: =IF(E190="","",E190) ->  | H210: 0 | I210: 0 | J210: =IF(H210=0,0,H210*'Product Data and EFs'!L105/1000/'Product Data and EFs'!F105) -> 0 | K210: =IF(I210=0,0,I210*'Product Data and EFs'!K105/1000/'Product Data and EFs'!F105) -> 0 | L210: 0 | M210: =IF(L210=0,0,(E210*'Product Data and EFs'!K105/1000/'Product Data and EFs'!F105-'Product Emissions Analysis'!L210)) -> 0 | N210: 0 | O210: 0 | P210: =IF(N210=0,0,N210*'Product Data and EFs'!L105/1000/'Product Data and EFs'!F105) -> 0 | Q210: =IF(O210=0,0,O210*'Product Data and EFs'!K105/1000/'Product Data and EFs'!F105) -> 0 | R210: 0 | S210: =IF(R210=0,0,(E210*'Product Data and EFs'!K105/1000/'Product Data and EFs'!F105-'Product Emissions Analysis'!R210)) -> 0 | T210: 0
D211: Printer (Color, Laser) | E211: =IF(E191="","",E191) ->  | H211: 0 | I211: 0 | J211: =IF(H211=0,0,H211*'Product Data and EFs'!L106/1000/'Product Data and EFs'!F106) -> 0 | K211: =IF(I211=0,0,I211*'Product Data and EFs'!K106/1000/'Product Data and EFs'!F106) -> 0 | L211: 0 | M211: =IF(L211=0,0,(E211*'Product Data and EFs'!K106/1000/'Product Data and EFs'!F106-'Product Emissions Analysis'!L211)) -> 0 | N211: 0 | O211: 0 | P211: =IF(N211=0,0,N211*'Product Data and EFs'!L106/1000/'Product Data and EFs'!F106) -> 0 | Q211: =IF(O211=0,0,O211*'Product Data and EFs'!K106/1000/'Product Data and EFs'!F106) -> 0 | R211: 0 | S211: =IF(R211=0,0,(E211*'Product Data and EFs'!K106/1000/'Product Data and EFs'!F106-'Product Emissions Analysis'!R211)) -> 0 | T211: 0
D212: Multifunction Device (Color, Laser) | E212: =IF(E192="","",E192) ->  | H212: 0 | I212: 0 | J212: =IF(H212=0,0,H212*'Product Data and EFs'!L107/1000/'Product Data and EFs'!F107) -> 0 | K212: =IF(I212=0,0,I212*'Product Data and EFs'!K107/1000/'Product Data and EFs'!F107) -> 0 | L212: 0 | M212: =IF(L212=0,0,(E212*'Product Data and EFs'!K107/1000/'Product Data and EFs'!F107-'Product Emissions Analysis'!L212)) -> 0 | N212: 0 | O212: 0 | P212: =IF(N212=0,0,N212*'Product Data and EFs'!L107/1000/'Product Data and EFs'!F107) -> 0 | Q212: =IF(O212=0,0,O212*'Product Data and EFs'!K107/1000/'Product Data and EFs'!F107) -> 0 | R212: 0 | S212: =IF(R212=0,0,(E212*'Product Data and EFs'!K107/1000/'Product Data and EFs'!F107-'Product Emissions Analysis'!R212)) -> 0 | T212: 0
D213: Multifunction Device (Inkjet) | E213: =IF(E193="","",E193) ->  | H213: 0 | I213: 0 | J213: =IF(H213=0,0,H213*'Product Data and EFs'!L108/1000/'Product Data and EFs'!F108) -> 0 | K213: =IF(I213=0,0,I213*'Product Data and EFs'!K108/1000/'Product Data and EFs'!F108) -> 0 | L213: 0 | M213: =IF(L213=0,0,(E213*'Product Data and EFs'!K108/1000/'Product Data and EFs'!F108-'Product Emissions Analysis'!L213)) -> 0 | N213: 0 | O213: 0 | P213: =IF(N213=0,0,N213*'Product Data and EFs'!L108/1000/'Product Data and EFs'!F108) -> 0 | Q213: =IF(O213=0,0,O213*'Product Data and EFs'!K108/1000/'Product Data and EFs'!F108) -> 0 | R213: 0 | S213: =IF(R213=0,0,(E213*'Product Data and EFs'!K108/1000/'Product Data and EFs'!F108-'Product Emissions Analysis'!R213)) -> 0 | T213: 0
D214: Scanner (Inkjet) | E214: =IF(E194="","",E194) ->  | H214: 0 | I214: 0 | J214: =IF(H214=0,0,H214*'Product Data and EFs'!L109/1000/'Product Data and EFs'!F109) -> 0 | K214: =IF(I214=0,0,I214*'Product Data and EFs'!K109/1000/'Product Data and EFs'!F109) -> 0 | L214: 0 | M214: =IF(L214=0,0,(E214*'Product Data and EFs'!K109/1000/'Product Data and EFs'!F109-'Product Emissions Analysis'!L214)) -> 0 | N214: 0 | O214: 0 | P214: =IF(N214=0,0,N214*'Product Data and EFs'!L109/1000/'Product Data and EFs'!F109) -> 0 | Q214: =IF(O214=0,0,O214*'Product Data and EFs'!K109/1000/'Product Data and EFs'!F109) -> 0 | R214: 0 | S214: =IF(R214=0,0,(E214*'Product Data and EFs'!K109/1000/'Product Data and EFs'!F109-'Product Emissions Analysis'!R214)) -> 0 | T214: 0
D215: Printer (Inkjet) | E215: =IF(E195="","",E195) ->  | H215: 0 | I215: 0 | J215: =IF(H215=0,0,H215*'Product Data and EFs'!L110/1000/'Product Data and EFs'!F110) -> 0 | K215: =IF(I215=0,0,I215*'Product Data and EFs'!K110/1000/'Product Data and EFs'!F110) -> 0 | L215: 0 | M215: =IF(L215=0,0,(E215*'Product Data and EFs'!K110/1000/'Product Data and EFs'!F110-'Product Emissions Analysis'!L215)) -> 0 | N215: 0 | O215: 0 | P215: =IF(N215=0,0,N215*'Product Data and EFs'!L110/1000/'Product Data and EFs'!F110) -> 0 | Q215: =IF(O215=0,0,O215*'Product Data and EFs'!K110/1000/'Product Data and EFs'!F110) -> 0 | R215: 0 | S215: =IF(R215=0,0,(E215*'Product Data and EFs'!K110/1000/'Product Data and EFs'!F110-'Product Emissions Analysis'!R215)) -> 0 | T215: 0
D216: Professional Displays | E216: =IF(E196="","",E196) ->  | H216: 0 | I216: 0 | J216: =IF(H216=0,0,H216*'Product Data and EFs'!L111/1000/'Product Data and EFs'!F111) -> 0 | K216: =IF(I216=0,0,I216*'Product Data and EFs'!K111/1000/'Product Data and EFs'!F111) -> 0 | L216: 0 | M216: =IF(L216=0,0,(E216*'Product Data and EFs'!K111/1000/'Product Data and EFs'!F111-'Product Emissions Analysis'!L216)) -> 0 | N216: 0 | O216: 0 | P216: =IF(N216=0,0,N216*'Product Data and EFs'!L111/1000/'Product Data and EFs'!F111) -> 0 | Q216: =IF(O216=0,0,O216*'Product Data and EFs'!K111/1000/'Product Data and EFs'!F111) -> 0 | R216: 0 | S216: =IF(R216=0,0,(E216*'Product Data and EFs'!K111/1000/'Product Data and EFs'!F111-'Product Emissions Analysis'!R216)) -> 0 | T216: 0
D217: Servers | E217: =IF(E197="","",E197) ->  | H217: 0 | I217: 0 | J217: =IF(H217=0,0,H217*'Product Data and EFs'!L112/1000/'Product Data and EFs'!F112) -> 0 | K217: =IF(I217=0,0,I217*'Product Data and EFs'!K112/1000/'Product Data and EFs'!F112) -> 0 | L217: 0 | M217: =IF(L217=0,0,(E217*'Product Data and EFs'!K112/1000/'Product Data and EFs'!F112-'Product Emissions Analysis'!L217)) -> 0 | N217: 0 | O217: 0 | P217: =IF(N217=0,0,N217*'Product Data and EFs'!L112/1000/'Product Data and EFs'!F112) -> 0 | Q217: =IF(O217=0,0,O217*'Product Data and EFs'!K112/1000/'Product Data and EFs'!F112) -> 0 | R217: 0 | S217: =IF(R217=0,0,(E217*'Product Data and EFs'!K112/1000/'Product Data and EFs'!F112-'Product Emissions Analysis'!R217)) -> 0 | T217: 0
D218: Small Network Equipment | E218: =IF(E198="","",E198) ->  | H218: 0 | I218: 0 | J218: =IF(H218=0,0,H218*'Product Data and EFs'!L113/1000/'Product Data and EFs'!F113) -> 0 | K218: =IF(I218=0,0,I218*'Product Data and EFs'!K113/1000/'Product Data and EFs'!F113) -> 0 | L218: 0 | M218: =IF(L218=0,0,(E218*'Product Data and EFs'!K113/1000/'Product Data and EFs'!F113-'Product Emissions Analysis'!L218)) -> 0 | N218: 0 | O218: 0 | P218: =IF(N218=0,0,N218*'Product Data and EFs'!L113/1000/'Product Data and EFs'!F113) -> 0 | Q218: =IF(O218=0,0,O218*'Product Data and EFs'!K113/1000/'Product Data and EFs'!F113) -> 0 | R218: 0 | S218: =IF(R218=0,0,(E218*'Product Data and EFs'!K113/1000/'Product Data and EFs'!F113-'Product Emissions Analysis'!R218)) -> 0 | T218: 0
D219: Residential UPS | E219: =IF(E199="","",E199) ->  | H219: 0 | I219: 0 | J219: =IF(H219=0,0,H219*'Product Data and EFs'!L114/1000/'Product Data and EFs'!F114) -> 0 | K219: =IF(I219=0,0,I219*'Product Data and EFs'!K114/1000/'Product Data and EFs'!F114) -> 0 | L219: 0 | M219: =IF(L219=0,0,(E219*'Product Data and EFs'!K114/1000/'Product Data and EFs'!F114-'Product Emissions Analysis'!L219)) -> 0 | N219: 0 | O219: 0 | P219: =IF(N219=0,0,N219*'Product Data and EFs'!L114/1000/'Product Data and EFs'!F114) -> 0 | Q219: =IF(O219=0,0,O219*'Product Data and EFs'!K114/1000/'Product Data and EFs'!F114) -> 0 | R219: 0 | S219: =IF(R219=0,0,(E219*'Product Data and EFs'!K114/1000/'Product Data and EFs'!F114-'Product Emissions Analysis'!R219)) -> 0 | T219: 0
D220: Small Commercial UPS | E220: =IF(E200="","",E200) ->  | H220: 0 | I220: 0 | J220: =IF(H220=0,0,H220*'Product Data and EFs'!L115/1000/'Product Data and EFs'!F115) -> 0 | K220: =IF(I220=0,0,I220*'Product Data and EFs'!K115/1000/'Product Data and EFs'!F115) -> 0 | L220: 0 | M220: =IF(L220=0,0,(E220*'Product Data and EFs'!K115/1000/'Product Data and EFs'!F115-'Product Emissions Analysis'!L220)) -> 0 | N220: 0 | O220: 0 | P220: =IF(N220=0,0,N220*'Product Data and EFs'!L115/1000/'Product Data and EFs'!F115) -> 0 | Q220: =IF(O220=0,0,O220*'Product Data and EFs'!K115/1000/'Product Data and EFs'!F115) -> 0 | R220: 0 | S220: =IF(R220=0,0,(E220*'Product Data and EFs'!K115/1000/'Product Data and EFs'!F115-'Product Emissions Analysis'!R220)) -> 0 | T220: 0
D221: Larger Commercial UPS | E221: =IF(E201="","",E201) ->  | H221: 0 | I221: 0 | J221: =IF(H221=0,0,H221*'Product Data and EFs'!L116/1000/'Product Data and EFs'!F116) -> 0 | K221: =IF(I221=0,0,I221*'Product Data and EFs'!K116/1000/'Product Data and EFs'!F116) -> 0 | L221: 0 | M221: =IF(L221=0,0,(E221*'Product Data and EFs'!K116/1000/'Product Data and EFs'!F116-'Product Emissions Analysis'!L221)) -> 0 | N221: 0 | O221: 0 | P221: =IF(N221=0,0,N221*'Product Data and EFs'!L116/1000/'Product Data and EFs'!F116) -> 0 | Q221: =IF(O221=0,0,O221*'Product Data and EFs'!K116/1000/'Product Data and EFs'!F116) -> 0 | R221: 0 | S221: =IF(R221=0,0,(E221*'Product Data and EFs'!K116/1000/'Product Data and EFs'!F116-'Product Emissions Analysis'!R221)) -> 0 | T221: 0
D222: TOTAL | E222: =IF(E202="","",E202) -> 0 | F222: NA | G222: NA | H222: =SUM(H208:H221) -> 0 | I222: 0 | J222: 0 | K222: 0 | L222: 0 | M222: 0 | N222: 0 | O222: 0 | P222: 0 | Q222: 0 | R222: 0 | S222: 0 | T222: 0
D226: Computers and Monitors
D228: Lifetime
H230: Current | N230: Increased ENERGY STAR Sales
D231: Product Type | E231: Total Unit Sales | F231: % of Current Sales that are ENERGY STAR | G231: Enter a Higher % of Sales that are ENERGY STAR for Analysis | H231: Total ENERGY STAR Product Sales | I231: Total Standard Product Sales | J231: Lifetime Product Use Emissions - ENERGY STAR (Metric Tons CO2e) | K231: Lifetime Product Use Emissions - Standard (Metric Tons CO2e) | L231: Lifetime Total Product Use Emissions (Metric Tons CO2e) | M231: Lifetime Emissions Savings from ENERGY STAR Product Sales (Metric Tons CO2e) | N231: Total ENERGY STAR Product Sales | O231: Total Standard Product Sales | P231: Lifetime Product Use Emissions - ENERGY STAR (Metric Tons CO2e) | Q231: Lifetime Product Use Emissions - Standard (Metric Tons CO2e) | R231: Lifetime Total Product Use Emissions (Metric Tons CO2e) | S231: Lifetime Emissions Savings from ENERGY STAR Product Sales (Metric Tons CO2e) | T231: Additional Lifetime Emissions Savings Achieved with Increased ENERGY STAR Sales (Metric Tons CO2e)
D232: Home Desktop-Power Management Not Enabled | H232: =IF(F232="",0,ROUND(E232*F232,0)) -> 0 | I232: =IF(F232="",0,E232-H232) -> 0 | J232: =IF(H232=0,0,H232*'Product Data and EFs'!L123/1000) -> 0 | K232: =IF(I232=0,0,I232*'Product Data and EFs'!K123/1000) -> 0 | L232: =IF(F232="",0,SUM(J232:K232)) -> 0 | M232: =IF(L232=0,0,(E232*'Product Data and EFs'!K123/1000-'Product Emissions Analysis'!L232)) -> 0 | N232: =IF(G232="",0,ROUND(E232*G232,0)) -> 0 | O232: =IF(G232="",0,E232-N232) -> 0 | P232: =IF(N232=0,0,N232*'Product Data and EFs'!L123/1000) -> 0 | Q232: =IF(O232=0,0,O232*'Product Data and EFs'!K123/1000) -> 0 | R232: =IF(G232="",0,SUM(P232:Q232)) -> 0 | S232: =IF(R232=0,0,(E232*'Product Data and EFs'!K123/1000-'Product Emissions Analysis'!R232)) -> 0 | T232: =IF(G232="",0,L232-R232) -> 0
D233: Home Desktop-Power Management Enabled | H233: =IF(F233="",0,ROUND(E233*F233,0)) -> 0 | I233: =IF(F233="",0,E233-H233) -> 0 | J233: =IF(H233=0,0,H233*'Product Data and EFs'!L124/1000) -> 0 | K233: =IF(I233=0,0,I233*'Product Data and EFs'!K124/1000) -> 0 | L233: =IF(F233="",0,SUM(J233:K233)) -> 0 | M233: =IF(L233=0,0,(E233*'Product Data and EFs'!K124/1000-'Product Emissions Analysis'!L233)) -> 0 | N233: =IF(G233="",0,ROUND(E233*G233,0)) -> 0 | O233: =IF(G233="",0,E233-N233) -> 0 | P233: =IF(N233=0,0,N233*'Product Data and EFs'!L124/1000) -> 0 | Q233: =IF(O233=0,0,O233*'Product Data and EFs'!K124/1000) -> 0 | R233: =IF(G233="",0,SUM(P233:Q233)) -> 0 | S233: =IF(R233=0,0,(E233*'Product Data and EFs'!K124/1000-'Product Emissions Analysis'!R233)) -> 0 | T233: =IF(G233="",0,L233-R233) -> 0
D234: Home Laptop-Power Management Not Enabled | H234: 0 | I234: 0 | J234: =IF(H234=0,0,H234*'Product Data and EFs'!L125/1000) -> 0 | K234: =IF(I234=0,0,I234*'Product Data and EFs'!K125/1000) -> 0 | L234: 0 | M234: =IF(L234=0,0,(E234*'Product Data and EFs'!K125/1000-'Product Emissions Analysis'!L234)) -> 0 | N234: 0 | O234: 0 | P234: =IF(N234=0,0,N234*'Product Data and EFs'!L125/1000) -> 0 | Q234: =IF(O234=0,0,O234*'Product Data and EFs'!K125/1000) -> 0 | R234: 0 | S234: =IF(R234=0,0,(E234*'Product Data and EFs'!K125/1000-'Product Emissions Analysis'!R234)) -> 0 | T234: 0
D235: Home Laptop-Power Management Enabled | H235: 0 | I235: 0 | J235: =IF(H235=0,0,H235*'Product Data and EFs'!L126/1000) -> 0 | K235: =IF(I235=0,0,I235*'Product Data and EFs'!K126/1000) -> 0 | L235: 0 | M235: =IF(L235=0,0,(E235*'Product Data and EFs'!K126/1000-'Product Emissions Analysis'!L235)) -> 0 | N235: 0 | O235: 0 | P235: =IF(N235=0,0,N235*'Product Data and EFs'!L126/1000) -> 0 | Q235: =IF(O235=0,0,O235*'Product Data and EFs'!K126/1000) -> 0 | R235: 0 | S235: =IF(R235=0,0,(E235*'Product Data and EFs'!K126/1000-'Product Emissions Analysis'!R235)) -> 0 | T235: 0
D236: Home Monitors-Power Management Not Enabled | H236: 0 | I236: 0 | J236: =IF(H236=0,0,H236*'Product Data and EFs'!L127/1000) -> 0 | K236: =IF(I236=0,0,I236*'Product Data and EFs'!K127/1000) -> 0 | L236: 0 | M236: =IF(L236=0,0,(E236*'Product Data and EFs'!K127/1000-'Product Emissions Analysis'!L236)) -> 0 | N236: 0 | O236: 0 | P236: =IF(N236=0,0,N236*'Product Data and EFs'!L127/1000) -> 0 | Q236: =IF(O236=0,0,O236*'Product Data and EFs'!K127/1000) -> 0 | R236: 0 | S236: =IF(R236=0,0,(E236*'Product Data and EFs'!K127/1000-'Product Emissions Analysis'!R236)) -> 0 | T236: 0
D237: Home Monitors-Power Management Enabled | H237: 0 | I237: 0 | J237: =IF(H237=0,0,H237*'Product Data and EFs'!L128/1000) -> 0 | K237: =IF(I237=0,0,I237*'Product Data and EFs'!K128/1000) -> 0 | L237: 0 | M237: =IF(L237=0,0,(E237*'Product Data and EFs'!K128/1000-'Product Emissions Analysis'!L237)) -> 0 | N237: 0 | O237: 0 | P237: =IF(N237=0,0,N237*'Product Data and EFs'!L128/1000) -> 0 | Q237: =IF(O237=0,0,O237*'Product Data and EFs'!K128/1000) -> 0 | R237: 0 | S237: =IF(R237=0,0,(E237*'Product Data and EFs'!K128/1000-'Product Emissions Analysis'!R237)) -> 0 | T237: 0
D238: Office Desktop-Power Management Not Enabled | H238: 0 | I238: 0 | J238: =IF(H238=0,0,H238*'Product Data and EFs'!L129/1000) -> 0 | K238: =IF(I238=0,0,I238*'Product Data and EFs'!K129/1000) -> 0 | L238: 0 | M238: =IF(L238=0,0,(E238*'Product Data and EFs'!K129/1000-'Product Emissions Analysis'!L238)) -> 0 | N238: 0 | O238: 0 | P238: =IF(N238=0,0,N238*'Product Data and EFs'!L129/1000) -> 0 | Q238: =IF(O238=0,0,O238*'Product Data and EFs'!K129/1000) -> 0 | R238: 0 | S238: =IF(R238=0,0,(E238*'Product Data and EFs'!K129/1000-'Product Emissions Analysis'!R238)) -> 0 | T238: 0
D239: Office Desktop-Power Management Enabled | H239: 0 | I239: 0 | J239: =IF(H239=0,0,H239*'Product Data and EFs'!L130/1000) -> 0 | K239: =IF(I239=0,0,I239*'Product Data and EFs'!K130/1000) -> 0 | L239: 0 | M239: =IF(L239=0,0,(E239*'Product Data and EFs'!K130/1000-'Product Emissions Analysis'!L239)) -> 0 | N239: 0 | O239: 0 | P239: =IF(N239=0,0,N239*'Product Data and EFs'!L130/1000) -> 0 | Q239: =IF(O239=0,0,O239*'Product Data and EFs'!K130/1000) -> 0 | R239: 0 | S239: =IF(R239=0,0,(E239*'Product Data and EFs'!K130/1000-'Product Emissions Analysis'!R239)) -> 0 | T239: 0
D240: Office Laptop-Power Management Not Enabled | H240: 0 | I240: 0 | J240: =IF(H240=0,0,H240*'Product Data and EFs'!L131/1000) -> 0 | K240: =IF(I240=0,0,I240*'Product Data and EFs'!K131/1000) -> 0 | L240: 0 | M240: =IF(L240=0,0,(E240*'Product Data and EFs'!K131/1000-'Product Emissions Analysis'!L240)) -> 0 | N240: 0 | O240: 0 | P240: =IF(N240=0,0,N240*'Product Data and EFs'!L131/1000) -> 0 | Q240: =IF(O240=0,0,O240*'Product Data and EFs'!K131/1000) -> 0 | R240: 0 | S240: =IF(R240=0,0,(E240*'Product Data and EFs'!K131/1000-'Product Emissions Analysis'!R240)) -> 0 | T240: 0
D241: Office Laptop-Power Management Enabled | H241: 0 | I241: 0 | J241: =IF(H241=0,0,H241*'Product Data and EFs'!L132/1000) -> 0 | K241: =IF(I241=0,0,I241*'Product Data and EFs'!K132/1000) -> 0 | L241: 0 | M241: =IF(L241=0,0,(E241*'Product Data and EFs'!K132/1000-'Product Emissions Analysis'!L241)) -> 0 | N241: 0 | O241: 0 | P241: =IF(N241=0,0,N241*'Product Data and EFs'!L132/1000) -> 0 | Q241: =IF(O241=0,0,O241*'Product Data and EFs'!K132/1000) -> 0 | R241: 0 | S241: =IF(R241=0,0,(E241*'Product Data and EFs'!K132/1000-'Product Emissions Analysis'!R241)) -> 0 | T241: 0
... 135 more rows

Sheet Summary Results
C2: Summary Results
C3: This worksheet summarizes the results of the lifetime product emissions analysis across all product categories. The first "Results" section (Scope 3 Use of Sold Products) summarizes the impacts of selling more ENERGY STAR products on the Scope 3 Use of Sold Products category only. The second "Results" section (GHG Inventory) is optional. If you have estimates of your Scope 1 and 2 emissions as well as other Scope 3 categories, entering them in this section will let you see the impact of selling more ENERGY STAR Products on your GHG inventory. Note: The "Scope 3 Use of Sold Products" results only account for products contained in this tool. Therefore, the percentage figures in the "Emissions Savings Calculations" section do not account for other products you may sell. However, in the optional "GHG Inventory" results section you have the option of entering use of sold products emissions associated with products not accounted for in this tool. Therefore the percentage figures in the "Emissions Savings Calculations" section are inclusive of all of yuor Scope 3 Use of Sold Products emissions.
C5: Analysis Time Period | D5: ='Product Emissions Analysis'!E4 -> 0 | E5: Value entered at top of "Product Emissions Analysis" worksheet.
C8: Scope 3 Use of Sold Products
C10: Emissions Inventory Results for ENERGY STAR Product Categories
C11: This is the total lifetime emissions associated with the use of products sold. This is the value that would be reported in your scope 3 inventory under Category 11, Use of Sold Products.
D12: Current | E12: With Increased Sale of ENERGY STAR Products
C13: TOTAL ENERGY STAR PRODUCTS SOLD | D13: =SUM('Product Emissions Analysis'!$H$202,'Product Emissions Analysis'!$H$244,'Product Emissions Analysis'!$H$281,'Product Emissions Analysis'!$J$82,'Product Emissions Analysis'!$K$82,'Product Emissions Analysis'!$H$93,'Product Emissions Analysis'!$H$39,'Product Emissions Analysis'!$H$140,'Product Emissions Analysis'!$H$346) -> 0 | E13: =SUM('Product Emissions Analysis'!$N$202,'Product Emissions Analysis'!$N$244,'Product Emissions Analysis'!$N$281,'Product Emissions Analysis'!$O$82,'Product Emissions Analysis'!$P$82,'Product Emissions Analysis'!$N$98,'Product Emissions Analysis'!$N$39,'Product Emissions Analysis'!$N$140,'Product Emissions Analysis'!$N$346) -> 0
C15: TOTAL SCOPE 3 USE OF SOLD PRODUCT EMISSIONS (Metric Tons CO2e) | D15: =ROUND(SUM(D16:D17),0) -> 0 | E15: =ROUND(SUM(E16:E17),0) -> 0
C16: ENERGY STAR Products | D16: =SUM('Product Emissions Analysis'!J202,'Product Emissions Analysis'!J244,'Product Emissions Analysis'!J281,'Product Emissions Analysis'!J82*'Product Data and EFs'!H53/1000,'Product Emissions Analysis'!K82*'Product Data and EFs'!H54/1000,'Product Emissions Analysis'!J93,'Product Emissions Analysis'!J39,'Product Emissions Analysis'!J140,'Product Emissions Analysis'!J346) -> 0 | E16: =SUM('Product Emissions Analysis'!P202,'Product Emissions Analysis'!P244,'Product Emissions Analysis'!P281,'Product Emissions Analysis'!O82*'Product Data and EFs'!H53/1000,'Product Emissions Analysis'!P82*'Product Data and EFs'!H54/1000,'Product Emissions Analysis'!P93,'Product Emissions Analysis'!P39,'Product Emissions Analysis'!P140,'Product Emissions Analysis'!P346) -> 0
C17: Non-ENERGY STAR Products | D17: =SUM('Product Emissions Analysis'!K202,'Product Emissions Analysis'!K244,'Product Emissions Analysis'!K281,'Product Emissions Analysis'!L82*'Product Data and EFs'!H52/1000,'Product Emissions Analysis'!K93,'Product Emissions Analysis'!K39,'Product Emissions Analysis'!K140,'Product Emissions Analysis'!K346) -> 0 | E17: =SUM('Product Emissions Analysis'!Q202,'Product Emissions Analysis'!Q244,'Product Emissions Analysis'!Q281,'Product Emissions Analysis'!Q82*'Product Data and EFs'!H52/1000,'Product Emissions Analysis'!Q93,'Product Emissions Analysis'!Q39,'Product Emissions Analysis'!Q140,'Product Emissions Analysis'!Q346) -> 0 | H17: Key Takeaways
H18: =IF(D13=0,"Enter data on the 'Product Emissions Analysis' worksheet to see results.","Currently, you sell "&TEXT(D13,"#,##0")&" ENERGY STAR products, and have total reported Scope 3 Use of Sold Product emissions of "&TEXT(D15,"#,##0")&" metric tons CO2e. With the increase in ENERGY STAR product sales, you sell "&TEXT(E13,"#,##0")&" ENERGY STAR products, and have total reported Scope 3 Use of Sold Product emissions of "&TEXT(E15,"#,##0")&" metric tons CO2e (a change of "&TEXT(E19,"#,##0")&" metric tons CO2e). Lifetime emissions savings associated with the "&TEXT(D13,"#,##0")&" ENERGY STAR products you currently sell are "&TEXT(D28,"#,##0")&" metric tons CO2e, equal to "&TEXT(D29*100,"#,##0.00")&"% of current Scope 3 Use of Sold Product emissions reported. By selling an additional "&TEXT(E13-D13,"#,##0")&" ENERGY STAR products you increase lifetime emissions savings to "&TEXT(E28,"#,##0")&" metric tons CO2e, equal to "&TEXT(E29*100,"#,##0.00")&"% of your new Scope 3 Use of Sold Product emissions reported. This is a lifetime emissions savings increase of "&TEXT(E31,"#,##0")&" metric tons CO2e, equal to "&TEXT(E32*100,"#,##0.00")&"% of current Scope 3 Use of Sold Product emissions reported.") -> Enter data on the 'Product Emissions Analysis' worksheet to see results.
C19: CHANGE IN SCOPE 3 INVENTORY EMISSIONS ASSOCIATED WITH INCREASED SALE OF ENERGY STAR PRODUCTS (Metric Tons CO2e) | D19: NA | E19: =E15-D15 -> 0
C21: Emissions Savings Calculations for ENERGY STAR Product Categories
C22: Emissions savings were determined by calculating the emissions that would have occurred if you did not sell any ENERGY STAR products (and instead sold all standard products), and then subtracting from that the actual emissions associated with your product sales (i.e., those that include ENERGY STAR product sales). See "Assumptions Used in This Tool" on the "Getting Started" worksheet for the special case regarding lightbulbs.
D23: Current | E23: With Increased Sale of ENERGY STAR Products
C24: TOTAL PRODUCT USE EMISSIONS IF NOT SELLING ENERGY STAR (Metric Tons CO2e) | D24: =SUM(D25:D26) -> 0 | E24: =SUM(E25:E26) -> 0
C25: Products with Same Lifetimes (All Except Lightbulbs) | D25: =ROUND(SUMPRODUCT('Product Emissions Analysis'!E188:E201,'Product Data and EFs'!K103:K116)/1000+SUMPRODUCT('Product Emissions Analysis'!E232:E243,'Product Data and EFs'!K123:K134)/1000+SUMPRODUCT('Product Emissions Analysis'!E272:E280,'Product Data and EFs'!K141:K149)/1000+('Product Emissions Analysis'!E93*'Product Data and EFs'!I58/1000)+SUMPRODUCT('Product Emissions Analysis'!E15:E38,'Product Data and EFs'!K23:K46)/1000+SUMPRODUCT('Product Emissions Analysis'!E108:E139,'Product Data and EFs'!K65:K96)/1000+SUMPRODUCT('Product Emissions Analysis'!E306:E345,'Product Data and EFs'!K156:K195)/1000,0) -> 0 | E25: =ROUND(SUMPRODUCT('Product Emissions Analysis'!E188:E201,'Product Data and EFs'!K103:K116)/1000+SUMPRODUCT('Product Emissions Analysis'!E232:E243,'Product Data and EFs'!K123:K134)/1000+SUMPRODUCT('Product Emissions Analysis'!E272:E280,'Product Data and EFs'!K141:K149)/1000+('Product Emissions Analysis'!E93*'Product Data and EFs'!I58/1000)+SUMPRODUCT('Product Emissions Analysis'!E15:E38,'Product Data and EFs'!K23:K46)/1000+SUMPRODUCT('Product Emissions Analysis'!E108:E139,'Product Data and EFs'!K65:K96)/1000+SUMPRODUCT('Product Emissions Analysis'!E306:E345,'Product Data and EFs'!K156:K195)/1000,0) -> 0
C26: Lightbulbs | D26: =('Product Emissions Analysis'!J82*15.2*'Product Data and EFs'!H52/1000)+('Product Emissions Analysis'!K82*10.1*'Product Data and EFs'!H52/1000)+('Product Emissions Analysis'!L82*'Product Data and EFs'!H52/1000) -> 0 | E26: =('Product Emissions Analysis'!O82*15.2*'Product Data and EFs'!H52/1000)+('Product Emissions Analysis'!P82*10.1*'Product Data and EFs'!H52/1000)+('Product Emissions Analysis'!Q82*'Product Data and EFs'!H52/1000) -> 0
C28: TOTAL EMISSIONS SAVINGS FROM ENERGY STAR PRODUCT SALES (Metric Tons CO2e) | D28: =ROUND(D24-D15,0) -> 0 | E28: =ROUND(E24-E15,0) -> 0
C29: As a Percentage of Scope 3 Use of Sold Product Emissions | D29: =IF(D15=0,0,ROUND(D28/D15,4)) -> 0 | E29: =IF(E15=0,0,ROUND(E28/E15,4)) -> 0
C31: ADDITIONAL EMISSIONS SAVINGS ACHIEVED WITH INCREASED ENERGY STAR PRODUCT SALES (Metric Tons CO2e) | D31: NA | E31: =E28-D28 -> 0
C32: As a Percentage of Current Scope 3 Use of Sold Product Emissions | D32: NA | E32: =IF(D15=0,0,ROUND(E31/D15,4)) -> 0
C35: GHG Inventory (Optional)
C37: Enter your organization's current total Scope 1 and 2 emissions, as well as other Scope 3 categories in the yellow cells (emissions with increased sale of ENERGY STAR products remains the same for the analysis). Be sure to check emissions factors used in developing these values for consistency to what is used in this tool. This tool uses emissions factors from EPA's GHG Emission Factors Hub and global warming potentials from IPCC's Fourth Assessment Report, 2007 (AR4). (See the "Product Data and EFs" worksheet for more detail on emissions factors used in this tool).
D39: Current Emissions (Metric Tons CO2e) | E39: Emissions w/Increased Sale of ENERGY STAR Products (Metric Tons CO2e)
C40: SCOPE 1 TOTAL EMISSIONS | E40: =IF(D40="",0,D40) -> 0
C41: SCOPE 2 TOTAL EMISSIONS | E41: =IF(D41="",0,D41) -> 0
C42: SCOPE 3 TOTAL EMISSIONS | D42: =SUM(D43:D58) -> 0 | E42: =SUM(E43:E58) -> 0
C43: Category 1: Purchased Goods and Services | E43: =IF(D43="",0,D43) -> 0
C44: Category 2: Capital Goods | E44: 0
C45: Category 3: Fuel- and Energy-Related Activities Not Included in Scope 1 or Scope 2 | E45: 0
C46: Category 4: Upstream Transportation and Distribution | E46: =IF(D46="",0,D46) -> 0
C47: Category 5: Waste Generated in Operations | E47: 0
C48: Category 6: Business Travel | E48: 0
C49: Category 7: Employee Commuting | E49: 0
C50: Category 8: Upstream Leased Assets | E50: 0
C51: Category 9: Downstream Transportation and Distribution | E51: 0
C52: Category 10: Processing of Sold Products | E52: 0
C53: Category 11: Use of Sold Products (this tool) | D53: =D15 -> 0 | E53: =E15 -> 0 | F53: Calculated based on sales figures entered in the "Product Emissions Analysis" worksheet. Only accounts for product types contained in this tool.
C54: Category 11: Use of Sold Products (other) | E54: 0 | F54: Enter use of sold product emissions associated with products not accounted for in this tool (optional)
C55: Category 12: End-of-Life Treatment of Sold Products | E55: =IF(D55="",0,D55) -> 0
C56: Category 13: Downstream Leased Assets | E56: =IF(D56="",0,D56) -> 0
C57: Category 14: Franchises | E57: =IF(D57="",0,D57) -> 0
C58: Category 15: Investments | E58: =IF(D58="",0,D58) -> 0
C59: TOTAL INVENTORY EMISSIONS | D59: =SUM(D40:D42) -> 0 | E59: =SUM(E40:E42) -> 0
C61: Emissions Inventory Results
C62: This is the total lifetime emissions associated with the use of products sold. This is the value that would be reported in your scope 3 inventory under Category 11, Use of Sold Products.
D63: Current | E63: With Increased Sale of ENERGY STAR Products
C64: TOTAL ENERGY STAR PRODUCTS SOLD | D64: =IF(D13="",0,D13) -> 0 | E64: =IF(E13="",0,E13) -> 0
C66: TOTAL SCOPE 3 USE OF SOLD PRODUCT EMISSIONS (Metric Tons CO2e) | D66: =ROUND(SUM(D67:D69),0) -> 0 | E66: =ROUND(SUM(E67:E69),0) -> 0
C67: ENERGY STAR Products | D67: =IF(D16="",0,D16) -> 0 | E67: =IF(E16="",0,E16) -> 0 | H67: Key Takeaways
C68: Non-ENERGY STAR Products | D68: =IF(D17="",0,D17) -> 0 | E68: =IF(E17="",0,E17) -> 0 | H68: =IF(D13=0,"Enter data on the ‘Product Emissions Analysis’ worksheet to see results.","Currently, you sell "&TEXT(D64,"#,##0")&" ENERGY STAR products, and have total reported Scope 3 Use of Sold Product emissions of "&TEXT(D66,"#,##0")&" metric tons CO2e. With the increase in ENERGY STAR product sales, you sell "&TEXT(E64,"#,##0")&" ENERGY STAR products, and have total reported Scope 3 Use of Sold Product emissions of "&TEXT(E66,"#,##0")&" metric tons CO2e (a change of "&TEXT(E71,"#,##0")&" metric tons CO2e). Lifetime emissions savings associated with the "&TEXT(D64,"#,##0")&" ENERGY STAR products you currently sell are "&TEXT(D81,"#,##0")&" metric tons CO2e. These emissions savings are equal to: - "&TEXT(D82*100,"#,##0.00")&"% of total inventory emissions. - "&TEXT(D83*100,"#,##0.00")&"% of total Scope 1 and Scope 2 emissions. - "&TEXT(D84*100,"#,##0.00")&"% of total Scope 3 emissions. - "&TEXT(D85*100,"#,##0.00")&"% of Scope 3 Use of Sold Product emissions. By selling an additional "&TEXT(E64-D64,"#,##0")&" ENERGY STAR products you increase lifetime emissions savings to "&TEXT(E81,"#,##0")&" metric tons CO2e. These emissions savings are equal to: - "&TEXT(E82*100,"#,##0.00")&"% of total inventory emissions. - "&TEXT(E83*100,"#,##0.00")&"% of total Scope 1 and Scope 2 emissions. - "&TEXT(E84*100,"#,##0.00")&"% of total Scope 3 emissions. - "&TEXT(E85*100,"#,##0.00")&"% of Scope 3 Use of Sold Product emissions. This is also a lifetime emissions savings increase of "&TEXT(E87,"#,##0")&" metric tons CO2e, equal to "&TEXT(E88*100,"#,##0.00")&"% of current Scope 3 Use of Sold Product emissions reported.") -> Enter data on the ‘Product Emissions Analysis’ worksheet to see results.
C69: Products Not Accounted for in This Tool (Entered Above, if Applicable) | D69: =IF(D54="",0,D54) -> 0 | E69: =IF(E54="",0,E54) -> 0
C71: CHANGE IN SCOPE 3 INVENTORY EMISSIONS ASSOCIATED WITH INCREASED SALE OF ENERGY STAR PRODUCTS (Metric Tons CO2e) | D71: NA | E71: =E66-D66 -> 0
C73: Emissions Savings Calculations
C74: Emissions savings were determined by calculating the emissions that would have occurred if you did not sell any ENERGY STAR products (and instead sold all standard products), and then subtracting from that the actual emissions associated with your product sales (i.e., those that include ENERGY STAR product sales). See "Assumptions Used in This Tool" on the "Getting Started" worksheet for the special case regarding lightbulbs.
D75: Current | E75: With Increased Sale of ENERGY STAR Products
C76: TOTAL PRODUCT USE EMISSIONS IF NOT SELLING ENERGY STAR (Metric Tons CO2e) | D76: =SUM(D77:D79) -> 0 | E76: =SUM(E77:E79) -> 0
C77: Products with Same Lifetimes (All Except Lightbulbs) | D77: =IF(D25="",0,D25) -> 0 | E77: =IF(E25="",0,E25) -> 0
C78: Lightbulbs | D78: =IF(D26="",0,D26) -> 0 | E78: =IF(E26="",0,E26) -> 0
C79: Products Not Accounted for in This Tool (Entered Above, if Applicable) | D79: =IF(D54="",0,D54) -> 0 | E79: =IF(E54="",0,E54) -> 0
C81: TOTAL EMISSIONS SAVINGS FROM ENERGY STAR PRODUCT SALES (Metric Tons CO2e) | D81: =IF(D28="",0,D28) -> 0 | E81: =IF(E28="",0,E28) -> 0
C82: As a Percentage of Total Inventory Emissions | D82: =IF(D59=0,0,ROUND(D81/D59,4)) -> 0 | E82: =IF(E59=0,0,ROUND(E81/E59,4)) -> 0
C83: As a Percentage of Total Scope 1 and 2 Emissions | D83: =IF(D40+D41=0,0,ROUND(D81/(D40+D41),4)) -> 0 | E83: =IF(E40+E41=0,0,ROUND(E81/(E40+E41),4)) -> 0
C84: As a Percentage of Total Scope 3 Emissions | D84: =IF(D42=0,0,ROUND(D81/D42,4)) -> 0 | E84: =IF(E42=0,0,ROUND(E81/E42,4)) -> 0
C85: As a Percentage of Scope 3 Use of Sold Product Emissions | D85: =IF(D66=0,0,ROUND(D81/D66,4)) -> 0 | E85: =IF(E66=0,0,ROUND(E81/E66,4)) -> 0
C87: ADDITIONAL INVENTORY EMISSIONS SAVINGS ACHIEVED WITH INCREASED ENERGY STAR PRODUCT SALES (Metric Tons CO2e) | D87: NA | E87: =IF(E31="",0,E31) -> 0
C88: As a Percentage of Current Total GHG Inventory Emissions | D88: NA | E88: =IF(D59=0,0,ROUND(E87/D59,4)) -> 0

Sheet Summary Results - Figures
C2: Summary Results - Figures
C4: This worksheet illustrates the summary results in three charts. NOTE: In the first two charts ('Scope 3 Use of Sold Product Emissions Savings - Lifetime' and 'Scope 3 Use of Sold Products Emissions Savings - Annual'), emissions savings were determined by calculating the emissions that would have occurred if you did not sell any ENERGY STAR products (and instead sold all standard products), and then subtracting from that the actual emissions associated with your product sales (i.e., those that include ENERGY STAR product sales). See "Assumptions Used in This Tool" on the "Getting Started" worksheet for the special case regarding lightbulbs. The third chart illustrates the change in total inventory emissions associated with increased ENERGY STAR Sales, which equals the change in your reported Scope 3 Use of Sold Product emissions. Also, the first two charts only represent emissions associated with products contained in this tool. The third chart (GHG Inventory Emissions) includes Scope 3 Use of Sold Products emissions associated with products not contained in this tool (if you entered these emissions in the "GHG Inventory" section of the "Summary Results" worksheet).
B6: Scope 3 Use of Sold Product Emissions Savings - Lifetime
P8: Emissions Comparison (Metric Ton CO2e)
P9: Current Sales: | T9: Increased ENERGY STAR Sales:
P10: Lifetime Product Use Emissions - ENERGY STAR | Q10: Lifetime Product Use Emissions - Standard | R10: Total all Products | S10: Savings from Use of ENERGY STAR | T10: Lifetime Product Use Emissions - ENERGY STAR | U10: Lifetime Product Use Emissions - Standard | V10: Total all Products | W10: Savings from Use of ENERGY STAR
O11: Office Equipment | P11: ='Product Emissions Analysis'!J202 -> 0 | Q11: ='Product Emissions Analysis'!K202 -> 0 | R11: =P11+Q11 -> 0 | T11: ='Product Emissions Analysis'!P202 -> 0 | U11: ='Product Emissions Analysis'!Q202 -> 0 | V11: =T11+U11 -> 0
O12: Computers and Monitors | P12: ='Product Emissions Analysis'!J244 -> 0 | Q12: ='Product Emissions Analysis'!K244 -> 0 | R12: =P12+Q12 -> 0 | T12: ='Product Emissions Analysis'!P244 -> 0 | U12: ='Product Emissions Analysis'!Q244 -> 0 | V12: =T12+U12 -> 0
O13: Heating and Cooling | P13: ='Product Emissions Analysis'!J281 -> 0 | Q13: ='Product Emissions Analysis'!K281 -> 0 | R13: 0 | T13: ='Product Emissions Analysis'!P281 -> 0 | U13: ='Product Emissions Analysis'!Q281 -> 0 | V13: 0
O14: Residential Lighting | P14: =('Product Emissions Analysis'!J82*'Product Data and EFs'!H53/1000)+('Product Emissions Analysis'!K82*'Product Data and EFs'!H54/1000)+'Product Emissions Analysis'!J93 -> 0 | Q14: =('Product Emissions Analysis'!L82*'Product Data and EFs'!H52/1000)+'Product Emissions Analysis'!K93 -> 0 | R14: 0 | T14: =('Product Emissions Analysis'!O82*'Product Data and EFs'!H53/1000)+('Product Emissions Analysis'!P82*'Product Data and EFs'!H54/1000)+'Product Emissions Analysis'!P93 -> 0 | U14: =('Product Emissions Analysis'!Q82*'Product Data and EFs'!H52/1000)+'Product Emissions Analysis'!Q93 -> 0 | V14: 0
O15: Residential Appliances | P15: ='Product Emissions Analysis'!J39 -> 0 | Q15: ='Product Emissions Analysis'!K39 -> 0 | R15: 0 | T15: ='Product Emissions Analysis'!P39 -> 0 | U15: ='Product Emissions Analysis'!Q39 -> 0 | V15: 0
O16: Consumer Electronics | P16: ='Product Emissions Analysis'!J140 -> 0 | Q16: ='Product Emissions Analysis'!K140 -> 0 | R16: 0 | T16: ='Product Emissions Analysis'!P140 -> 0 | U16: ='Product Emissions Analysis'!Q140 -> 0 | V16: 0
O17: Commercial Appliances | P17: ='Product Emissions Analysis'!J346 -> 0 | Q17: ='Product Emissions Analysis'!K346 -> 0 | R17: 0 | T17: ='Product Emissions Analysis'!P346 -> 0 | U17: ='Product Emissions Analysis'!Q346 -> 0 | V17: 0
O18: Total Emissions | P18: 0 | Q18: 0 | R18: 0 | S18: =SUM($R$11:$R$17) -> 0 | T18: 0 | U18: 0 | V18: 0 | W18: =SUM(V11:V17) -> 0
O19: Lifetime Product Use Emission Savings | P19: 0 | Q19: 0 | R19: 0 | S19: ='Summary Results'!D28 -> 0 | T19: 0 | U19: 0 | V19: 0 | W19: ='Summary Results'!E28 -> 0
O20: Baseline Emissions if not using ENERGY STAR | P20: =$S$18+$S$19 -> 0 | Q20: =$S$18+$S$19 -> 0 | R20: =$S$18+$S$19 -> 0 | S20: =$S$18+$S$19 -> 0
O21: Baseline Emissions if not using ENERGY STAR | T21: =$W$18+$W$19 -> 0 | U21: =$W$18+$W$19 -> 0 | V21: 0 | W21: 0
B35: Scope 3 Use of Sold Product Emissions Savings - Annual
P38: Emissions Comparison (Metric Ton CO2e)
P39: Current Sales: | T39: Increased ENERGY STAR Sales:
P40: Annual Product Use Emissions - ENERGY STAR | Q40: Annual Product Use Emissions - Standard | R40: Total all Products | S40: Savings from Use of ENERGY STAR | T40: Annual Product Use Emissions - ENERGY STAR | U40: Annual Product Use Emissions - Standard | V40: Total all Products | W40: Savings from Use of ENERGY STAR
O41: Office Equipment | P41: ='Product Emissions Analysis'!J222 -> 0 | Q41: ='Product Emissions Analysis'!K222 -> 0 | R41: =P41+Q41 -> 0 | T41: ='Product Emissions Analysis'!P222 -> 0 | U41: ='Product Emissions Analysis'!Q222 -> 0 | V41: =T41+U41 -> 0
O42: Computers and Monitors | P42: ='Product Emissions Analysis'!J262 -> 0 | Q42: ='Product Emissions Analysis'!K262 -> 0 | R42: =P42+Q42 -> 0 | T42: ='Product Emissions Analysis'!P262 -> 0 | U42: ='Product Emissions Analysis'!Q262 -> 0 | V42: =T42+U42 -> 0
O43: Heating and Cooling | P43: ='Product Emissions Analysis'!J296 -> 0 | Q43: ='Product Emissions Analysis'!K296 -> 0 | R43: 0 | T43: ='Product Emissions Analysis'!P296 -> 0 | U43: ='Product Emissions Analysis'!Q296 -> 0 | V43: 0
O44: Residential Lighting | P44: =('Product Emissions Analysis'!J87*'Product Data and EFs'!H53/1000/'Product Data and EFs'!F53)+('Product Emissions Analysis'!K87*'Product Data and EFs'!H54/1000/'Product Data and EFs'!F54)+'Product Emissions Analysis'!J98 -> 0 | Q44: =('Product Emissions Analysis'!L87*'Product Data and EFs'!H52/1000/'Product Data and EFs'!F52)+'Product Emissions Analysis'!K98 -> 0 | R44: 0 | T44: =('Product Emissions Analysis'!O87*'Product Data and EFs'!H53/1000/'Product Data and EFs'!F53)+('Product Emissions Analysis'!P87*'Product Data and EFs'!H54/1000/'Product Data and EFs'!F54)+'Product Emissions Analysis'!P98 -> 0 | U44: =('Product Emissions Analysis'!Q87*'Product Data and EFs'!H52/1000/'Product Data and EFs'!F52)+'Product Emissions Analysis'!Q98 -> 0 | V44: 0
O45: Residential Appliances | P45: ='Product Emissions Analysis'!J69 -> 0 | Q45: ='Product Emissions Analysis'!K69 -> 0 | R45: 0 | T45: ='Product Emissions Analysis'!P69 -> 0 | U45: ='Product Emissions Analysis'!Q69 -> 0 | V45: 0
O46: Consumer Electronics | P46: ='Product Emissions Analysis'!J178 -> 0 | Q46: ='Product Emissions Analysis'!K178 -> 0 | R46: 0 | T46: ='Product Emissions Analysis'!P178 -> 0 | U46: ='Product Emissions Analysis'!Q178 -> 0 | V46: 0
O47: Commercial Appliances | P47: ='Product Emissions Analysis'!J392 -> 0 | Q47: ='Product Emissions Analysis'!K392 -> 0 | R47: 0 | T47: ='Product Emissions Analysis'!P392 -> 0 | U47: ='Product Emissions Analysis'!Q392 -> 0 | V47: 0
O48: Total Emissions | P48: 0 | Q48: 0 | R48: 0 | S48: =SUM($R$41:$R$47) -> 0 | T48: 0 | U48: 0 | V48: 0 | W48: =SUM(V41:V47) -> 0
O49: Annual Product Use Emission Savings | P49: 0 | Q49: 0 | R49: 0 | S49: =SUM('Product Emissions Analysis'!M222,'Product Emissions Analysis'!M262,'Product Emissions Analysis'!M296,'Product Emissions Analysis'!N87,'Product Emissions Analysis'!M98,'Product Emissions Analysis'!M69,'Product Emissions Analysis'!M178,'Product Emissions Analysis'!M392) -> 0 | T49: 0 | U49: 0 | V49: 0 | W49: =SUM('Product Emissions Analysis'!S222,'Product Emissions Analysis'!S262,'Product Emissions Analysis'!S296,'Product Emissions Analysis'!S87,'Product Emissions Analysis'!S98,'Product Emissions Analysis'!S69,'Product Emissions Analysis'!S178,'Product Emissions Analysis'!S392) -> 0
O50: Baseline Emissions if not using ENERGY STAR | P50: =$S$48+$S$49 -> 0 | Q50: =$S$48+$S$49 -> 0 | R50: 0 | S50: 0
O51: Baseline Emissions if not using ENERGY STAR | T51: =$W$48+$W$49 -> 0 | U51: =$W$48+$W$49 -> 0 | V51: 0 | W51: 0
B67: Change in GHG Inventory Emissions with Increased ENERGY STAR Sales
P71: Current Sales | Q71: With Increased Sale of ESTAR Products | R71: Change in GHG Emissions with Increased Sale of ESTAR Products
O72: Scope 1 | P72: ='Summary Results'!D40 -> 0 | Q72: ='Summary Results'!E40 -> 0
O73: Scope 2 | P73: ='Summary Results'!D41 -> 0 | Q73: ='Summary Results'!E41 -> 0
O74: Scope 3: Use of Sold Products | P74: ='Summary Results'!D53+'Summary Results'!D54 -> 0 | Q74: ='Summary Results'!E53+'Summary Results'!E54 -> 0
O75: Scope 3: Other | P75: =SUM('Summary Results'!D43:D52,'Summary Results'!D55:D58) -> 0 | Q75: =SUM('Summary Results'!E43:E52,'Summary Results'!E55:E58) -> 0
O76: Current GHG Inventory Emissions | P76: =SUM(P72:P75) -> 0 | Q76: =SUM(P72:P75) -> 0 | R76: =SUM(P72:P75) -> 0
O77: Total Emissions | P77: 0 | Q77: 0 | R77: =SUM(Q72:Q75) -> 0
O78: Emissions difference from current | R78: =IF(P74>Q74,R77,IF(P74<Q74,Q76)) -> FALSE
O79: Change in GHG Emissions with Increased Sale of ESTAR Products | P79: 0 | Q79: 0 | R79: =ABS(P74-Q74) -> 0

Sheet Product Data and EFs
C2: Product Data and Emission Factors
C3: This worksheet presents the Scope 3 Use of Sold Products emission factors used in the analysis as well as the data used to produce these factors (i.e., Scope 1 and 2 emissions factors and product energy use data).
C4: Source for Scope 1 and Scope 2 emission factors: U.S. EPA GHG Emission Factors Hub, https://www.epa.gov/climateleadership/center-corporate-climate-leadership-ghg-emission-factors-hub. Global warming potentials used are from IPCC's Fourth Assessment Report, 2007 (AR4).
C5: Source for product energy use data: ENERGY STAR Certified Products 2020 Data Book (March 2020)
D9: Scope 1 and 2 Emission Factors
F11: Emission Factor | I11: Note: Emissions Factors were accessed from the March 2020 version of the U.S. EPA GHG Emission Factors Hub, https://www.epa.gov/climateleadership/center-corporate-climate-leadership-ghg-emission-factors-hub.
E12: Scope 1 Emission Factor - Natural Gas | F12: 53.1148 | G12: kg CO2e/MMBtu
E13: Scope 1 Emission Factor - Distillate Fuel Oil #2 | F13: 74.2138 | G13: kg CO2e/MMBtu
E14: Scope 2 Emission Factor - U.S. Average Electricity | F14: 0.4322 | G14: kg CO2e/kWh
D17: Scope 3 Use of Sold Products Emission Factors and Product Energy Use Data
E19: Residential Appliances
E21: Product Type | F21: Product Lifetime (Years) | G21: Electricity - Unit Energy Consumption (kWh/year) | I21: Fuel - Unit Energy Consumption (MMBtu/year) | K21: Product End Use Emission Factor (kg CO2e/Product Sold)
G22: Stnd. New | H22: ENERGY STAR | I22: Stnd. New | J22: ENERGY STAR | K22: Stnd. New | L22: ENERGY STAR
E23: Room Air Conditioners | F23: 9 | G23: 611 | H23: 556 | I23: 0 | J23: 0 | K23: =F23*(G23*$F$14+I23*$F$12) -> 2376.6678 | L23: =F23*(H23*$F$14+J23*$F$12) -> 2162.7288
E24: Dehumidifiers | F24: 11 | G24: 595 | H24: 428 | I24: 0 | J24: 0 | K24: =F24*(G24*$F$14+I24*$F$12) -> 2828.749 | L24: =F24*(H24*$F$14+J24*$F$12) -> 2034.7976
E25: Air Cleaners | F25: 9 | G25: 877 | H25: 373 | I25: 0 | J25: 0 | K25: 3411.3546 | L25: 1450.8954
E26: Ventilating Fans - Bathroom Fans | F26: 10 | G26: 38 | H26: 17 | I26: 0 | J26: 0 | K26: 164.236 | L26: 73.474
E27: Ventilating Fans - Inline Fans | F27: 10 | G27: 114 | H27: 84 | I27: 0 | J27: 0 | K27: 492.708 | L27: 363.048
E28: Ventilating Fans - Range Hoods | F28: 14 | G28: 12 | H28: 9 | I28: 0 | J28: 0 | K28: 72.6096 | L28: 54.4572
E29: Standard Ceiling Fan | F29: 14 | G29: 120 | H29: 41 | I29: 0 | J29: 0 | K29: 726.096 | L29: 248.0828
E30: Hugger Ceiling Fan | F30: 14 | G30: 107 | H30: 39 | I30: 0 | J30: 0 | K30: 647.4356 | L30: 235.9812
E31: Standard Ceiling Fan with Light Kit | F31: 14 | G31: 141 | H31: 55 | I31: 0 | J31: 0 | K31: 853.1628 | L31: 332.794
E32: Hugger Ceiling Fan with Light Kit | F32: 14 | G32: 128 | H32: 53 | I32: 0 | J32: 0 | K32: 774.5024 | L32: 320.6924
E33: Dishwashers - Standard | F33: 12 | G33: 206 | H33: 181 | I33: 0.46 | J33: 0.4 | K33: 1361.592096 | L33: 1193.68944
E34: Dishwashers - Compact | F34: 12 | G34: 149 | H34: 136 | I34: 0.33 | J34: 0.3 | K34: 983.108208 | L34: 896.56368
E35: Refrigerators - Top Freezer | F35: 12 | G35: 401 | H35: 361 | I35: 0 | J35: 0 | K35: 2079.7464 | L35: 1872.2904
E36: Refrigerators - Bottom Freezer | F36: 12 | G36: 613 | H36: 560 | I36: 0 | J36: 0 | K36: 3179.2632 | L36: 2904.384
E37: Refrigerators - Side by Side | F37: 12 | G37: 692 | H37: 631 | I37: 0 | J37: 0 | K37: 3588.9888 | L37: 3272.6184
E38: Freezers - Chest Freezer | F38: 11 | G38: 239 | H38: 215 | I38: 0 | J38: 0 | K38: 1136.2538 | L38: 1022.153
E39: Freezers - Upright Freezer | F39: 11 | G39: 439 | H39: 395 | I39: 0 | J39: 0 | K39: 2087.0938 | L39: 1877.909
E40: Clothes Washers - Top Loading | F40: 11 | G40: 414 | H40: 333 | I40: 1 | J40: 0.67 | K40: 2552.5016 | L40: 1974.604676
E41: Clothes Washers - Front Loading | F41: 11 | G41: 425 | H41: 291 | I41: 0.61 | J41: 0.28 | K41: 2376.935308 | L41: 1547.065784
E42: Clothes Dryers - Standard Electric Dryer (Vented Ventless) | F42: 12 | G42: 769 | H42: 608 | I42: 0 | J42: 0 | K42: 3988.3416 | L42: 3153.3312
E43: Clothese Dryers - Gas Dryers | F43: 12 | G43: 42 | H43: 34 | I43: 2.72 | J43: 2.22 | K43: 1951.495872 | L43: 1591.315872
E44: Water Heaters - Gas Storage Water Heater | F44: 13 | G44: 0 | H44: 0 | I44: 18.13 | J44: 16.64 | K44: 12518.62721 | L44: 11489.79354
E45: Water Heaters - Electric (Heat Pump) Water Heater | F45: 13 | G45: 3457 | H45: 1634 | I45: 0 | J45: 0 | K45: 19423.5002 | L45: 9180.7924
E46: Water Heaters - Tankless Gas Water Heater | F46: 20 | G46: 0 | H46: 0 | I46: 20.77 | J46: 18.92 | K46: 22063.88792 | L46: 20098.64032
E49: Residential Lighting
E51: Product Type | F51: Product Lifetime (Years) | G51: Electricity - Unit Energy Consumption (kWh/year) | H51: Product End Use Emission Factor (kg CO2e/Product Sold)
E52: Halogen Bulb | F52: 0.9 | G52: 47 | H52: =F52*G52*$F$14 -> 18.28206
E53: LED Bulb | F53: 13.7 | G53: 10 | H53: =F53*G53*$F$14 -> 59.2114
E54: CFL Bulb | F54: 9.1 | G54: 14 | H54: 55.06228
E56: Product Type | F56: Product Lifetime (Years) | G56: Electricity - Unit Energy Consumption (kWh/year) | I56: Product End Use Emission Factor (kg CO2e/Product Sold)
G57: Stnd. New | H57: ENERGY STAR | I57: Stnd. New | J57: ENERGY STAR
E58: Decorative Light Strings | F58: 5 | G58: 11 | H58: 3 | I58: =F58*G58*$F$14 -> 23.771 | J58: =F58*H58*$F$14 -> 6.483
E61: Consumer Electronics
E63: Product Type | F63: Product Lifetime (Years) | G63: Electricity - Unit Energy Consumption (kWh/year) | I63: Fuel - Unit Energy Consumption (MMBtu/year) | K63: Product End Use Emission Factor (kg CO2e/Product Sold)
G64: Stnd. New | H64: ENERGY STAR | I64: Stnd. New | J64: ENERGY STAR | K64: Stnd. New | L64: ENERGY STAR
E65: TV - LCD TVs 20" and under | F65: 5 | G65: 45 | H65: 37 | I65: 0 | J65: 0 | K65: =F65*(G65*$F$14+I65*$F$12) -> 97.245 | L65: =F65*(H65*$F$14+J65*$F$12) -> 79.957
E66: TV - LCD TVs 21"-23" | F66: 5 | G66: 48 | H66: 41 | I66: 0 | J66: 0 | K66: =F66*(G66*$F$14+I66*$F$12) -> 103.728 | L66: =F66*(H66*$F$14+J66*$F$12) -> 88.601
E67: TV - LCD TVs 24"-29" | F67: 5 | G67: 55 | H67: 45 | I67: 0 | J67: 0 | K67: 118.855 | L67: 97.245
E68: TV - LCD TVs 30"-34" | F68: 5 | G68: 66 | H68: 55 | I68: 0 | J68: 0 | K68: 142.626 | L68: 118.855
E69: TV - LCD TVs 35"-39" | F69: 5 | G69: 85 | H69: 69 | I69: 0 | J69: 0 | K69: 183.685 | L69: 149.109
E70: TV - LCD TVs 40"-44" | F70: 5 | G70: 101 | H70: 74 | I70: 0 | J70: 0 | K70: 218.261 | L70: 159.914
E71: TV - LCD TVs 45"-49" | F71: 5 | G71: 128 | H71: 91 | I71: 0 | J71: 0 | K71: 276.608 | L71: 196.651
E72: TV - LCD TVs 50"-54" | F72: 5 | G72: 137 | H72: 101 | I72: 0 | J72: 0 | K72: 296.057 | L72: 218.261
E73: TV - LCD TVs 55"-59" | F73: 5 | G73: 161 | H73: 110 | I73: 0 | J73: 0 | K73: 347.921 | L73: 237.71
E74: TV - LCD TVs 60"-64" | F74: 5 | G74: 162 | H74: 123 | I74: 0 | J74: 0 | K74: 350.082 | L74: 265.803
E75: TV - LCD TVs 65" or greater | F75: 5 | G75: 295 | H75: 165 | I75: 0 | J75: 0 | K75: 637.495 | L75: 356.565
E76: TV - Plasma TVs under 60" | F76: 5 | G76: 135 | H76: 85 | I76: 0 | J76: 0 | K76: 291.735 | L76: 183.685
E77: TV - Plasma TVs 60" and up | F77: 5 | G77: 177 | H77: 97 | I77: 0 | J77: 0 | K77: 382.497 | L77: 209.617
E78: TV - OLED TVs | F78: 5 | G78: 154 | H78: 111 | I78: 0 | J78: 0 | K78: 332.794 | L78: 239.871
E79: DVD Players | F79: 7 | G79: 19 | H79: 12 | I79: 0 | J79: 0 | K79: 57.4826 | L79: 36.3048
E80: Blu Ray | F80: 7 | G80: 16 | H80: 9 | I80: 0 | J80: 0 | K80: 48.4064 | L80: 27.2286
E81: Audio Equipment - Receivers | F81: 7 | G81: 65 | H81: 54 | I81: 0 | J81: 0 | K81: 196.651 | L81: 163.3716
E82: Audio Equipment - Home Theater In-a-Box | F82: 7 | G82: 91 | H82: 60 | I82: 0 | J82: 0 | K82: 275.3114 | L82: 181.524
E83: Audio Equipment - Compact Systems | F83: 7 | G83: 105 | H83: 39 | I83: 0 | J83: 0 | K83: 317.667 | L83: 117.9906
E84: Audio Equipment - Soundbars | F84: 7 | G84: 91 | H84: 28 | I84: 0 | J84: 0 | K84: 275.3114 | L84: 84.7112
E85: Audio Equipment - Other Powered Speakers | F85: 7 | G85: 91 | H85: 32 | I85: 0 | J85: 0 | K85: 275.3114 | L85: 96.8128
E86: Audio Equipment - Home Radios | F86: 7 | G86: 16 | H86: 12 | I86: 0 | J86: 0 | K86: 48.4064 | L86: 36.3048
E87: Audio Equipment - Portable Media/MP3 Player Speakers and Docks | F87: 7 | G87: 25 | H87: 14 | I87: 0 | J87: 0 | K87: 75.635 | L87: 42.3556
E88: Residential Telephony | F88: 7 | G88: 11 | H88: 7 | I88: 0 | J88: 0 | K88: 33.2794 | L88: 21.1778
E89: Commercial Telephony (VOIP) | F89: 7 | G89: 35 | H89: 21 | I89: 0 | J89: 0 | K89: 105.889 | L89: 63.5334
E90: Set Top Box - Cable | F90: 6 | G90: 152 | H90: 130 | I90: 0 | J90: 0 | K90: 394.1664 | L90: 337.116
E91: Set Top Box - Cable Digital Transport Adapter | F91: 6 | G91: 45 | H91: 37 | I91: 0 | J91: 0 | K91: 116.694 | L91: 95.9484
E92: Set Top Box - Satellite | F92: 6 | G92: 129 | H92: 99 | I92: 0 | J92: 0 | K92: 334.5228 | L92: 256.7268
E93: Set Top Box - Multichannel Video Programming Distributor (MVPD) Internet Protocol (IP) | F93: 6 | G93: 116 | H93: 96 | I93: 0 | J93: 0 | K93: 300.8112 | L93: 248.9472
E94: Set Top Box - Over-the-Top (OTT) Internet Protocol (IP) | F94: 6 | G94: 42 | H94: 23 | I94: 0 | J94: 0 | K94: 108.9144 | L94: 59.6436
E95: Set Top Box - Thin-client | F95: 6 | G95: 54 | H95: 27 | I95: 0 | J95: 0 | K95: 140.0328 | L95: 70.0164
E96: Computer Servers | F96: 4 | G96: 2404 | H96: 1738 | I96: 0 | J96: 0 | K96: 4156.0352 | L96: 3004.6544
E99: Office Equipment
E101: Product Type | F101: Product Lifetime (Years) | G101: Electricity - Unit Energy Consumption (kWh/year) | I101: Fuel - Unit Energy Consumption (MMBtu/year) | K101: Product End Use Emission Factor (kg CO2e/Product Sold)
G102: Stnd. New | H102: ENERGY STAR | I102: Stnd. New | J102: ENERGY STAR | K102: Stnd. New | L102: ENERGY STAR
E103: Workstation | F103: 4 | G103: 1254 | H103: 915 | I103: 0 | J103: 0 | K103: =F103*(G103*$F$14+I103*$F$12) -> 2167.9152 | L103: =F103*(H103*$F$14+J103*$F$12) -> 1581.852
E104: Printer (Mono, Laser) | F104: 4 | G104: 50 | H104: 35 | I104: 0 | J104: 0 | K104: =F104*(G104*$F$14+I104*$F$12) -> 86.44 | L104: =F104*(H104*$F$14+J104*$F$12) -> 60.508
E105: Multifunction Device (Mono, Laser) | F105: 4 | G105: 48 | H105: 33 | I105: 0 | J105: 0 | K105: 82.9824 | L105: 57.0504
E106: Printer (Color, Laser) | F106: 4 | G106: 65 | H106: 38 | I106: 0 | J106: 0 | K106: 112.372 | L106: 65.6944
E107: Multifunction Device (Color, Laser) | F107: 4 | G107: 70 | H107: 40 | I107: 0 | J107: 0 | K107: 121.016 | L107: 69.152
E108: Multifunction Device (Inkjet) | F108: 4 | G108: 18 | H108: 16 | I108: 0 | J108: 0 | K108: 31.1184 | L108: 27.6608
E109: Scanner (Inkjet) | F109: 4 | G109: 18 | H109: 15 | I109: 0 | J109: 0 | K109: 31.1184 | L109: 25.932
E110: Printer (Inkjet) | F110: 4 | G110: 12 | H110: 11 | I110: 0 | J110: 0 | K110: 20.7456 | L110: 19.0168
E111: Professional Displays | F111: 6 | G111: 905 | H111: 867 | I111: 0 | J111: 0 | K111: 2346.846 | L111: 2248.3044
E112: Servers | F112: 5 | G112: 3694 | H112: 2959 | I112: 0 | J112: 0 | K112: 7982.734 | L112: 6394.399
E113: Small Network Equipment | F113: 5 | G113: 76.55 | H113: 60.57 | I113: 0 | J113: 0 | K113: 165.42455 | L113: 130.89177
E114: Residential UPS | F114: 6 | G114: 279 | H114: 168 | I114: 0 | J114: 0 | K114: 723.5028 | L114: 435.6576
E115: Small Commercial UPS | F115: 5 | G115: 1404 | H115: 682 | I115: 0 | J115: 0 | K115: 3034.044 | L115: 1473.802
E116: Larger Commercial UPS | F116: 12 | G116: 46699 | H116: 16989 | I116: 0 | J116: 0 | K116: 242199.6936 | L116: 88111.7496
E119: Computers and Monitors
E121: Product Type | F121: Product Lifetime (Years) | G121: Electricity - Unit Energy Consumption (kWh/year) | I121: Fuel - Unit Energy Consumption (MMBtu/year) | K121: Product End Use Emission Factor (kg CO2e/Product Sold)
G122: Stnd. New | H122: ENERGY STAR | I122: Stnd. New | J122: ENERGY STAR | K122: Stnd. New | L122: ENERGY STAR
E123: Home Desktop-Power Management Not Enabled | F123: 4 | G123: 87 | H123: 51 | I123: 0 | J123: 0 | K123: =F123*(G123*$F$14+I123*$F$12) -> 150.4056 | L123: =F123*(H123*$F$14+J123*$F$12) -> 88.1688
E124: Home Desktop-Power Management Enabled | F124: 4 | G124: 29 | H124: 17 | I124: 0 | J124: 0 | K124: =F124*(G124*$F$14+I124*$F$12) -> 50.1352 | L124: =F124*(H124*$F$14+J124*$F$12) -> 29.3896
E125: Home Laptop-Power Management Not Enabled | F125: 4 | G125: 30 | H125: 19 | I125: 0 | J125: 0 | K125: 51.864 | L125: 32.8472
E126: Home Laptop-Power Management Enabled | F126: 4 | G126: 10 | H126: 7 | I126: 0 | J126: 0 | K126: 17.288 | L126: 12.1016
E127: Home Monitors-Power Management Not Enabled | F127: 7 | G127: 42 | H127: 37 | I127: 0 | J127: 0 | K127: 127.0668 | L127: 111.9398
E128: Home Monitors-Power Management Enabled | F128: 7 | G128: 23 | H128: 20 | I128: 0 | J128: 0 | K128: 69.5842 | L128: 60.508
E129: Office Desktop-Power Management Not Enabled | F129: 4 | G129: 156 | H129: 91 | I129: 0 | J129: 0 | K129: 269.6928 | L129: 157.3208
E130: Office Desktop-Power Management Enabled | F130: 4 | G130: 33 | H130: 20 | I130: 0 | J130: 0 | K130: 57.0504 | L130: 34.576
E131: Office Laptop-Power Management Not Enabled | F131: 4 | G131: 53 | H131: 34 | I131: 0 | J131: 0 | K131: 91.6264 | L131: 58.7792
E132: Office Laptop-Power Management Enabled | F132: 4 | G132: 11 | H132: 8 | I132: 0 | J132: 0 | K132: 19.0168 | L132: 13.8304
E133: Office Monitors-Power Management Not Enabled | F133: 7 | G133: 131 | H133: 116 | I133: 0 | J133: 0 | K133: 396.3274 | L133: 350.9464
E134: Office Monitors-Power Management Enabled | F134: 7 | G134: 16 | H134: 14 | I134: 0 | J134: 0 | K134: 48.4064 | L134: 42.3556
E137: Heating and Cooling
E139: Product Type | F139: Product Lifetime (Years) | G139: Electricity - Unit Energy Consumption (kWh/year) | I139: Fuel - Unit Energy Consumption (MMBtu/year) | K139: Product End Use Emission Factor (kg CO2e/Product Sold)
G140: Stnd. New | H140: ENERGY STAR | I140: Stnd. New | J140: ENERGY STAR | K140: Stnd. New | L140: ENERGY STAR
E141: Furnace (Gas) | F141: 15 | G141: 295 | H141: 265 | I141: 35 | J141: 30 | K141: =F141*(G141*$F$14+I141*$F$12) -> 29797.755 | L141: =F141*(H141*$F$14+J141*$F$12) -> 25619.655
E142: Furnace (Oil) | F142: 15 | G142: 483 | H142: 466 | I142: 67 | J142: 65 | K142: =F142*(G142*$F$14+I142*$F$13) -> 77716.158 | L142: =F142*(H142*$F$14+J142*$F$13) -> 75379.533
E143: Furnace (Gas) - North | F143: 15 | G143: 369 | H143: 325 | I143: 47 | J143: 40 | K143: =F143*(G143*$F$14+I143*$F$12) -> 39838.161 | L143: =F143*(H143*$F$14+J143*$F$12) -> 33975.855
E144: Furnace (Gas) - South | F144: 15 | G144: 228 | H144: 211 | I144: 24 | J144: 21 | K144: 20599.452 | L144: 18099.075
E145: Central Air Conditioner | F145: 11 | G145: 2415 | H145: 2228 | I145: 0 | J145: 0 | K145: =F145*G145*$F$14 -> 11481.393 | L145: =F145*H145*$F$14 -> 10592.3576
E146: Air-Source Heat Pump | F146: 12 | G146: 4688 | H146: 4444 | I146: 0 | J146: 0 | K146: =F146*G146*$F$14 -> 24313.8432 | L146: =F146*H146*$F$14 -> 23048.3616
E147: Geothermal Heat Pump | F147: 15 | G147: 10926 | H147: 4268 | I147: 0 | J147: 0 | K147: 70833.258 | L147: 27669.444
E148: Boiler - Gas | F148: 15 | G148: 147 | H148: 134 | I148: 75 | J148: 69 | K148: 60707.151 | L148: 55842.54
E149: Boiler - Oil | F149: 20 | G149: 284 | H149: 257 | I149: 79 | J149: 76 | K149: =F149*(G149*$F$14+I149*$F$13) -> 119712.7 | L149: =F149*(H149*$F$14+J149*$F$13) -> 115026.484
E152: Commercial Appliances
E154: Product Type | F154: Product Lifetime (Years) | G154: Electricity - Unit Energy Consumption (kWh/year) | I154: Fuel - Unit Energy Consumption (MMBtu/year) | K154: Product End Use Emission Factor (kg CO2e/Product Sold)
G155: Stnd. New | H155: ENERGY STAR | I155: Stnd. New | J155: ENERGY STAR | K155: Stnd. New | L155: ENERGY STAR
E156: Water Coolers - Hot and Cold | F156: 5 | G156: 396 | H156: 259 | I156: 0 | J156: 0 | K156: =F156*(G156*$F$14+I156*$F$12) -> 855.756 | L156: =F156*(H156*$F$14+J156*$F$12) -> 559.699
E157: Water Coolers - Cook and Cold | F157: 5 | G157: 73 | H157: 53 | I157: 0 | J157: 0 | K157: =F157*(G157*$F$14+I157*$F$12) -> 157.753 | L157: =F157*(H157*$F$14+J157*$F$12) -> 114.533
E158: Commercial Refrigerators - Vertical Closed Solid Door | F158: 12 | G158: 1112 | H158: 828 | I158: 0 | J158: 0 | K158: 5767.2768 | L158: 4294.3392
E159: Commercial Refrigerators - Vertical Closed Transparent Door | F159: 12 | G159: 1546 | H159: 1140 | I159: 0 | J159: 0 | K159: 8018.1744 | L159: 5912.496
E160: Commercial Refrigerators - Horizontal Closed Solid and Transparent | F160: 12 | G160: 535 | H160: 376 | I160: 0 | J160: 0 | K160: 2774.724 | L160: 1950.0864
E161: Commercial Freezers - Vertical Closed Solid Door | F161: 12 | G161: 3063 | H161: 2547 | I161: 0 | J161: 0 | K161: 15885.9432 | L161: 13209.7608
E162: Commercial Freezers - Vertical Closed Transparent Door | F162: 12 | G162: 4517 | H162: 3614 | I162: 0 | J162: 0 | K162: 23426.9688 | L162: 18743.6496
E163: Commercial Freezers - Horizontal Closed Solid and Transparent | F163: 12 | G163: 685 | H163: 409 | I163: 0 | J163: 0 | K163: 3552.684 | L163: 2121.2376
E164: Hot Food Holding Cabinets | F164: 12 | G164: 4207 | H164: 1209 | I164: 0 | J164: 0 | K164: 21819.1848 | L164: 6270.3576
E165: Fryers (Large Vat) - Electric Fryers | F165: 12 | G165: 18154 | H165: 16366 | I165: 0 | J165: 0 | K165: 94153.9056 | L165: 84880.6224
E166: Fryers (Large Vat) - Gas Fryers | F166: 12 | G166: 0 | H166: 0 | I166: 172 | J166: 114 | K166: =F166*(G166*$F$14+I166*$F$12) -> 109628.9472 | L166: =F166*(H166*$F$14+J166*$F$12) -> 72661.0464
E167: Fryers (Standard) - Electric Fryers | F167: 12 | G167: 17542 | H167: 15063 | I167: 0 | J167: 0 | K167: 90979.8288 | L167: 78122.7432
E168: Fryers (Standard) - Gas Fryers | F168: 12 | G168: 0 | H168: 0 | I168: 163 | J168: 112 | K168: 103892.5488 | L168: 71386.2912
E169: Steamers - Electric Steamers | F169: 12 | G169: 19628 | H169: 8034 | I169: 0 | J169: 0 | K169: 101798.6592 | L169: 41667.5376
E170: Steamers - Gas Steamers | F170: 12 | G170: 0 | H170: 0 | I170: 229 | J170: 96 | K170: 145959.4704 | L170: 61188.2496
E171: Ice Machines - Batch Ice Machines | F171: 10 | G171: 7208 | H171: 6508 | I171: 0 | J171: 0 | K171: 31152.976 | L171: 28127.576
E172: Ice Machines - Continuous Ice Machines | F172: 10 | G172: 8515 | H172: 7165 | I172: 0 | J172: 0 | K172: =F172*(G172*$F$14+I172*$F$12) -> 36801.83 | L172: =F172*(H172*$F$14+J172*$F$12) -> 30967.13
E173: Dishwashers - Flight Type | F173: 15 | G173: 88008 | H173: 45180 | I173: 0 | J173: 0 | K173: 570555.864 | L173: 292901.94
E174: Dishwashers - Other Dishwasher | F174: 15 | G174: 22162 | H174: 13314 | I174: 38 | J174: 22 | K174: 173951.682 | L174: 103842.546
E175: Vending Machines | F175: 14 | G175: 1337 | H175: 1222 | I175: 0 | J175: 0 | K175: 8089.9196 | L175: 7394.0776
E176: Griddles - Electric Griddles | F176: 12 | G176: 11232 | H176: 9961 | I176: 0 | J176: 0 | K176: 58253.6448 | L176: 51661.7304
E177: Griddles - Gas Griddles | F177: 12 | G177: 0 | H177: 0 | I177: 118 | J177: 106 | K177: 75210.5568 | L177: 67562.0256
E178: Ovens - Full-size Gas Convection Ovens | F178: 12 | G178: 0 | H178: 0 | I178: 80 | J178: 61.98 | K178: 50990.208 | L178: 39504.66365
E179: Ovens - Half-size Electric Convection Ovens | F179: 12 | G179: 7632 | H179: 4482 | I179: 0 | J179: 0 | K179: 39582.6048 | L179: 23245.4448
E180: Ovens - Full-size Electric Convection Ovens | F180: 12 | G180: 10114 | H180: 9464 | I180: 0 | J180: 0 | K180: 52455.2496 | L180: 49084.0896
E181: Ovens - Gas Combination Ovens | F181: 12 | G181: 0 | H181: 0 | I181: 89 | J181: 61.69 | K181: 56726.6064 | L181: 39319.82414
E182: Ovens - Electric Combination Ovens | F182: 12 | G182: 20564 | H182: 13443 | I182: 0 | J182: 0 | K182: 106653.1296 | L182: 69720.7752
E183: Ovens - Single Gas Rack Ovens | F183: 12 | G183: 0 | H183: 0 | I183: 244 | J183: 226.67 | K183: =F183*(G183*$F$14+I183*$F$12) -> 155520.1344 | L183: =F183*(H183*$F$14+J183*$F$12) -> 144474.3806
E184: Ovens - Double Gas Rack Ovens | F184: 12 | G184: 0 | H184: 0 | I184: 300 | J184: 261.34 | K184: 191213.28 | L184: 166572.262
E185: Clothes Washers | F185: 11 | G185: 1136 | H185: 1029 | I185: 38 | J185: 33.9 | K185: 27602.7576 | L185: 24698.58072
E186: Water Heaters - Gas-fired Storage Water Heaters | F186: 10 | G186: 39 | H186: 167 | I186: 194 | J186: 163 | K186: 103211.27 | L186: 87298.898
E187: Water Heaters - Gas-fired Instantaneous Water Heaters | F187: 10 | G187: 119 | H187: 105 | I187: 62 | J187: 53 | K187: 33445.494 | L187: 28604.654
E188: Water Heaters - Electric Water Heaters | F188: 10 | G188: 15533 | H188: 5178 | I188: 0 | J188: 0 | K188: 67133.626 | L188: 22379.316
E189: LCHVAC | F189: 22 | G189: 22245 | H189: 21020 | I189: 0 | J189: 0 | K189: =F189*(G189*$F$14+I189*$F$12) -> 211514.358 | L189: =F189*(H189*$F$14+J189*$F$12) -> 199866.568
E190: Pool Pumps - Above-Ground | F190: 5 | G190: 1358 | H190: 1130 | I190: 0 | J190: 0 | K190: 2934.638 | L190: 2441.93
E191: Pool Pumps - Below-Ground | F191: 7 | G191: 5799 | H191: 2137 | I191: 0 | J191: 0 | K191: 17544.2946 | L191: 6465.2798
E192: Pool Pumps - Pressure Cleaner Booster | F192: 5 | G192: 1037 | H192: 930 | I192: 0 | J192: 0 | K192: 2240.957 | L192: 2009.73
E193: Electric Vehicle Supply Equipment | F193: 10 | G193: 38 | H193: 26 | I193: 0 | J193: 0 | K193: 164.236 | L193: 112.372
E194: Commerical Boilers | F194: 25 | G194: 0 | H194: 0 | I194: 939 | J194: 807 | K194: =F194*(G194*$F$14+I194*$F$12) -> 1246869.93 | L194: =F194*(H194*$F$14+J194*$F$12) -> 1071591.09
E195: Commercial Coffee Brewers | F195: 7 | G195: 922 | H195: 588 | I195: 0 | J195: 0 | K195: =F195*(G195*$F$14+I195*$F$12) -> 2789.4188 | L195: =F195*(H195*$F$14+J195*$F$12) -> 1778.9352

Sheet EF Calcs - Hidden (hidden)
A1: Emission Factors
A3: GWP
A4: CO2 | B4: 1
A5: CH4 | B5: 25
A6: N2O | B6: 298
A8: Source: Global warming potentials used are from IPCC's Fifth Assessment Report, 2014 (AR5).
A10: Natural Gas
A12: kg CO2/MMBtu | B12: 53.06
A13: kg CH4/MMBtu | B13: 0.001
A14: kg N2O/MMBtu | B14: 0.0001
A16: kg CO23/MMBtu | B16: =B12*1+B13*B5+B14*B6 -> 53.1148
A18: Source: U.S. EPA GHG Emission Factors Hub, https://www.epa.gov/climateleadership/center-corporate-climate-leadership-ghg-emission-factors-hub.
A20: Distillate Fuel Oil No. 2
A22: kg CO2/MMBtu | B22: 73.96
A23: kg CH4/MMBtu | B23: 0.003
A24: kg N2O/MMBtu | B24: 0.0006
A26: kg CO2e/MMBtu | B26: =B22*B4+B23*B5+B24*B6 -> 74.2138
A28: Source: U.S. EPA GHG Emission Factors Hub, https://www.epa.gov/climateleadership/center-corporate-climate-leadership-ghg-emission-factors-hub.
A30: Electricity
B32: U.S. annual total output emission rate (lb/MWh)
A33: CO2 | B33: 947.2
A34: CH4 | B34: 0.085
A35: N2O | B35: 0.012
A37: lb CO2e/MWh | B37: =B33*B4+B34*B5+B35*B6 -> 952.901
A38: kg CO2e/kWh | B38: =B37/2.20462/1000 -> 0.432229137
A40: Source: U.S. EPA (2020). eGRID 2018 U.S. Average Data. https://www.epa.gov/energy/emissions-generation-resource-integrated-database-egrid
